Workbook

Sheet VzorPolozky (hidden)
A1: Položkový rozpočet
A2: S:
A3: O:
A4: R:
A6: P.č. | B6: Číslo položky | C6: Název položky | D6: MJ | E6: množství | F6: cena / MJ | G6: celkem

Sheet Identifikační údaje
A1: Akce: | B1: ČRo Olomouc – rekonstrukce objektu Pavelčákova 2/19
A3: Místo plnění: | B3: Budova Českého rozhlasu Olomouc na adrese Pavelčákova 2/19, 779 00 Olomouc
A5: Datum vyplnění:
A7: Zadavatel: | B7: Český rozhlas | E7: =CONCATENATE(B7,", ",B8) -> Český rozhlas, Vinohradská 12, 120 99 Praha 2
B8: Vinohradská 12, 120 99 Praha 2
A9: IČ: | B9: 45245053
A10: DIČ: | B10: CZ45245053
A12: Projektant: | B12: ATELIER 38 s.r.o. | E12: =CONCATENATE(B12,", ",B13) -> ATELIER 38 s.r.o., Porážková 1424/20, 702 00 Ostrava – Moravská Ostrava
B13: Porážková 1424/20, 702 00 Ostrava – Moravská Ostrava
A14: IČ: | B14: 258 58 343
A15: DIČ: | B15: CZ25858343
A17: Uchazeč:
A19: Obchodní název | E19: =CONCATENATE(B19,", ",B20,", ",B22," ",B21) -> , ,
A20: Ulice a č.p.
A21: Město
A22: PSČ
A23: IČ
A24: DIČ
A26: Kontaktní osoba
A27: telefon
A28: e-mail
A32: Poznámka :
A33: Ve všech listech tohoto souboru můžete měnit pouze buňky s modrým pozadím. Jedná se o tyto údaje : - údaje o firmě - jednotkové ceny položek zadané na maximálně dvě desetinná místa

Sheet Pokyny pro vyplnění
A1: -1
B2: POKYNY A PODMÍNKY PRO VYPLNĚNÍ TABULKY PRO VÝPOČET NABÍDKOVÉ CENY - VV
B4: AKCE: | C4: ='Identifikační údaje'!B1 -> ČRo Olomouc – rekonstrukce objektu Pavelčákova 2/19
B6: Pozn.:
C7: Tato tabulka pro výpočet nabídkové ceny nahrazuje výkaz výměr, jež byl zpracován jako součást
B8: dokumentace pro provedení stavby, zhotovené společností ATELIER 38 s.r.o., Porážková 1424/20, 702 00
B9: Ostrava, v únoru 2020, pod zakázkovým číslem A3819002, jež je přílohou zadávací dokumenatce této
B10: veřejné zakázky.
B12: 1. POKYNY K VYPLŇOVÁNÍ TABULKY
B14: Ve všech listech tohoto souboru můžete měnit pouze buňky s modrým pozadím. Jedná se o tyto údaje :
B16: ¨- datum
B17: - údaje o uchazeči
B18: - jednotkové ceny položek zadané na maximálně dvě desetinná místa
B20: V titulním listu (identifikační údaje) stavby vyplňte údaje o Uchazeči (přenesou se do ostatních sestav i v jiných listech)
B23: 2. PODMÍNKY PRO ZPRACOVÁNÍ NABÍDKOVÉ CENY
B25: Preambule
B27: Tento soupis stavebních prací, dodávek a služeb je sestaven jako podklad pro zpracování nabídek dodavatelů na veřejnou zakázku na stavební práce a obsahuje podmínky a požadavky zadavatele, za kterých má být zpracována nabídková cena dodavatelů. Účelem tohoto soupisu je zabezpečit obsahovou shodu všech nabídkových cen a usnadnit následné posouzení předložených cenových nabídek.
B28: Předpokládá se, že dodavatel před zpracováním cenové nabídky pečlivě prostuduje všechny pokyny a podmínky pro zpracování nabídkové ceny obsažené v zadávacích podmínkách a bude se jimi při zpracování nabídkové ceny řídit. Soupis stavebních prací, dodávek a služeb je sestaven v souladu s podmínkami vyhlášky Ministerstva pro místní rozvoj č.230/2012 Sb. v platném znění.
B30: Vymezení některých pojmů
B32: Pro účely zpracování nabídkové ceny se jsou použity některé pojmy, pod kterými se rozumí:
B33: Soupisem stavebních prací dodávek a služeb dokument, ve kterém jsou definovány zadavatelem požadované stavební práce, dodávky a služby v podrobnostech nezbytných pro zpracování cenové nabídky dodavatele. Soupis obsahuje i vymezení požadovaného množství stavebních prací, dodávek a služeb.
B34: Cenovou soustavou uspořádaný soubor informací o stavebních a montážních pracích, materiálech a výrobcích obsahující zatřídění položek, podrobný popis a měrnou jednotku, způsob měření a další technické a cenové podmínky pro možnost stanovení jednotkové ceny.
B35: Ostatními náklady náklady dodavatele spojené se splněním povinností dodavatele vyplývajících z obchodních či jiných podmínek zadávací dokumentace. Patří do nich zejména náklady na vyhotovení dokumentace skutečného provedení stavby, náklady na geodetické zaměření dokončeného díla, náklady spojené s podmínkami pro publicitu projektu, náklady na dílenskou či výrobní dokumentaci apod.
B36: Položkovým rozpočtem dokument odpovídající svým obsahem a strukturou soupisu stavebních prací, dodávek a služeb, předaného zadavatelem dodavateli ke zpracování nabídky, v němž dodavatel doplní k jednotlivým položkám stavebních prací, dodávek nebo služeb svoje nabídkové jednotkové ceny a stanoví i celkovou nabídkovou cenu příslušné položky a dále stanoví nabídkové ceny dle struktury soupisu až po celkovou nabídkovou cenu za veškeré stavební práce, dodávky nebo služby, které jsou obsahem soupisu stavebních prací, dodávek a služeb.
B37: Vedlejšími náklady náklady na činností zhotovitele, které nejsou zahrnuty v položkách soupisu stavebních prací, dodávek nebo služeb, ale se zhotovením stav-by souvisí a jsou pro realizaci stavby nezbytné. Někdy se definují jako vedlejší rozpočtové náklady a zahrnují zejména náklady na vybudování, provoz a odstranění zařízení staveniště.
B39: Cenová soustava
B41: Použitá cenová soustava
B42: Soupisy stavebních prací, dodávek a služeb jsou zpracovány s použitím cenové soustavy zpracované společností RTS, a.s.. Položky z cenové soustavy mají uveden odkaz na cenovou soustavu včetně označení příslušného ceníku.
B44: Technické podmínky
B45: Obsah jednotlivých položek, způsob měření a ostatní další podmínky definující obsah a použití jednotlivých položek jsou obsaženy v cenových a technických podmínkách příslušných ceníků (viz zařazení u položky), které jsou volně dostupné na elektronické adrese www.cenovasoustava.cz
B47: Individuální položky
B48: Položky soupisu prací, které cenová soustava neobsahuje, jsou označeny popisem „vlastní“. Pro tyto položky jsou cenové a technické podmínky definovány jejich popisem, případně odkazem na konkrétní část příslušné dokumentace.
B50: Závaznost a změna soupisu
B52: Závaznost soupisu
B53: Poskytnuté soupisy jsou pro zpracování nabídkové ceny závazné. Je vyloučeno jakékoliv vyřazení položek ze soupisu, doplnění položek do soupisu, slučování položek a jakýkoliv zásah do popisu položky, množství měrných jednotek nebo jakkoliv měnit či upravovat jakýkoliv jiný údaj v soupisu.
B55: Zvláštní podmínky pro stanovení nabídkové ceny
B57: Přeprava vybouraných hmot, suti a vytěžené zeminy
B58: Pokud soupis obsahuje i některé technologické položky vztahující se k uložení vytěžené zeminy nebo vybouraných hmot, vodorovné přesuny zeminy nebo vybouraných hmot pak v takových případech zpracovatel soupisu předpokládá určitou přepravní vzdálenost. Pokud z technologického postupu dodavatele vyplývá jiná přepravní vzdálenost, je povinností dodavatele stanovit takovou jednotkovou cenu, aby celková cena položky odpovídala jeho konkrétním technologickým podmínkám a konkrétní přepravní vzdálenosti, při soupisem vymezeném množství měrných jednotek.
B60: Vnitrostaveništní přesun stavebního materiálu
B61: Pokud soupis obsahuje i položky vztahující se ke vnitrostaveništnímu přesunu materiálů (položky označené jako přesun hmot), pak v takových případech je povinností dodavatele stanovit takovou jednotkovou cenu, aby celková cena položky odpovídala jeho konkrétním technologickým podmínkám a konkrétní přepravní vzdálenosti, při soupisem vymezeném množství měrných jednotek.
B62: Vnitrostaveništní přesun hmot prací PSV (pomocná stavební výroba) může být v soupisu stanoven procenticky z hodnoty ceny za provedení příslušných řemeslných prací, dodávek a služeb. V takovém případě není v soupisu uvedeno množství měrných jednotek. Dodavatel ocení celkovou cenu u takové položky přesunu hmot vždy konkrétní částkou v Kč, bez ohledu na to, jakým způsobem k jejímu výpočtu dospěl.
B64: Příplatky za ztížené podmínky prací
B65: Pokud soupis položku příplatku za ztížené podmínky obsahuje, je dodavatel povinen ji ocenit bez ohledu na to, že tento příplatek dodavatel standardně neuplatňuje.
B67: Vedlejší a ostatní náklady
B68: Tyto náklady jsou popsány v samostatném soupisu stavebních prací, dodávek a služeb s tím, že dodavatel je povinen v rámci těchto nákladů ocenit všechny definované náklady souhrnně pro celou stavbu.
B72: 3. SPECIFICKÉ PODMÍNKY PRO ZPRACOVÁNÍ NABÍDKOVÉ CENY
B74: Zde doplní zpracovatel soupisu případná specifika týkající se konkrétní zakázky.
B77: 4. ELEKTRONICKÁ PODOBA SOUPISU
B79: Elektronická podoba soupisu
B80: V souladu se zákonem jsou předložené soupisy zpracovány i v elektronické podobě. Elektronickou podobou soupisu stavebních prací, dodávek a služeb je formát MS EXCEL.
B81: Popis formátu soupisu odpovídá svou strukturou vzorovému soupisu volně dostupnému na internetové adrese:
B83: www.stavebnionline.cz/soupis
B85: Zpracování elektronické podoby soupisu
B86: Předaný formát MS EXCEL je nepřístupným (uzamčeným) souborem, do kterého dodavatel doplňuje pouze jednotkové ceny ke všem položkám. Ostatní cenové údaje, jako celková cena položky, mezisoučty za stavební či funkční díly nebo součty celkové ceny stavebního objektu, jakož i cena stavby jsou výsledkem vložených matematických vzorců v příslušných pozicích souboru.
B88: Jiný formát soupisu
B89: Pokud by kterýkoliv dodavatel měl problémy s předaným formátem, lze na požádání poskytnout soupis stavebních prací také ve formátu *.xml, což je standardní formát používaný pro přenosy dat. Dokumentace tohoto formátu je volně přístupná na webových stránkách MMR.
B91: Závěrečné ustanovení
B92: Ostatní podmínky vztahující se ke zpracování nabídkové ceny jsou uvedeny v zadávací dokumentaci.
B94: 5. OBCHODNÍ NÁZVY MATERIÁLŮ A VÝROBKŮ
B96: V případě, že položka tabulky pro výpočet nabídkové ceny obsahuje konkrétní obchodní označení výrobku či materiálu (referenční výrobek), je zhotovitel oprávněn jej nahradit výrobkem či materiálem stejných technických parametrů a jakosti.

Sheet Rekapitulace stavby
C3: REKAPITULACE STAVBY
C4: Kód:
C5: Stavba: | J5: ='Identifikační údaje'!B1 -> ČRo Olomouc – rekonstrukce objektu Pavelčákova 2/19
C6: KSO: | AJ6: CC-CZ:
C7: Místo: | J7: ='Identifikační údaje'!B3 -> Budova Českého rozhlasu Olomouc na adrese Pavelčákova 2/19, 779 00 Olomouc | AJ7: Datum: | AM7: ='Identifikační údaje'!B5 -> 00:00:00
C9: Zadavatel: | AJ9: IČ: | AM9: ='Identifikační údaje'!B9 -> 45245053
D10: ='Identifikační údaje'!E7 -> Český rozhlas, Vinohradská 12, 120 99 Praha 2 | AJ10: DIČ: | AM10: ='Identifikační údaje'!B10 -> CZ45245053
C12: Uchazeč: | AJ12: IČ: | AM12: ='Identifikační údaje'!B23 -> 0
D13: ='Identifikační údaje'!E19 -> , , | AJ13: DIČ: | AM13: ='Identifikační údaje'!B24 -> 0
C15: Projektant: | AJ15: IČ: | AM15: ='Identifikační údaje'!B14 -> 258 58 343
D16: ='Identifikační údaje'!E12 -> ATELIER 38 s.r.o., Porážková 1424/20, 702 00 Ostrava – Moravská Ostrava | AJ16: DIČ: | AM16: ='Identifikační údaje'!B15 -> CZ25858343
C18: Poznámka:
C22: CENA ZA STAVBU CELKEM BEZ DPH | AJ22: =AN51+AF64+AF65+AF66+AF67 -> 0
B39: REKAPITULACE OBJEKTŮ STAVBY A SOUPISŮ PRACÍ
B42: Stavba: | K42: ='Identifikační údaje'!B1 -> ČRo Olomouc – rekonstrukce objektu Pavelčákova 2/19
B44: Místo: | K44: =IF($J$7="","",$J$7) -> Budova Českého rozhlasu Olomouc na adrese Pavelčákova 2/19, 779 00 Olomouc | AH44: Datum: | AL44: =IF($AM$7="","",$AM$7) -> 00:00:00
B46: Zadavatel: | K46: =IF($D$10="","",$D$10) -> Český rozhlas, Vinohradská 12, 120 99 Praha 2 | AH46: Projektant: | AL46: =IF($D$16="","",$D$16) -> ATELIER 38 s.r.o., Porážková 1424/20, 702 00 Ostrava – Moravská Ostrava
B47: Uchazeč: | K47: =IF($D$13="Vyplň údaj","",$D$13) -> , ,
B49: Kód | H49: Objekt, Soupis prací | AF49: Cena bez DPH [CZK]
B51: Objekt SO 01 celkem | AN51: =SUM(AF52:AO63) -> 0
C52: 01 | I52: SO 01 - Stavebně - architektonická část | AF52: ='01_SO O1 - Stav arch část'!D66:D66 -> 0
C53: 02 | I53: SO 01 - Zdravotně technické instalace | AF53: ='02_SO 01 - ZTI'!D44:D44 -> 0
C54: 03 | I54: SO 01 - Vzduchotechnika | AF54: ='03_SO 01 - VZT'!E31:E31 -> 0
C55: 04 | I55: SO 01 - Ústřední vytápění | AF55: ='04_SO 01 - ÚT'!D37:D37 -> 0
C56: 05 | I56: SO 01 - Plynoinstalace | AF56: ='05_SO 01 - Plyn'!D33:D33 -> 0
C57: 06 | I57: SO 01 - Měření a regulace | AF57: ='06_SO 01 - MaR'!F35:F35 -> 0
C58: 07 | I58: SO 01 - Silnoproudá elektroinstalace | AF58: ='07_SO 01 - Silnoproud'!H36:H36 -> 0
C59: 08 | I59: SO 01 - Slaboproudá elektroinstalace | AF59: ='08_SO 01 - Slaboproud'!D36:D36 -> 0
C60: 09 | I60: SO 01 - EPS - Elektrická požární signalizace | AF60: ='09_SO 01 - EPS'!D29:D29 -> 0
C61: 10 | I61: SO 01 - Prostorová akustika | AF61: ='10_SO 01 - akustika'!I33:I33 -> 0
C62: 11 | I62: SO 01 - Rozhlasové technologie | AF62: ='11_SO 01 - RT'!D30:D30 -> 0
C63: 12 | I63: SO 01 - Interiér hlavního objektu | AF63: ='12_Interiér'!G30:G30 -> 0
C64: 13 | I64: IO 01 - Přípojka vodovodu | AF64: ='13_IO 01 - Přípojka vody'!G37:G37 -> 0
C65: 14 | I65: IO 02 - Přípojka jednotné kanalizace | AF65: ='14_IO 02 - Přípojka kanalizace'!G34 -> 0
C66: 15 | I66: SO 02 - Garáže | AF66: ='15_SO O2 - Garáž'!G37:G37 -> 0
C67: 16 | I67: Vedlejší a ostatní náklady stavby | AF67: ='16 - VRN'!F32 -> 0

Sheet 01_SO O1 - Stav arch část
A1: =CONCATENATE('Rekapitulace stavby'!C52,"_",'Rekapitulace stavby'!I52) -> 01_SO 01 - Stavebně - architektonická část
A3: SPECIFIKACE DODÁVEK A PRACÍ
A4: Název akce:
A5: ='Identifikační údaje'!B1 -> ČRo Olomouc – rekonstrukce objektu Pavelčákova 2/19
A7: Zadavatel: | C7: ='Identifikační údaje'!E7 -> Český rozhlas, Vinohradská 12, 120 99 Praha 2
B8: IČ: | C8: ='Identifikační údaje'!B9 -> 45245053
B9: DIČ: | C9: ='Identifikační údaje'!B10 -> CZ45245053
A11: Projektant: | C11: ='Identifikační údaje'!E12 -> ATELIER 38 s.r.o., Porážková 1424/20, 702 00 Ostrava – Moravská Ostrava
B12: IČ: | C12: ='Identifikační údaje'!B14 -> 258 58 343
B13: DIČ: | C13: ='Identifikační údaje'!B15 -> CZ25858343
A15: Uchazeč: | C15: ='Identifikační údaje'!E19 -> , ,
B16: IČ: | C16: ='Identifikační údaje'!B23 -> 0
B17: DIČ: | C17: ='Identifikační údaje'!B24 -> 0
A19: Místo stavby: | C19: ='Identifikační údaje'!B3 -> Budova Českého rozhlasu Olomouc na adrese Pavelčákova 2/19, 779 00 Olomouc
A21: Datum vyplnění: | C21: ='Identifikační údaje'!B5 -> 00:00:00
A23: =CONCATENATE("REKAPITULACE DODÁVEK A PRACÍ OBJEKTU ",'Rekapitulace stavby'!I52) -> REKAPITULACE DODÁVEK A PRACÍ OBJEKTU SO 01 - Stavebně - architektonická část
A25: P.č. | B25: Číslo položky | C25: Název položky | D25: Kč bez DPH
A27: Díl: | B27: =B98 -> 1 | C27: =C98 -> Zemní práce | G27: =G98 -> 0
A28: Díl: | B28: =B150 -> 21 | C28: =C150 -> Úprava podloží a základ.spáry | G28: =G150 -> 0
A29: Díl: | B29: =B199 -> 22 | C29: =C199 -> Piloty | G29: =G199 -> 0
A30: Díl: | B30: =B209 -> 27 | C30: =C209 -> Základy | G30: =G209 -> 0
A31: Díl: | B31: =B301 -> 28 | C31: =C301 -> Zpevňování hornin a konstrukcí | G31: =G301 -> 0
A32: Díl: | B32: =B314 -> 3 | C32: =C314 -> Svislé a kompletní konstrukce | G32: =G314 -> 0
A33: Díl: | B33: =B451 -> 342 | C33: =C451 -> Sádrokartonové konstrukce | G33: =G451 -> 0
A34: Díl: | B34: =B658 -> 4 | C34: =C658 -> Vodorovné konstrukce | G34: =G658 -> 0
A35: Díl: | B35: =B743 -> 43 | C35: =C743 -> Schodiště | G35: =G743 -> 0
A36: Díl: | B36: =B757 -> 5 | C36: =C757 -> Komunikace | G36: =G757 -> 0
A37: Díl: | B37: =B792 -> 61 | C37: =C792 -> Úpravy povrchů vnitřní | G37: =G792 -> 0
A38: Díl: | B38: =B1112 -> 62 | C38: =C1112 -> Úpravy povrchů vnější | G38: =G1112 -> 0
A39: Díl: | B39: =B1281 -> 63 | C39: =C1281 -> Podlahy a podlahové konstrukce | G39: =G1281 -> 0
A40: Díl: | B40: =B1339 -> 64 | C40: =C1339 -> Výplně otvorů | G40: =G1339 -> 0
A41: Díl: | B41: =B1342 -> 94 | C41: =C1342 -> Lešení a stavební výtahy | G41: =G1342 -> 0
A42: Díl: | B42: =B1394 -> 95 | C42: =C1394 -> Dokončovací konstrukce na pozemních stavbách | G42: =G1394 -> 0
A43: Díl: | B43: =B1404 -> 96 | C43: =C1404 -> Bourání konstrukcí | G43: =G1404 -> 0
A44: Díl: | B44: =B1750 -> 99 | C44: =C1750 -> Staveništní přesun hmot | G44: =G1750 -> 0
A45: Díl: | B45: =B1752 -> 711 | C45: =C1752 -> Izolace proti vodě | G45: =G1752 -> 0
A46: Díl: | B46: =B1810 -> 712 | C46: =C1810 -> Povlakové krytiny | G46: =G1810 -> 0
A47: Díl: | B47: =B1915 -> 713 | C47: =C1915 -> Izolace tepelné | G47: =G1915 -> 0
A48: Díl: | B48: =B2013 -> 728 | C48: =C2013 -> Vzduchotechnika | G48: =G2013 -> 0
A49: Díl: | B49: =B2037 -> 762 | C49: =C2037 -> Konstrukce tesařské | G49: =G2037 -> 0
A50: Díl: | B50: =B2070 -> 764 | C50: =C2070 -> Konstrukce klempířské | G50: =G2070 -> 0
A51: Díl: | B51: =B2191 -> 766 | C51: =C2191 -> Konstrukce truhlářské | G51: =G2191 -> 0
A52: Díl: | B52: =B2477 -> 767 | C52: =C2477 -> Konstrukce zámečnické | G52: =G2477 -> 0
A53: Díl: | B53: =B2748 -> 771 | C53: =C2748 -> Podlahy z dlaždic a obklady | G53: =G2748 -> 0
A54: Díl: | B54: =B2776 -> 775 | C54: =C2776 -> Podlahy vlysové a parketové | G54: =G2776 -> 0
A55: Díl: | B55: =B2779 -> 776 | C55: =C2779 -> Podlahy povlakové | G55: =G2779 -> 0
A56: Díl: | B56: =B2859 -> 777 | C56: =C2859 -> Podlahy ze syntetických hmot | G56: =G2859 -> 0
A57: Díl: | B57: =B2882 -> 781 | C57: =C2882 -> Obklady keramické | G57: =G2882 -> 0
A58: Díl: | B58: =B2971 -> 782 | C58: =C2971 -> Konstrukce z přírodního kamene | G58: =G2971 -> 0
A59: Díl: | B59: =B2979 -> 783 | C59: =C2979 -> Nátěry | G59: =G2979 -> 0
A60: Díl: | B60: =B2999 -> 784 | C60: =C2999 -> Malby | G60: =G2999 -> 0
A61: Díl: | B61: =B3039 -> 787 | C61: =C3039 -> Zasklívání | G61: =G3039 -> 0
A62: Díl: | B62: =B3043 -> 799 | C62: =C3043 -> Ostatní | G62: =G3043 -> 0
A63: Díl: | B63: =B3062 -> M33 | C63: =C3062 -> Montáže dopravních zařízení a vah-výtahy | G63: =G3062 -> 0
A64: Díl: | B64: =B3065 -> D96 | C64: =C3065 -> Přesuny suti a vybouraných hmot | G64: =G3065 -> 0
A66: =CONCATENATE("CELKEM ZA OBJEKT ",'Rekapitulace stavby'!I52, " v Kč bez DPH") -> CELKEM ZA OBJEKT SO 01 - Stavebně - architektonická část v Kč bez DPH | D66: =SUM(G27:G64) -> 0
A97: P.č. | B97: Číslo položky | C97: Název položky | D97: MJ | E97: množství | F97: cena / MJ | G97: celkem
A98: Díl: | B98: 1 | C98: Zemní práce | G98: =SUBTOTAL(9,G99:G149) -> 0
A99: 1 | B99: 115101201R00 | C99: Čerpání vody na výšku do 10 m, přítok do 500 l/min | D99: h | E99: 500 | G99: =E99*F99 -> 0
C100: Množství měrných jednotek je doba, po kterou je čerpadlo v provozu. Množství m.j. je uvedeno dle předpokladu, celková cena této práce se stanoví podle skutečnosti při provádění stavebních prací.
A101: =A99+1 -> 2 | B101: 115101301R00 | C101: Pohotovost čerp.soupravy, výška 10 m, přítok 500 l | D101: den | E101: 30 | G101: =E101*F101 -> 0
A102: =A101+1 -> 3 | B102: 122201101R00 | C102: Odkopávky nezapažené v hor. 3 do 100 m3 | D102: m3 | E102: 68.1 | G102: 0
C103: pro zpevněné plochy :
C104: mn. položky pořadí 142 : 196,00000*0,3 | E104: 58.8
C105: mn. položky pořadí 143 : 31,00000*0,3 | E105: 9.3
A106: =A102+1 -> 4 | B106: 131201119R00 | C106: Příplatek za lepivost - hloubení nezap.jam v hor.3 | D106: m3 | E106: 227.72 | G106: =E106*F106 -> 0
C107: mn. položky pořadí 5 : 227,71368 | E107: 227.72
A108: =A106+1 -> 5 | B108: 139601102R00 | C108: Ruční výkop jam, rýh a šachet v hornině tř. 3 | D108: m3 | E108: 227.72 | G108: =E108*F108 -> 0
C109: 1PP - S01 - sonda P10+P11+P12 - odkop : 0,20*180,0*1,05 | E109: 37.8
C110: 1PP - S02 - sonda P9 - odkop : 0,30*29,0*1,05 | E110: 9.14
C111: 1PP - pásy pro piloty : (0,30*0,45*(4,10+3,20)+0,30*0,40*(4,10+3,20))*1,05 | E111: 1.96
C112: 1PP - čerpací jímka : 2*(1,50*1,50*1,50) | E112: 6.75
C113: 1PP - pro VZT mezi S12 a S13 : 2,10*7,000*1,05 | E113: 15.44
C114: 1PP - pro VZT z S13 : (3,00*1,80*2,40)*1,05 | E114: 13.61
C115: (0,40+0,60)*1,26*2,20 | E115: 2.78
C116: základy pod VZT jednotky : 0,10*((3*(4,00*1,06))+(3,80*0,75)+(4,00*1,50))*1,05 | E116: 2.27
C117: pro uzemňovací pásek : 225*(0,15*0,15) | E117: 5.07
C118: pod podkladní deskou pod 1NP : 0,35*(72,0+22,0+29,0+38,0+23,0+8,0) | E118: 67.2
C119: odkop vlhké zeminy navíc u zadního přístřešku pod 1NP : 0,40*(22,200+7,500) | E119: 11.88
C120: přístřešek - patky : 5*(0,35*0,35*1,20)*1,05 | E120: 0.78
C121: přístřešek pásy : 0,40*1,00*(3,80*2+2,20)*1,05 +8 | E121: 12.12
C122: dvorní část - kolem objektu : 1,00*0,80*(8,5+1,0+6,0)*1,1 | E122: 13.64
C123: 2,30*1,20*(9,0)*1,1 | E123: 27.33
A124: =A108+1 -> 6 | B124: 151101201R00 | C124: Pažení stěn výkopu - příložné - hloubky do 4 m | D124: m2 | E124: 22.5 | G124: =E124*F124 -> 0
C125: dvůr - u starého schodiště : 2,50*9,00 | E125: 22.5
A126: =A124+1 -> 7 | B126: 151101211R00 | C126: Odstranění pažení stěn - příložné - hl. do 4 m | D126: m2 | E126: 22.5 | G126: =E126*F126 -> 0
C127: mn. položky pořadí 6 : 22,50000 | E127: 22.5
A128: =A126+1 -> 8 | B128: 151101301R00 | C128: Rozepření stěn pažení - příložné - hl. do 4 m | D128: m3 | E128: 42.25 | G128: =E128*F128 -> 0
C129: dvůr - u starého schodiště : 2,50*(1,30*13,0) | E129: 42.25
A130: =A128+1 -> 9 | B130: 151101311R00 | C130: Odstranění rozepření stěn - příložné - hl. do 4 m | D130: m3 | E130: 42.25 | G130: =E130*F130 -> 0
C131: mn. položky pořadí 8 : 42,25000 | E131: 42.25
A132: =A130+1 -> 10 | B132: 161101102R00 | C132: Svislé přemístění výkopku z hor.1-4 do 4,0 m | D132: m3 | E132: 227.72 | G132: =E132*F132 -> 0
C133: mn. položky pořadí 5 : 227,71368 | E133: 227.72
A134: =A132+1 -> 11 | B134: 162201102R00 | C134: Vodorovné přemístění výkopku z hor.1-4 do 50 m | D134: m3 | E134: 227.72 | G134: =E134*F134 -> 0
C135: mn. položky pořadí 5 : 227,71368 | E135: 227.72
A136: =A134+1 -> 12 | B136: 162701105R00 | C136: Vodorovné přemístění výkopku z hor.1-4 do 10000 m | D136: m3 | E136: 295.82 | G136: =E136*F136 -> 0
C137: mn. položky pořadí 5 : 227,71368 | E137: 227.72
C138: mn. položky pořadí 3 : 68,10000 | E138: 68.1
A139: =A136+1 -> 13 | B139: 162701109R00 | C139: Příplatek k vod. přemístění hor.1-4 za další 1 km | D139: m3 | E139: 1479.07 | G139: =E139*F139 -> 0
C140: mn. položky pořadí 12 : 295,81368*5 | E140: 1479.07
A141: =A139+1 -> 14 | B141: 174101101R00 | C141: Zásyp jam, rýh, šachet se zhutněním | D141: m3 | E141: 1 | G141: =E141*F141 -> 0
C142: včetně strojního přemístění materiálu pro zásyp ze vzdálenosti do 10 m od okraje zásypu
C143: rušená jímka : 1,0*1,0*1,0 | E143: 1
A144: =A141+1 -> 15 | B144: 175101201R00 | C144: Obsyp objektu bez prohození sypaniny | D144: m3 | E144: 25.35 | G144: =E144*F144 -> 0
C145: dvůr - u starého schodiště : 1,50*(1,30*13,0) | E145: 25.35
A146: =A144+1 -> 16 | B146: 199000002R00 | C146: Poplatek za skládku horniny 1- 4 | D146: m3 | E146: 295.82 | G146: =E146*F146 -> 0
C147: mn. položky pořadí 12 : 295,81368 | E147: 295.82
A148: =A146+1 -> 17 | B148: 583418036R | C148: Kamenivo drcené frakce 16/32 D Olomoucký kraj | D148: t | E148: 43.1 | G148: =E148*F148 -> 0
C149: dvůr - u starého schodiště : 1,50*(1,30*13,0)*1,7 | E149: 43.1
A150: Díl: | B150: 21 | C150: Úprava podloží a základ.spáry | G150: =SUBTOTAL(9,G151:G198) -> 0
A151: =A148+1 -> 18 | B151: 212561111R00 | C151: Výplň odvodňov. trativodů kam. hrubě drcen. 16 mm | D151: m3 | E151: 17.04 | G151: =E151*F151 -> 0
C152: drenáž kolem objektu : 0,80*0,60*(13,0+16,0+1,5 +5) | E152: 17.04
A153: =A151+1 -> 19 | B153: 212753113R00 | C153: Montáž ohebné dren. trubky do rýhy DN 80, bez lože | D153: m | E153: 35.5 | G153: =E153*F153 -> 0
C154: drenáž kolem objektu : 13,0+16,0+1,5 +5 | E154: 35.5
A155: =A153+1 -> 20 | B155: 212753114R00 | C155: Montáž ohebné dren. trubky do rýhy DN 100,bez lože | D155: m | E155: 51.5 | G155: =E155*F155 -> 0
C156: potrubí pro odvětrání pod 1PP : 5,0+8,5+11,0 | E156: 24.5
C157: potrubí pro odvětrání radonu pod 1NP : 15,0+12,0 | E157: 27
A158: =A155+1 -> 21 | B158: 212753115R00 | C158: Montáž ohebné dren. trubky do rýhy DN 125,bez lože | D158: m | E158: 46 | G158: =E158*F158 -> 0
C159: potrubí pro odvětrání pod 1PP : 46,0 | E159: 46
A160: =A158+1 -> 22 | B160: 212753116R00 | C160: Montáž ohebné dren. trubky do rýhy DN 160,bez lože | D160: m | E160: 61 | G160: =E160*F160 -> 0
C161: potrubí pro odvětrání pod 1PP : 5,0 | E161: 5
C162: potrubí pro odvětrání radonu pod 1NP : (16,0+8,0 + 14,0+10,0) + (3,0 + 5,0) | E162: 56
A163: =A160+1 -> 23 | B163: 212971110R00 | C163: Opláštění trativodů z geotext., do sklonu 1:2,5 | D163: m2 | E163: 71 | G163: =E163*F163 -> 0
C164: drenáž kolem objektu : 2,00*(13,0+16,0+1,5 +5) | E164: 71
A165: =A163+1 -> 24 | B165: 215901101RT5 | C165: Zhutnění podloží z hornin nesoudržných do 92% PS vibrační deskou | D165: m2 | E165: 456.5 | G165: =E165*F165 -> 0
C166: 1PP - úprava podkladu po odkopu : (253,00+7,00+6,00) | E166: 266
C167: podkladní základová deska pod 1NP : (72,0+21,5+28,5+22,5+8,0+38,0) | E167: 190.5
A168: =A165+1 -> 25 | B168: 271531113R00 | C168: Polštář základu z kameniva hr. drceného 16-32 mm | D168: m3 | E168: 83.05 | G168: =E168*F168 -> 0
C169: pod 1PP : 0,10*(253,00+7,00+6,00)*1,10 | E169: 29.26
C170: pod podkladní základovou desku pod 1NP : 0,20*(72,0+21,5+28,5+22,5+8,0+38,0)*1,10 | E170: 41.91
C171: odkop vlhké zeminy navíc u zadního přístřešku pod 1NP - výměna za kamenivo : 0,40*(22,200+7,500) | E171: 11.88
A172: =A168+1 -> 26 | B172: 271531114R00 | C172: Polštář základu z kameniva drceného 8-16 mm | D172: m3 | E172: 14.63 | G172: =E172*F172 -> 0
C173: pod 1PP : 0,05*(253,00+7,00+6,00)*1,10 | E173: 14.63
A174: =A172+1 -> 27 | B174: 289970111R00 | C174: Vrstva geotextilie Geofiltex 300g/m2 | D174: m2 | E174: 580.25 | G174: =E174*F174 -> 0
C175: pod 1PP : (253,00+7,00+6,00)*1,1 | E175: 292.6
C176: pod podkladní základovou desku pod 1NP : (72,0+21,5+28,5+22,5+8,0+38,0)*1,1 | E176: 209.55
C177: drenáž kolem objektu : 2,00*(13,0+16,0+1,5 +5)*1,1 | E177: 78.1
A178: =A174+1 -> 28 | B178: 871313121R00 | C178: Montáž trub z plastu, gumový kroužek, DN 150 | D178: m | E178: 66 | G178: =E178*F178 -> 0
C179: odvětrání na fasádu z 1PP : 2*3,0 | E179: 6
C180: odvětrání z 1PP vnitřek : 3*3,5 | E180: 10.5
C181: 1NP : 2,5 + 2,0 + 2*(2,5) | E181: 9.5
C182: odvětrání na střechu z 1NP : 2*20,0 | E182: 40
A183: =A178+1 -> 29 | B183: 894432-1 | C183: revizní plastová šachta prům.315 mm - dodávka a montáž | D183: kus | E183: 3 | G183: =E183*F183 -> 0
C184: kompletní šachta - dno, šachtová roura a poklop - hl. cca. 1,5m
C185: drenáže : 3 | E185: 3
A186: =A183+1 -> 30 | B186: 28611152.AR | C186: Trubka kanalizační KGEM SN 4 PVC 150x4,0x2000 mm | D186: kus | E186: 36 | G186: =E186*F186 -> 0
C187: mn. položky pořadí 28 : 66,00000*0,5 | E187: 33
C188: +3 | E188: 3
A189: =A186+1 -> 31 | B189: 28611222.AR | C189: Trubka PVC drenážní flexibilní d 80 mm | D189: m | E189: 39.05 | G189: =E189*F189 -> 0
C190: mn. položky pořadí 19 : 35,50000*1,1 | E190: 39.05
A191: =A189+1 -> 32 | B191: 28611223.AR | C191: Trubka PVC drenážní flexibilní d 100 mm | D191: m | E191: 39.05 | G191: =E191*F191 -> 0
C192: mn. položky pořadí 19 : 35,50000*1,1 | E192: 39.05
A193: =A191+1 -> 33 | B193: 28611224.AR | C193: Trubka PVC drenážní flexibilní d 125 mm | D193: m | E193: 50.6 | G193: =E193*F193 -> 0
C194: mn. položky pořadí 21 : 46,00000*1,1 | E194: 50.6
A195: =A193+1 -> 34 | B195: 28611225.AR | C195: Trubka PVC drenážní flexibilní d 160 mm | D195: m | E195: 67.1 | G195: =E195*F195 -> 0
C196: mn. položky pořadí 22 : 61,00000*1,1 | E196: 67.1
A197: =A195+1 -> 35 | B197: 28651664.AR | C197: Koleno kanalizační KGB 160/ 87° PVC | D197: kus | E197: 16 | G197: =E197*F197 -> 0
C198: 2+4+2*2+3*2 | E198: 16
A199: Díl: | B199: 22 | C199: Piloty | G199: =SUBTOTAL(9,G200:G208) -> 0
A200: =A197+1 -> 36 | B200: 2299400-01 | C200: Trubkové mikropiloty D 89/10mm, včetně injektáže a hlavy | D200: ks | E200: 22 | G200: =E200*F200 -> 0
C201: dle výkr.č. D.1.2b-03:
C202: trubka pr. 89/10 (11 523) celková délka 7,0m, kořen pr. 0,2m, výška kořene 6,5m,
C203: únosnost kořene 218,17kN,
C204: cementová směs CEM II/A-S (tř. 32,5)
C205: hlava piloty - ocelová plotna P20-250/250mm se středovým otvorem pr. 30mm
C206: kompletní dodávka včetně vyčištění vrtu, dodání a výrobu cementové zálivky, sestavení mikropiloty a veškerých úprav po injektování + hlava piloty
C207: včetně přesunu pilotovací soupravy na stavbu a zpět
C208: mikropiloty - hl. 7m : 22 | E208: 22
A209: Díl: | B209: 27 | C209: Základy | G209: =SUBTOTAL(9,G210:G300) -> 0
A210: =A200+1 -> 37 | B210: 273313611R00 | C210: Beton základových desek prostý C 16/20 XC2 | D210: m3 | E210: 7.22 | G210: =E210*F210 -> 0
C211: pod ZP1 - ZP4 : 0,40*0,10*(4,10+3,20)*1,05 | E211: 0.31
C212: 0,45*0,10*(4,10+3,20)*1,05 | E212: 0.35
C213: pod kanály VZT : 0,07*(5,40+6,00)*1,1 | E213: 0.88
C214: pod drenáž kolem objektu : 0,80*0,15*(13,0+16,0+1,5 +5)*1,1 +1 | E214: 5.69
A215: =A210+1 -> 38 | B215: 273321321R00 | C215: Železobeton základových desek C 20/25 XC2 | D215: m3 | E215: 81.95 | G215: =E215*F215 -> 0
C216: deska na ztrac. bednění v 1PP : (0,05+0,13/2)*(248,0)*1,05 | E216: 29.95
C217: podkladní základová deska pod 1NP : 0,15*(89,4+75,4+42,0+52,40)*1,05 | E217: 40.83
C218: 024 - pod stojan na kola : 0,15*(1,20*2,70)*1,05 +5 | E218: 5.52
C219: základy pod VZT jednotky : 0,25*((3*(4,00*1,06))+(3,80*0,75)+(4,00*1,50))*1,05 | E219: 5.67
A220: =A215+1 -> 39 | B220: 273323611RV1 | C220: Železobeton základ. desek vodostavební C 30/37 PERMACRETE 90d X0,XC1-4,XD1-2,XF1,XA1-2 | D220: m3 | E220: 3.39 | G220: =E220*F220 -> 0
C221: desky VZT kanálů - č.1 : 0,20*(6,000)*1,1 | E221: 1.32
C222: desky VZT kanálů - č.2 - ve spádu vč. svislého pásu : (0,15*2,20*2,60)+(0,40*2,20*1,25)*1,1 | E222: 2.07
A223: =A220+1 -> 40 | B223: 273351215R00 | C223: Bednění stěn základových desek - zřízení | D223: m2 | E223: 43.42 | G223: =E223*F223 -> 0
C224: desky VZT kanálů - č.1 : 0,20*(4,0) | E224: 0.8
C225: desky VZT kanálů - č.2 - ve spádu vč. svislého pásu : (2*2,60)+(0,40*2*1,25) | E225: 6.2
C226: deska 1PP : 10 | E226: 10
C227: podkladní základová deska pod 1NP : 10 | E227: 10
C228: 024 - pod stojan na kola : 0,15*(2*(1,20+2,70)) +2 | E228: 3.17
C229: základy pod VZT jednotky : 0,25*((3*(2*(4,00+1,06)))+(2*(3,80+0,75))+(2*(4,00+1,50)))*1,05 | E229: 13.25
A230: =A223+1 -> 41 | B230: 273351216R00 | C230: Bednění stěn základových desek - odstranění | D230: m2 | E230: 43.42 | G230: =E230*F230 -> 0
C231: Včetně očištění, vytřídění a uložení bednicího materiálu.
C232: mn. položky pořadí 40 : 43,41575 | E232: 43.42
A233: =A230+1 -> 42 | B233: 273361921RT5 | C233: Výztuž základových desek ze svařovaných sítí průměr drátu 6,0, oka 150/150 mm KH20 | D233: t | E233: 3.58 | G233: =E233*F233 -> 0
C234: desky VZT kanálů - výztuž je součástí výpisů stropů 1PP : 0
C235: deska na ztrac. bednění v 1PP : 1*0,00303*(253,0)*1,15 | E235: 0.89
C236: podkladní základová deska pod 1NP : 2*0,00303*(89,4+75,4+42,0+52,40)*1,15 | E236: 1.81
C237: 024 - pod stojan na kola : 2*0,00303*(1,20*2,70)*1,15 +0,8 | E237: 0.83
C238: základy pod VZT jednotky : 1*0,00303*((3*(4,00*1,06))+(3,80*0,75)+(4,00*1,50))*1,05 | E238: 0.07
A239: =A233+1 -> 43 | B239: 274313621R00 | C239: Beton základových pasů prostý C 20/25 XC2 | D239: m3 | E239: 12.46 | G239: =E239*F239 -> 0
C240: 1PP - dobetonovávky stěn a základů D.1.2c-08 : 2,5 | E240: 2.5
... 2833 more rows

Sheet 02_SO 01 - ZTI
A1: =CONCATENATE('Rekapitulace stavby'!C53,"_",'Rekapitulace stavby'!I53) -> 02_SO 01 - Zdravotně technické instalace
A3: SPECIFIKACE DODÁVEK A PRACÍ
A4: Název akce:
A5: ='Identifikační údaje'!B1 -> ČRo Olomouc – rekonstrukce objektu Pavelčákova 2/19
A7: Zadavatel: | C7: ='Identifikační údaje'!E7 -> Český rozhlas, Vinohradská 12, 120 99 Praha 2
B8: IČ: | C8: ='Identifikační údaje'!B9 -> 45245053
B9: DIČ: | C9: ='Identifikační údaje'!B10 -> CZ45245053
A11: Projektant: | C11: ='Identifikační údaje'!E12 -> ATELIER 38 s.r.o., Porážková 1424/20, 702 00 Ostrava – Moravská Ostrava
B12: IČ: | C12: ='Identifikační údaje'!B14 -> 258 58 343
B13: DIČ: | C13: ='Identifikační údaje'!B15 -> CZ25858343
A15: Uchazeč: | C15: ='Identifikační údaje'!E19 -> , ,
B16: IČ: | C16: ='Identifikační údaje'!B23 -> 0
B17: DIČ: | C17: ='Identifikační údaje'!B24 -> 0
A19: Místo stavby: | C19: ='Identifikační údaje'!B3 -> Budova Českého rozhlasu Olomouc na adrese Pavelčákova 2/19, 779 00 Olomouc
A21: Datum vyplnění: | C21: ='Identifikační údaje'!B5 -> 00:00:00
A23: =CONCATENATE("REKAPITULACE DODÁVEK A PRACÍ OBJEKTU ",'Rekapitulace stavby'!I53) -> REKAPITULACE DODÁVEK A PRACÍ OBJEKTU SO 01 - Zdravotně technické instalace
A25: P.č. | B25: Číslo položky | C25: Název položky | D25: Kč bez DPH
B27: Kanalizace | G27: =SUBTOTAL(9,G28:P34) -> 0
A28: Díl: | B28: =B52 -> 1 | C28: =C52 -> Zemní práce | G28: =G52 -> 0
A29: Díl: | B29: =B63 -> 2 | C29: =C63 -> Základy a zvláštní zakládání | G29: =G63 -> 0
A30: Díl: | B30: =B66 -> 4 | C30: =C66 -> Vodorovné konstrukce | G30: =G66 -> 0
A31: Díl: | B31: =B68 -> 8 | C31: =C68 -> Trubní vedení | G31: =G68 -> 0
A32: Díl: | B32: =B74 -> 97 | C32: =C74 -> Prorážení otvorů | G32: =G74 -> 0
A33: Díl: | B33: =B77 -> 713 | C33: =C77 -> Izolace tepelné | G33: =G77 -> 0
A34: Díl: | B34: =B89 -> 721 | C34: =C89 -> Vnitřní kanalizace | G34: =G89 -> 0
B35: Vodovod | G35: =SUBTOTAL(9,G36:P38) -> 0
A36: Díl: | B36: =B259 -> 97 | C36: =C259 -> Prorážení otvorů | G36: =G259 -> 0
A37: Díl: | B37: =B262 -> 713 | C37: =C262 -> Izolace tepelné | G37: =G262 -> 0
A38: Díl: | B38: =B272 -> 722 | C38: =C272 -> Vnitřní vodovod | G38: =G272 -> 0
B39: Zařizovací předměty | G39: =SUBTOTAL(9,G40:P42) -> 0
A40: Díl: | B40: =B375 -> 3 | C40: =C375 -> Svislé a kompletní konstrukce | G40: =G375 -> 0
A41: Díl: | B41: =B383 -> 725 | C41: =C383 -> Zařizovací předměty | G41: =G383 -> 0
A42: Díl: | B42: =B428 -> D96 | C42: =C428 -> Přesuny suti a vybouraných hmot | G42: =G428 -> 0
A44: =CONCATENATE("CELKEM ZA OBJEKT ",'Rekapitulace stavby'!I53, " v Kč bez DPH") -> CELKEM ZA OBJEKT SO 01 - Zdravotně technické instalace v Kč bez DPH | D44: =SUBTOTAL(9,G27:G42) -> 0
A50: P.č. | B50: Číslo položky | C50: Název položky | D50: MJ | E50: množství | F50: cena / MJ | G50: celkem
C51: KANALIZACE | G51: =SUBTOTAL(9,G52:G257) -> 0
A52: Díl: | B52: 1 | C52: Zemní práce | G52: =SUBTOTAL(9,G53:G62) -> 0
A53: 1 | B53: 115101201R00 | C53: Čerpání vody na výšku do 10 m, přítok do 500 l | D53: h | E53: 160 | G53: =E53*F53 -> 0
A54: =A53+1 -> 2 | B54: 115101301R00 | C54: Pohotovost čerp.soupravy, výška 10 m, přítok 500 l | D54: den | E54: 10 | G54: 0
A55: =A54+1 -> 3 | B55: 132201219R00 | C55: Příplatek za lepivost - hloubení rýh 200cm v hor.3 | D55: m3 | E55: 145 | G55: 0
A56: 4 | B56: 139601102R00 | C56: Ruční výkop jam, rýh a šachet v hornině tř. 3 | D56: m3 | E56: 145 | G56: 0
A57: 5 | B57: 161101101R00 | C57: Svislé přemístění výkopku z hor.1-4 do 2,5 m | D57: m3 | E57: 195 | G57: 0
A58: 6 | B58: 162701105R00 | C58: Vodorovné přemístění výkopku z hor.1-4 do 10000 m | D58: m3 | E58: 195 | G58: 0
A59: 7 | B59: 167101101R00 | C59: Nakládání výkopku z hor.1-4 v množství do 100 m3 | D59: m3 | E59: 195 | G59: 0
A60: 8 | B60: 172103109R00 | C60: Příplatek za každé % zhutnění nad 100 do 103%PS | D60: m3 | E60: 115 | G60: 0
A61: 9 | B61: 175101109R00 | C61: Příplatek za prohození sypaniny pro obsyp potrubí | D61: m3 | E61: 80 | G61: 0
A62: 10 | B62: 199000002R00 | C62: Poplatek za skládku horniny 1- 4 | D62: m3 | E62: 195 | G62: 0
A63: Díl: | B63: 2 | C63: Základy a zvláštní zakládání | G63: =SUBTOTAL(9,G64:P65) -> 0
A64: =A62+1 -> 11 | B64: 212753214R00 | C64: Montáž tuhé drenáž. trubky do rýhy DN 100,bez lože | D64: m | E64: 100 | G64: =E64*F64 -> 0
A65: =A64+1 -> 12 | B65: 28611054R | C65: HEGLER EURODRAIN trubka drenážní PVC DN 100 perforovaná | D65: m | E65: 100 | G65: 0
A66: Díl: | B66: 4 | C66: Vodorovné konstrukce | G66: =SUBTOTAL(9,G67:P67) -> 0
A67: =A65+1 -> 13 | B67: 451572111RK6 | C67: Lože pod potrubí z kameniva těženého 0 - 4 mm kraj Moravskoslezský | D67: m3 | E67: 115 | G67: =E67*F67 -> 0
A68: Díl: | B68: 8 | C68: Trubní vedení | G68: =SUBTOTAL(9,G69:P73) -> 0
A69: =A67+1 -> 14 | B69: 871161121R00 | C69: Montáž trubek polyetylenových ve výkopu d 32 mm | D69: m | E69: 5 | G69: =E69*F69 -> 0
A70: =A69+1 -> 15 | B70: 871211121R00 | C70: Montáž trubek polyetylenových ve výkopu d 63 mm | D70: m | E70: 20 | G70: 0
A71: =A70+1 -> 16 | B71: 894431112R00 | C71: Osazení plastové šachty z dílů prům.600 mm, Wavin | D71: kus | E71: 1 | G71: 0
A72: 17 | B72: 894432112R00 | C72: Osazení plastové šachty revizní prům.425 mm, Wavin | D72: kus | E72: 6 | G72: 0
A73: 18 | B73: 899103111R00 | C73: Osazení poklopu s rámem do 150 kg | D73: kus | E73: 7 | G73: 0
A74: Díl: | B74: 97 | C74: Prorážení otvorů | G74: =SUBTOTAL(9,G75:P76) -> 0
A75: =A73+1 -> 19 | B75: 97-R01 | C75: Vyvrtání prostupu pro kanalizační potrubí Dodávka + montáž | D75: ks | E75: 30 | G75: =E75*F75 -> 0
A76: =A75+1 -> 20 | B76: 979082111R00 | C76: Vnitrostaveništní doprava suti do 10 m | D76: t | E76: 131.78814 | G76: 0
A77: Díl: | B77: 713 | C77: Izolace tepelné | G77: =SUBTOTAL(9,G78:P88) -> 0
A78: =A76+1 -> 21 | B78: 713571111R00 | C78: Požárně ochranná manžeta hl. 60 mm, EI 90, D 50 mm Dodávka + montáž | D78: kus | E78: 2 | G78: =E78*F78 -> 0
C79: Montáž manžety ke stěně nebo stropu pomocí rozpěrné hmoždinky se šroubem. Cena obsahuje i dodávku manžety a spojovacích prostředků.
A80: =A78+1 -> 22 | B80: 713571113R00 | C80: Požárně ochranná manžeta hl. 60 mm, EI 90, D 75 mm Dodávka + montáž | D80: kus | E80: 2 | G80: =E80*F80 -> 0
C81: Montáž manžety ke stěně nebo stropu pomocí rozpěrné hmoždinky se šroubem. Cena obsahuje i dodávku manžety a spojovacích prostředků.
A82: =A80+1 -> 23 | B82: 713571115R00 | C82: Požárně ochranná manžeta hl. 60mm, EI 90, D 110 mm Dodávka + montáž | D82: kus | E82: 1 | G82: =E82*F82 -> 0
C83: Montáž manžety ke stěně nebo stropu pomocí rozpěrné hmoždinky se šroubem. Cena obsahuje i dodávku manžety a spojovacích prostředků.
A84: =A82+1 -> 24 | B84: 713571116R00 | C84: Požárně ochranná manžeta hl. 60mm, EI 90, D 125 mm Dodávka + montáž | D84: kus | E84: 3 | G84: =E84*F84 -> 0
C85: Montáž manžety ke stěně nebo stropu pomocí rozpěrné hmoždinky se šroubem. Cena obsahuje i dodávku manžety a spojovacích prostředků.
A86: =A84+1 -> 25 | B86: 713571118R00 | C86: Požárně ochranná manžeta hl. 60mm, EI 90, D 160 mm Dodávka + montáž | D86: kus | E86: 1 | G86: =E86*F86 -> 0
C87: Montáž manžety ke stěně nebo stropu pomocí rozpěrné hmoždinky se šroubem. Cena obsahuje i dodávku manžety a spojovacích prostředků.
A88: =A86+1 -> 26 | B88: 998713103R00 | C88: Přesun hmot pro izolace tepelné, výšky do 24 m | D88: t | E88: 0.01 | G88: =E88*F88 -> 0
A89: Díl: | B89: 721 | C89: Vnitřní kanalizace | G89: =SUBTOTAL(9,G90:P257) -> 0
A90: =A88+1 -> 27 | B90: 871181121R00 | C90: Montáž trubek polyetylenových ve výkopu d 50 mm | D90: m | E90: 4 | G90: =E90*F90 -> 0
A91: =A90+1 -> 28 | B91: 871313121R00 | C91: Montáž trub z plastu, gumový kroužek, DN 150 | D91: m | E91: 73 | G91: 0
A92: =A91+1 -> 29 | B92: 871353121R00 | C92: Montáž trub z plastu, gumový kroužek, DN 200 | D92: m | E92: 25 | G92: 0
A93: 30 | B93: 721171803R00 | C93: Demontáž potrubí z PVC do D 75 mm | D93: m | E93: 20 | G93: 0
A94: 31 | B94: 721171808R00 | C94: Demontáž potrubí z PVC do DN 114 | D94: m | E94: 40 | G94: 0
A95: 32 | B95: 721171809R00 | C95: Demontáž potrubí z PVC do DN 160 | D95: m | E95: 60 | G95: 0
A96: 33 | B96: 721176101R00 | C96: Potrubí HT připojovací D 32 x 1,8 mm Dodávka + montáž | D96: m | E96: 120 | G96: 0
C97: Potrubí včetně tvarovek. Bez zednických výpomocí.
A98: =A96+1 -> 34 | B98: 721176102R00 | C98: Potrubí HT připojovací D 40 x 1,8 mm Dodávka + montáž | D98: m | E98: 15 | G98: =E98*F98 -> 0
C99: Potrubí včetně tvarovek. Bez zednických výpomocí.
A100: =A98+1 -> 35 | B100: 721176103R00 | C100: Potrubí HT připojovací DN 50 x 1,8 mm Dodávka + montáž | D100: m | E100: 95 | G100: =E100*F100 -> 0
A101: =A100+1 -> 36 | B101: 721176104R00 | C101: Potrubí HT připojovací DN 70 x 1,9 mm Dodávka + montáž | D101: m | E101: 3 | G101: 0
A102: 37 | B102: 721176105R00 | C102: Potrubí HT připojovací DN 100 x 2,7 mm Dodávka + montáž | D102: m | E102: 35 | G102: 0
A103: 38 | B103: 721176114R00 | C103: Potrubí HT odpadní svislé D 75 x 1,9 mm Dodávka + montáž | D103: m | E103: 5.5 | G103: 0
C104: Potrubí včetně tvarovek, objímek a vložek pro tlumení hluku. Bez zednických výpomocí.
C105: Včetně zřízení a demontáže pomocného lešení.
A106: =A103+1 -> 39 | B106: 721176115R00 | C106: Potrubí HT odpadní svislé D 110 x 2,7 mm Dodávka + montáž | D106: m | E106: 35 | G106: =E106*F106 -> 0
C107: Potrubí včetně tvarovek, objímek a vložek pro tlumení hluku. Bez zednických výpomocí.
C108: Včetně zřízení a demontáže pomocného lešení.
A109: =A106+1 -> 40 | B109: 721176212R00 | C109: Potrubí KG odpadní svislé D 110 x 3,2 mm Dodávka + montáž | D109: m | E109: 2 | G109: =E109*F109 -> 0
C110: Potrubí včetně tvarovek, objímek a vložek pro tlumení hluku. Bez zednických výpomocí.
C111: Včetně zřízení a demontáže pomocného lešení.
A112: =A109+1 -> 41 | B112: 721176213R00 | C112: Potrubí KG odpadní svislé D 125 x 3,2 mm Dodávka + montáž | D112: m | E112: 12 | G112: =E112*F112 -> 0
C113: Potrubí včetně tvarovek, objímek a vložek pro tlumení hluku. Bez zednických výpomocí.
C114: Včetně zřízení a demontáže pomocného lešení.
A115: =A112+1 -> 42 | B115: 721176214R00 | C115: Potrubí KG odpadní svislé D 160 x 4,0 mm Dodávka + montáž | D115: m | E115: 3 | G115: =E115*F115 -> 0
C116: Potrubí včetně tvarovek, objímek a vložek pro tlumení hluku. Bez zednických výpomocí.
C117: Včetně zřízení a demontáže pomocného lešení.
A118: =A115+1 -> 43 | B118: 721177714R00 | C118: Potrubí Wavin SiTech+ odpadní svislé D 75 x 2,6 mm Dodávka+montáž | D118: m | E118: 23 | G118: =E118*F118 -> 0
C119: Potrubí včetně tvarovek a objímek. Bez zednických výpomocí.
C120: Včetně pomocného lešení o výšce podlahy do 1900 mm a pro zatížení do 1,5 kPa.
A121: =A118+1 -> 44 | B121: 721177715R00 | C121: Potrubí Wavin SiTech+ odpadní svislé D 110 x 3,6mm Dodávka+montáž | D121: m | E121: 100 | G121: =E121*F121 -> 0
C122: Potrubí včetně tvarovek a objímek. Bez zednických výpomocí.
C123: Včetně pomocného lešení o výšce podlahy do 1900 mm a pro zatížení do 1,5 kPa.
A124: =A121+1 -> 45 | B124: 721177716R00 | C124: Potrubí Wavin SiTech+ odpadní svislé D 125 x 4,0mm Dodávka+montáž | D124: m | E124: 15 | G124: =E124*F124 -> 0
C125: Potrubí včetně tvarovek a objímek. Bez zednických výpomocí.
C126: Včetně pomocného lešení o výšce podlahy do 1900 mm a pro zatížení do 1,5 kPa.
A127: =A124+1 -> 46 | B127: 721177734R00 | C127: Potrubí Wavin SiTech+ ležaté zavěšené D 75 x 2,6mm Dodávka+montáž | D127: m | E127: 5.5 | G127: =E127*F127 -> 0
C128: Potrubí včetně tvarovek a objímek. Bez zednických výpomocí.
C129: Včetně pomocného lešení o výšce podlahy do 1900 mm a pro zatížení do 1,5 kPa.
A130: =A127+1 -> 47 | B130: 721177735R00 | C130: Potrubí Wavin SiTech+ ležaté zavěšené D110 x 3,6mm Dodávka+montáž | D130: m | E130: 15 | G130: =E130*F130 -> 0
C131: Potrubí včetně tvarovek a objímek. Bez zednických výpomocí.
C132: Včetně pomocného lešení o výšce podlahy do 1900 mm a pro zatížení do 1,5 kPa.
A133: =A130+1 -> 48 | B133: 721177724R00 | C133: Čisticí kus Wavin SiTech+, odpadní svislé D 75 Dodávka+montáž | D133: kus | E133: 1 | G133: =E133*F133 -> 0
A134: =A133+1 -> 49 | B134: 721177725R00 | C134: Čisticí kus Wavin SiTech+, odpadní svislé D 110 Dodávka+montáž | D134: kus | E134: 4 | G134: 0
A135: =A134+1 -> 50 | B135: 721177726R00 | C135: Čisticí kus Wavin SiTech+, odpadní svislé D 125 Dodávka+montáž | D135: kus | E135: 1 | G135: 0
A136: 51 | B136: 721177727R00 | C136: Čisticí kus Wavin SiTech+, odpadní svislé D 160 Dodávka+montáž | D136: kus | E136: 1 | G136: 0
A137: 52 | B137: 721242115R00 | C137: Lapač střešních splavenin litinový DN 100 Dodávka+montáž | D137: kus | E137: 2 | G137: 0
A138: 53 | B138: 721273180R00 | C138: Ventil přivzdušňovací podomítkový HL905 | D138: kus | E138: 3 | G138: 0
A139: 54 | B139: 721273200RT2 | C139: Souprava ventilační střešní HL souprava větrací hlavice PP HL807 D 75 mm | D139: kus | E139: 1 | G139: 0
A140: 55 | B140: 721273200RT3 | C140: Souprava ventilační střešní HL souprava větrací hlavice PP HL810 D 110 mm | D140: kus | E140: 3 | G140: 0
A141: 56 | B141: 721290111R00 | C141: Zkouška těsnosti kanalizace vodou DN 125 | D141: m | E141: 538 | G141: 0
A142: 57 | B142: 721290112R00 | C142: Zkouška těsnosti kanalizace vodou DN 200 | D142: m | E142: 90 | G142: 0
A143: 58 | B143: 721290123R00 | C143: Zkouška těsnosti kanalizace kouřem DN 300 | D143: m | E143: 628 | G143: 0
A144: 59 | B144: 28375-R01 | C144: Uložení EPS nad kanalizační potrubí jen montáž | D144: m | E144: 1 | G144: 0
A145: 60 | B145: 721176-01 | C145: Potrubí KG svodné (ležaté) v zemi D 110 x 3,2 mm Dodávka+montáž | D145: m | E145: 20 | G145: 0
C146: Položka obsahuje:
C147: - trubka kanalizační KGEM SN 8 PVC 110x3,2x1000 mm (0,8 kus)
C148: - koleno kanalizační KGB 110/ 45° PVC (1 kus)
C149: - koleno kanalizační KGB 110/ 87° PVC (1 kus)
C150: - redukce kanalizační KGR 125/110 PVC (0,1 kus)
C151: - odbočka kanalizační KGEA 110/110/ 87° PVC (0,2 kus)
C152: - přesuvka kanalizační KGU 110 PVC (0,1 kus)
C153: - mazivo MGN tuba 250 g (0,0168 kus)
C154: - Instaláter - třída 6 (0,8Nh)
A155: =A145+1 -> 61 | B155: 721176-02 | C155: Potrubí KG svodné (ležaté) v zemi D 125 x 3,2 mm Dodávka+montáž | D155: m | E155: 36 | G155: =E155*F155 -> 0
C156: Položka obsahuje:
C157: - trubka kanalizační KGEM SN 8 PVC 125x3,2x1000 mm (0,8 kus)
C158: - koleno kanalizační KGB 125/ 45° PVC (1 kus)
C159: - koleno kanalizační KGB 125/ 87° PVC (1 kus)
C160: - redukce kanalizační KGR 160/125 PVC (0,1 kus)
C161: - odbočka kanalizační KGEA 125/110/ 87° PVC (0,1 kus)
C162: - odbočka kanalizační KGEA 125/125/ 87° PVC (0,2 kus)
C163: - přesuvka kanalizační KGU 125 PVC (0,1 kus)
C164: - mazivo MGN tuba 250 g (0,0216 kus)
C165: - Instaláter - třída 6 (0,8Nh)
A166: =A155+1 -> 62 | B166: 721176-03 | C166: Potrubí KG svodné (ležaté) v zemi D 160 x 4,0 mm Dodávka+montáž | D166: m | E166: 5 | G166: =E166*F166 -> 0
C167: Položka obsahuje:
C168: - trubka kanalizační KGEM SN 8 PVC 150x4,0x1000 mm (0,8 kus)
C169: - koleno kanalizační KGB 160/ 87° PVC (1,2 kus)
C170: - redukce kanalizační KGR 200/160 PVC (0,1 kus)
C171: - odbočka kanalizační KGEA 160/125/ 87° PVC (0,1 kus)
C172: - odbočka kanalizační KGEA 160/160/ 87° PVC (0,1 kus)
C173: - přesuvka kanalizační KGU 160 PVC (0,1 kus)
C174: - mazivo MGN tuba 250 g (0,02920 kus)
C175: - Instaláter - třída 6 (0,55Nh)
A176: =A166+1 -> 63 | B176: 72117610-R125 | C176: Potrubí HT připojovací DN 125 x 2,7 mm Dodávka + montáž | D176: m | E176: 6 | G176: =E176*F176 -> 0
A177: =A176+1 -> 64 | B177: 721-R01 | C177: Tepelná izolace potrubí 30/114 Dodávka+montáž | D177: m | E177: 15 | G177: 0
A178: =A177+1 -> 65 | B178: 721-R02 | C178: Tepelná izolace potrubí 30/76 Dodávka+montáž | D178: m | E178: 3 | G178: 0
A179: 66 | B179: 721-R03 | C179: Kondenzační sifon podomítkový DN32 | D179: ks | E179: 7 | G179: 0
A180: 67 | B180: 721-R04 | C180: Připojení potrubí pro odvod kondenzátu | D180: ks | E180: 23 | G180: 0
C181: Položka obsahuje
C182: -připojení potrubí pro odvod kondenzátu
C183: -pachové utěsnění
C184: -včetně úpravy a kracení odpadní trubky VZT jednotek
A185: =A180+1 -> 68 | B185: 721-R05 | C185: Automatická zpětná armatura proti vzduté vodě DN100 Dodávka+montáž | D185: ks | E185: 3 | G185: =E185*F185 -> 0
C186: Automatická zpětná armatura proti vzduté vodě DN200 se dvěma klapkami z nerezové oceli a ručním zajištěním jedné klapky a kryty k čištění.
A187: =A185+1 -> 69 | B187: 721-R07 | C187: Zápachová uzávěrka DN110 (patní sifon), 7,5l/s Dodávka+montáž | D187: ks | E187: 1 | G187: =E187*F187 -> 0
A188: =A187+1 -> 70 | B188: 721-R08 | C188: Vodní zápachová uzávěrka DN32/DN40 Dodávka+montáž | D188: ks | E188: 5 | G188: 0
C189: Vodní zápachová uzávěrka DN 40 pro odvod kondenzátu - transparentní s mechanickou zápachovou uzávěrkou (kulička) a čistící vložkou, se svěrným těsněním pro DN32 a násuvným těsněnímí 12-18mm.
A190: =A188+1 -> 71 | B190: 721-R09 | C190: Čistící tvarovka DN75 Dodávka + montáž | D190: ks | E190: 1 | G190: =E190*F190 -> 0
C191: Položka obsahuje:
C192: -čistící tvarovka [např. HTRE 100]
C193: -revizní dvířka, včetně příslušenství
C194: -cena zahrnuje náklady přípojení na potrubí, osazení revizních dvířek včetně montážního materiálu a zednické výpomoci
A195: =A190+1 -> 72 | B195: 721-R10 | C195: Čistící tvarovka obdélníkový uzávěr DN 125 Dodávka + montáž | D195: ks | E195: 4 | G195: =E195*F195 -> 0
C196: Položka obsahuje:
C197: -čistící tvarovka [např. HTRE 100]
C198: -revizní dvířka, včetně příslušenství
C199: -cena zahrnuje náklady přípojení na potrubí, osazení revizních dvířek včetně montážního materiálu a zednické výpomoci
A200: =A195+1 -> 73 | B200: 721-R11 | C200: Čistící tvarovka obdélníkový uzávěr DN 150 Dodávka + montáž | D200: ks | E200: 1 | G200: =E200*F200 -> 0
C201: Položka obsahuje:
C202: -čistící tvarovka [např. HTRE 100]
C203: -revizní dvířka, včetně příslušenství
C204: -cena zahrnuje náklady přípojení na potrubí, osazení revizních dvířek včetně montážního materiálu a zednické výpomoci
A205: =A200+1 -> 74 | B205: 721-R12 | C205: Přečerpávač kondenzátu 2 l/min, 230V Dodávka + montáž | D205: ks | E205: 2 | G205: =E205*F205 -> 0
A206: =A205+1 -> 75 | B206: 721-R13 | C206: Kalové čerpadlo 125 l/min Dodávka + montáž | D206: ks | E206: 1 | G206: 0
C207: Kalové čerpadlo s plovákem uvnitř jímky (např. VERTY NOVA 200M)
C208: - průtok 125 l/min; napětí 230 V; délka kabelu 10m
A209: =A206+1 -> 76 | B209: 721-R14 | C209: Kalové čerpadlo 160 l/min Dodávka + montáž | D209: ks | E209: 1 | G209: =E209*F209 -> 0
C210: Kalové čerpadlo s plovákem uvnitř jímky (např. VERTY NOVA 400M)
C211: - průtok 160 l/min; napětí 230 V; délka kabelu 10m
A212: =A209+1 -> 77 | B212: 721-R15 | C212: Nadzemní plastová jímka objem 100 L (např. IVAR.ELBC-100) Dodávka + montáž | D212: ks | E212: 1 | G212: =E212*F212 -> 0
C213: Kalové čerpadlo s plovákem uvnitř jímky (např. VERTY NOVA 400M)
C214: - průtok 160 l/min; napětí 230 V; délka kabelu 10m
A215: =A212+1 -> 78 | B215: 721-R16 | C215: Kalové čerpadlo s plovákem uvnitř jímky; 500 l/min; napětí 3x400V Dodávka + montáž | D215: ks | E215: 1 | G215: =E215*F215 -> 0
... 214 more rows

Sheet 03_SO 01 - VZT
A1: =CONCATENATE('Rekapitulace stavby'!C54,"_",'Rekapitulace stavby'!I54) -> 03_SO 01 - Vzduchotechnika
A3: SPECIFIKACE DODÁVEK A PRACÍ
A4: Název akce:
A5: ='Identifikační údaje'!B1 -> ČRo Olomouc – rekonstrukce objektu Pavelčákova 2/19
A7: Zadavatel: | D7: ='Identifikační údaje'!E7 -> Český rozhlas, Vinohradská 12, 120 99 Praha 2
B8: IČ: | D8: ='Identifikační údaje'!B9 -> 45245053
B9: DIČ: | D9: ='Identifikační údaje'!B10 -> CZ45245053
A11: Projektant: | D11: ='Identifikační údaje'!E12 -> ATELIER 38 s.r.o., Porážková 1424/20, 702 00 Ostrava – Moravská Ostrava
B12: IČ: | D12: ='Identifikační údaje'!B14 -> 258 58 343
B13: DIČ: | D13: ='Identifikační údaje'!B15 -> CZ25858343
A15: Uchazeč: | D15: ='Identifikační údaje'!E19 -> , ,
B16: IČ: | D16: ='Identifikační údaje'!B23 -> 0
B17: DIČ: | D17: ='Identifikační údaje'!B24 -> 0
A19: Místo stavby: | D19: ='Identifikační údaje'!B3 -> Budova Českého rozhlasu Olomouc na adrese Pavelčákova 2/19, 779 00 Olomouc
A21: Datum vyplnění: | D21: ='Identifikační údaje'!B5 -> 00:00:00
A23: =CONCATENATE("REKAPITULACE DODÁVEK A PRACÍ OBJEKTU ",'Rekapitulace stavby'!I54) -> REKAPITULACE DODÁVEK A PRACÍ OBJEKTU SO 01 - Vzduchotechnika
A25: P.č. | B25: Číslo položky | D25: Název položky | E25: Kč bez DPH
A27: Díl: | B27: =B38 -> 713 | D27: =C38 -> Izolace tepelné | H27: =H38 -> 0
A28: Díl: | B28: =B44 -> 751 | D28: =C44 -> Vzduchotechnika | H28: =H44 -> 0
A29: Díl: | B29: =B373 -> OST | D29: =C373 -> Ostatní | H29: =H373 -> 0
A31: =CONCATENATE("CELKEM ZA OBJEKT ",'Rekapitulace stavby'!I54, " v Kč bez DPH") -> CELKEM ZA OBJEKT SO 01 - Vzduchotechnika v Kč bez DPH | E31: =SUM(H27:H29) -> 0
A37: PČ | B37: TYP | C37: KÓD | D37: Popis | E37: MJ | F37: Množství | G37: Cena / MJ | H37: Celkem
B38: 713 | C38: Izolace tepelné | H38: =SUBTOTAL(9,H39:H43) -> 0
A39: 600m | B39: K | C39: 713 41 1111 | D39: Montáž izolace tepelné potrubí pásy nebo rohožemi tl.40mm | E39: m2 | F39: 1199 | H39: =F39*G39 -> 0
A40: 600 | B40: M | C40: 631 51 671 | D40: Tepelná izolace minerální vata tl.40mm+Al polep (m=55kg/m3) | E40: m2 | F40: 661 | H40: =F40*G40 -> 0
A41: 601 | B41: M | C41: 631 42 670 | D41: Akustická izolace minerální vata tl.60mm+Al polep (m=80kg/m3) | E41: m2 | F41: 229 | H41: 0
A42: 602 | B42: M | C42: 631 50 980 | D42: Tepelná izolace minerální vata tl.20mm+Al polep (m=25kg/m3) | E42: m2 | F42: 271 | H42: 0
A43: 603 | B43: M | C43: 631 53 565 | D43: Požární izolace minerální vata tl.40mm+Al polep (m=65kg/m3) | E43: m2 | F43: 38 | H43: 0
B44: 751 | C44: Vzduchotechnika | H44: =SUBTOTAL(9,H45:H372) -> 0
D45: AHU K1 - kanceláře+studia-přívod a odvod vzduchu | H45: =SUBTOTAL(9,H46:H95) -> 0
A46: K1.01m | B46: K | C46: 751 61 1115R | D46: Mtž vzduchotechnické jednotky pos. K1.01 | E46: kus | F46: 1 | H46: =F46*G46 -> 0
A47: K1.01 | B47: M | D47: Kompaktní vzduchotechnická jednotka Qv=6000m3/h dle standardu VZT1 | E47: kus | F47: 1 | H47: 0
A48: K1.02m | B48: K | C48: 751 61 1118R | D48: Mtž zvlhčovače pos. K1.02 | E48: kus | F48: 1 | H48: 0
A49: K1.02 | B49: M | D49: Odporový vyvíječ páry m=24kg/h, U=400V, včetně příslušenství dle standardu VZT4 | E49: kus | F49: 1 | H49: 0
A50: K1.03m | B50: K | C50: 751 39 8056 | D50: Mtž protidešťové žaluzie přes 0,75m2 | E50: kus | F50: 2 | H50: 0
A51: K1.03 | B51: M | D51: Protidešťová žaluzie pozinkovaná s rámem a sítem, lakovaná RAL xxxx, 710x1250mm | E51: kus | F51: 2 | H51: 0
A52: K1.10m | B52: K | C52: 751 32 2132 | D52: Mtž anemostatu vířivého se skř. Do 0,2m2 | E52: kus | F52: 15 | H52: 0
A53: K1.10 | B53: M | D53: Anemostat kruhový s připojovací skříní kruhovou s horizontálním napojením a rgulační klapkou DN160, barva RAL 9010, velikost 400x16 | E53: kus | F53: =6+5+4 -> 15 | H53: 0
A54: K1.11m | B54: K | C54: 751 32 2132 | D54: Mtž anemostatu vířivého se skř. Do 0,1m2 | E54: kus | F54: 18 | H54: 0
A55: K1.11 | B55: M | D55: Anemostat kruhový s připojovací skříní kruhovou s horizontálním napojením a rgulační klapkou DN125, barva RAL 9010, velikost 300x8 | E55: kus | F55: =4+4+10 -> 18 | H55: 0
A56: K1.12m | B56: K | C56: 751 32 2011 | D56: Mtž talířového ventilu D do 100 mm | E56: kus | F56: 1 | H56: 0
A57: K1.12 | B57: M | D57: Talířový ventil univerzální, kovový, bílý DN100 se zděří | E57: kus | F57: 1 | H57: 0
A58: K1.13m | B58: K | C58: 751 31 1093 | D58: Mtž vyústky čtyřhranné na čtyřhranné potrubí do 0,15m2 | E58: kus | F58: 1 | H58: 0
A59: K1.13 | B59: M | D59: Vyústka jednořadá s regulací R1, 600x250mm na čtyřhranné potrubí, bílá | E59: kus | F59: 1 | H59: 0
A60: K1.14m | B60: K | C60: 751 31 1091 | D60: Mtž vyústky čtyřhranné na čtyřhranné potrubí do 0,04m2 | E60: kus | F60: 2 | H60: 0
A61: K1.14 | B61: M | D61: Vyústka jednořadá s regulací R1, 200x100mm na čtyřhranné potrubí, bílá | E61: kus | F61: 2 | H61: 0
A62: K1.20m | B62: K | C62: 751 34 4125 | D62: Mtž tl. hluku nad 0,6m2/bm | E62: kus | F62: 3 | H62: 0
A63: K1.20 | B63: M | D63: Kulisový tlumič hluku 1050x750-750, š. kulisy 200, počet kulis 4, dle standardu TLU1 | E63: kus | F63: 3 | H63: 0
A64: K1.21m | B64: K | C64: 751 34 4125 | D64: Mtž tl. hluku nad 0,6m2/bm | E64: kus | F64: 3 | H64: 0
A65: K1.21 | B65: M | D65: Kulisový tlumič hluku 1050x750-1000, š. kulisy 200, počet kulis 4, dle standardu TLU1 | E65: kus | F65: 1 | H65: 0
A66: K1.22m | B66: K | C66: 751 34 4112 | D66: Mtž tl. hluku kruhového D do 200mm | E66: kus | F66: 34 | H66: 0
A67: K1.22 | B67: M | D67: Tlumič hluku přeslechový, ohebný DN125, l=1m, tl. Izolace 25mm | E67: kus | F67: =9+9+10+6 -> 34 | H67: 0
A68: K1.23m | B68: K | C68: 751 39 8022 | D68: Mtž větrací mřížky stěnové do 0,1m2 | E68: kus | F68: =5+4+3 -> 12 | H68: 0
A69: K1.23 | B69: M | D69: Obdélníková mřížka s přeslechovým tlumičem 400x130mm s oboustranným bílým panelem | E69: kus | F69: 12 | H69: 0
A70: K1.24m | B70: K | C70: 751 39 8022 | D70: Mtž větrací mřížky stěnové do 0,1m2 | E70: kus | F70: =3+2+3+7 -> 15 | H70: 0
A71: K1.24 | B71: M | D71: Obdélníková mřížka s přeslechovým tlumičem 600x130mm s oboustranným bílým panelem | E71: kus | F71: 15 | H71: 0
A72: K1.25m | B72: K | C72: 751 39 8023 | D72: Mtž větrací mřížky stěnové do 0,15m2 | E72: kus | F72: =1+1+3 -> 5 | H72: 0
A73: K1.25 | B73: M | D73: Obdélníková mřížka s přeslechovým tlumičem 800x130mm s oboustranným bílým panelem | E73: kus | F73: 5 | H73: 0
A74: K1.26m | B74: K | C74: 751 39 8022 | D74: Mtž větrací mřížky stěnové do 0,1m2 | E74: kus | F74: 6 | H74: 0
A75: K1.26m | B75: M | D75: Stěnová mřížka hliníková 300x100mm, rozteč lamel t=20mm | E75: kus | F75: 6 | H75: 0
A76: K1.40m | B76: K | C76: 751 39 8093R | D76: Mtž regulátoru průtoku čtyřhranného | E76: kus | F76: 2 | H76: 0
A77: K1.40 | B77: M | D77: Regulátor průtoku variabilní s pohonem 24V, 0-10V, 600x500mm | E77: kus | F77: 2 | H77: 0
A78: K1.41m | B78: K | C78: 751 51 4680 | D78: Mtž škrticí klapky do potrubí do D 300 | E78: kus | F78: 1 | H78: 0
A79: K1.41 | B79: M | D79: Regulační klapka kruhová ruční DN250 | E79: kus | F79: 1 | H79: 0
A80: K1.42m | B80: K | C80: 751 51 4879 | D80: Mtž škrticí klapky do potrubí do D 200 | E80: kus | F80: 2 | H80: 0
A81: K1.42 | B81: M | D81: Regulační klapka kruhová ruční DN200 | E81: kus | F81: 2 | H81: 0
A82: K1.43m | B82: K | C82: 751 51 4879 | D82: Mtž škrticí klapky do potrubí do D 200 | E82: kus | F82: 5 | H82: 0
A83: K1.43 | B83: M | D83: Regulační klapka kruhová ruční DN125 | E83: kus | F83: 5 | H83: 0
A84: K1.44m | B84: K | C84: 751 51 4879 | D84: Mtž škrticí klapky do potrubí do D 200 | E84: kus | F84: 1 | H84: 0
A85: K1.44 | B85: M | D85: Regulační klapka kruhová ruční DN180 | E85: kus | F85: 1 | H85: 0
A86: K1.45m | B86: K | C86: 751 51 4612 | D86: Mtž škrticí klapky s přírubou do potrubí 0,07m2 | E86: kus | F86: 1 | H86: 0
A87: K1.45 | B87: M | D87: Regulační klapka čtyřhranná ruční 315x200 | E87: kus | F87: 1 | H87: 0
A88: K1.50m | B88: K | C88: 751 51 4813R | D88: Mtž požární klapky do potrubí do 0,14m2 | E88: kus | F88: 1 | H88: 0
A89: K1.50 | B89: M | D89: Požární klapka 400x250, PI90, se servopohonem 230V, signalizací krajní polohy listu a montážním kitem pro suchou montáž | E89: kus | F89: 1 | H89: 0
A90: K1.51m | B90: K | C90: 751 51 4862R | D90: Mtž požární klapky do potrubí do D 200 | E90: kus | F90: 5 | H90: 0
A91: K1.51 | B91: M | D91: Požární klapka DN200, PI90, se servopohonem 230V, signalizací krajní polohy listu a montážním kitem pro suchou montáž | E91: kus | F91: 5 | H91: 0
A92: K1.52m | B92: K | C92: 751 51 4812R | D92: Mtž požární klapky do potrubí do 0,07m2 | E92: kus | F92: 1 | H92: 0
A93: K1.52 | B93: M | D93: Požární klapka 350x200, PI90, se servopohonem 230V, signalizací krajní polohy listu a montážním kitem pro suchou montáž | E93: kus | F93: 1 | H93: 0
A94: K1.53m | B94: K | C94: 751 51 4818R | D94: Mtž požární klapky do potrubí do 0,07m2 | E94: kus | F94: 1 | H94: 0
A95: K1.53 | B95: M | D95: Požární klapka 1200x400, PI90, se servopohonem 230V, signalizací krajní polohy listu a montážním kitem pro suchou montáž | E95: kus | F95: 1 | H95: 0
D96: AHU S1 - studio 016+017-přívod a odvod vzduchu | H96: =SUBTOTAL(9,H97:H114) -> 0
A97: S1.01m | B97: K | C97: 751 61 1116R | D97: Mtž vzduchotechnické jednotky pos. S1.01 | E97: kus | F97: 1 | H97: =F97*G97 -> 0
A98: S1.01 | B98: M | D98: Přívodní vzduchotechnická jednotka Qv=1600m3/h dle standardu VZT2 | E98: kus | F98: 1 | H98: 0
A99: S1.02m | B99: K | C99: 751 61 1118R | D99: Mtž zvlhčovače pos. S1.02 | E99: kus | F99: 1 | H99: 0
A100: S1.02 | B100: M | D100: Odporový vyvíječ páry m=5kg/h, U=230V, včetně příslušenství dle standardu VZT4 | E100: kus | F100: 1 | H100: 0
A101: S1.20m | B101: K | C101: 751 34 4122 | D101: Mtž tl. hluku do 0,3m2/bm | E101: kus | F101: 4 | H101: 0
A102: S1.20 | B102: M | D102: Kulisový tlumič hluku 560x355-1000, š. kulisy 200, počet kulis 2, dle standardu TLU1 | E102: kus | F102: 4 | H102: 0
A103: S1.21m | B103: K | C103: 751 34 4121 | D103: Mtž tl. hluku do 0,15m2/bm | E103: kus | F103: 4 | H103: 0
A104: S1.21 | B104: M | D104: Kulisový tlumič hluku 315x315-1000, š. kulisy 100, počet kulis 2, dle standardu TLU1 | E104: kus | F104: 4 | H104: 0
A105: S1.22m | B105: K | C105: 751 34 4121 | D105: Mtž tl. hluku do 0,15m2/bm | E105: kus | F105: 4 | H105: 0
A106: S1.22 | B106: M | D106: Kulisový tlumič hluku 450x315-1000, š. kulisy 100, počet kulis 2, dle standardu TLU1 | E106: kus | F106: 4 | H106: 0
A107: S1.23m | B107: K | C107: 751 34 4121 | D107: Mtž tl. hluku do 0,15m2/bm | E107: kus | F107: 4 | H107: 0
A108: S1.23 | B108: M | D108: Kulisový tlumič hluku 500x200-1000, š. kulisy 100, počet kulis 3, dle standardu TLU1 | E108: kus | F108: 4 | H108: 0
A109: S1.40m | B109: K | C109: 751 39 8092 | D109: Mtž regulátoru průtoku konstantního D do 200 | E109: kus | F109: 2 | H109: 0
A110: S1.40 | B110: M | D110: Regulátor průtoku konstantní, DN160 | E110: kus | F110: 2 | H110: 0
A111: S1.41m | B111: K | C111: 751 51 4613 | D111: Mtž škrticí klapky s přírubou do potrubí 0,14m2 | E111: kus | F111: 2 | H111: 0
A112: S1.41 | B112: M | D112: Regulační klapka čtyřhranná ruční 315x315 | E112: kus | F112: 2 | H112: 0
A113: S1.50m | B113: K | C113: 751 51 4813R | D113: Mtž požární klapky do potrubí do 0,14m2 | E113: kus | F113: 2 | H113: 0
A114: S1.50 | B114: M | D114: Požární klapka 315x315, PI90, se servopohonem 230V, signalizací krajní polohy listu a montážním kitem pro suchou montáž | E114: kus | F114: 2 | H114: 0
D115: AHU S2 - studio 120-přívod a odvod vzduchu | H115: =SUBTOTAL(9,H116:H127) -> 0
A116: S2.01m | B116: K | C116: 751 61 1117R | D116: Mtž vzduchotechnické jednotky pos. S2.01 | E116: kus | F116: 1 | H116: =F116*G116 -> 0
A117: S2.01 | B117: M | D117: Přívodní vzduchotechnická jednotka Qv=700m3/h dle standardu VZT3 | E117: kus | F117: 1 | H117: 0
A118: S2.02m | B118: K | C118: 751 61 1118R | D118: Mtž zvlhčovače pos. S1.02 | E118: kus | F118: 1 | H118: 0
A119: S2.02 | B119: M | D119: Odporový vyvíječ páry m=1,5kg/h, U=230V, včetně příslušenství dle standardu VZT4 | E119: kus | F119: 1 | H119: 0
A120: S2.20m | B120: K | C120: 751 34 4122 | D120: Mtž tl. hluku do 0,3m2/bm | E120: kus | F120: 4 | H120: 0
A121: S2.20 | B121: M | D121: Kulisový tlumič hluku 500x315-1000, š. kulisy 200, počet kulis 2, dle standardu TLU1 | E121: kus | F121: 4 | H121: 0
A122: S2.21m | B122: K | C122: 751 34 4121 | D122: Mtž tl. hluku do 0,15m2/bm | E122: kus | F122: 4 | H122: 0
A123: S2.21 | B123: M | D123: Kulisový tlumič hluku 315x315-1000, š. kulisy 100, počet kulis 2, dle standardu TLU1 | E123: kus | F123: 4 | H123: 0
A124: S2.40m | B124: K | C124: 751 39 8092 | D124: Mtž regulátoru průtoku konstantního D do 200 | E124: kus | F124: 2 | H124: 0
A125: S2.40 | B125: M | D125: Regulátor průtoku konstantní, DN125 | E125: kus | F125: 2 | H125: 0
A126: S2.50m | B126: K | C126: 751 51 4863R | D126: Mtž požární klapky do potrubí do D 300 | E126: kus | F126: 2 | H126: 0
A127: S2.50m | B127: M | D127: Požární klapka DN224, PI90, se servopohonem 230V, signalizací krajní polohy listu a montážním kitem pro suchou montáž | E127: kus | F127: 2 | H127: 0
D128: AHU S3 - studio 220-přívod a odvod vzduchu | H128: =SUBTOTAL(9,H129:H130) -> 0
A129: S3.50m | B129: K | C129: 751 51 4813R | D129: Mtž požární klapky do potrubí do 0,14m2 | E129: kus | F129: 2 | H129: =F129*G129 -> 0
A130: S3.50 | B130: M | D130: Požární klapka 315x315, PI90, se servopohonem 230V, signalizací krajní polohy listu a montážním kitem pro suchou montáž | E130: kus | F130: 2 | H130: 0
D131: AHU S4 - studio 404-přívod a odvod vzduchu | H131: =SUBTOTAL(9,H132:H133) -> 0
A132: S4.50m | B132: K | C132: 751 51 4813R | D132: Mtž požární klapky do potrubí do 0,14m2 | E132: kus | F132: 2 | H132: =F132*G132 -> 0
A133: S4.50 | B133: M | D133: Požární klapka 315x315, PI90, se servopohonem 230V, signalizací krajní polohy listu a montážním kitem pro suchou montáž | E133: kus | F133: 2 | H133: 0
D134: AHU K2 - Vzduchová clona - cirkulace vzduchu | H134: =SUBTOTAL(9,H135:H136) -> 0
A135: K2.01m | B135: K | C135: 751 62 2111R | D135: Mtž vduchové clony do podhledu | E135: kus | F135: 1 | H135: =F135*G135 -> 0
A136: K2.01 | B136: M | D136: Vzduchová clona teplovodní s EC motorem do podhledu délka 2m, Qt=34kW, U=230V vč.regulace a příslušenství dle standardu VZT5 | E136: kus | F136: 1 | H136: 0
D137: AHU K3 - Hygienické zázemí - cirkulace vzduchu | H137: =SUBTOTAL(9,H138:H157) -> 0
A138: K3.01m | B138: K | C138: 751 12 2293 | D138: Mtž radiálního ventilátoru střešního D 300mm | E138: kus | F138: 1 | H138: =F138*G138 -> 0
A139: K3.01 | B139: M | D139: Střešní ventilátor s vertikálním výfukem s EC motorem, Qv=700m3/h, Pext=300Pa dle standardu VZT 6 | E139: kus | F139: 1 | H139: 0
A140: K3.01a | B140: K | C140: 751 39 8061 | D140: Mtž podstavce ventilátoru střešního do 0,3m2 | E140: kus | F140: 1 | H140: 0
A141: K3.01a | B141: M | D141: Tlumicí podstavec pro ventilátor poz. K3.01 včetně. příslušenství dle standardu VZT 6 | E141: kus | F141: 1 | H141: 0
A142: K3.02m | B142: K | C142: 751 12 2294 | D142: Mtž radiálního ventilátoru střešního D 400mm | E142: kus | F142: 1 | H142: 0
A143: K3.02 | B143: M | D143: Střešní ventilátor s vertikálním výfukem s EC motorem, Qv=1400m3/h, Pext=300Pa včetně příslušenství dle standardu VZT 6 | E143: kus | F143: 1 | H143: 0
A144: K3.02a | B144: K | C144: 751 39 8062 | D144: Mtž podstavce ventilátoru střešního do 0,8m2 | E144: kus | F144: 1 | H144: 0
A145: K3.02a | B145: M | D145: Tlumicí podstavec pro ventilátor poz. K3.02 včetně. příslušenství dle standardu VZT 6 | E145: kus | F145: 1 | H145: 0
A146: K3.10m | B146: K | C146: 751 32 2011 | D146: Mtž talířového ventilu D do 100 mm | E146: kus | F146: =10+6+6+6 -> 28 | H146: 0
A147: K3.10 | B147: M | D147: Talířový ventil univerzální, kovový, bílý DN100 se zděří | E147: kus | F147: 28 | H147: 0
A148: K3.11m | B148: K | C148: 751 32 2012 | D148: Mtž talířového ventilu D do 200 mm | E148: kus | F148: 2 | H148: 0
A149: K3.11 | B149: M | D149: Talířový ventil univerzální, kovový, bílý DN125 se zděří | E149: kus | F149: 2 | H149: 0
A150: K3.12m | B150: K | C150: 751 31 1091 | D150: Mtž vyústky čtyřhranné na čtyřhranné potrubí do 0,04m2 | E150: kus | F150: 4 | H150: 0
A151: K3.12 | B151: M | D151: Vyústka jednořadá s regulací R1, 325x75mm na čtyřhranné potrubí, bílá | E151: kus | F151: 4 | H151: 0
A152: K3.40m | B152: K | C152: 751 39 8092R | D152: Mtž regulátoru variabilního průtoku D do 200 | E152: kus | F152: 8 | H152: 0
A153: K3.40 | B153: M | D153: Regulátor průtoku variabilní se servophonem 24V, 0-10V, DN125 | E153: kus | F153: 8 | H153: 0
A154: K3.41m | B154: K | C154: 751 39 8091R | D154: Mtž regulátoru variabilního průtoku D do 100 | E154: kus | F154: 7 | H154: 0
A155: K3.41 | B155: M | D155: Regulátor průtoku variabilní se servophonem 24V, 0-10V, DN100 | E155: kus | F155: 7 | H155: 0
A156: K3.50m | B156: K | C156: 751 51 4863R | D156: Mtž požární klapky do potrubí do D 300 | E156: kus | F156: 1 | H156: 0
A157: K3.50 | B157: M | D157: Požární klapka DN224, PI90, se servopohonem 230V, signalizací krajní polohy listu a montážním kitem pro suchou montáž | E157: kus | F157: 1 | H157: 0
D158: AHU K4 - Kotelna - přívod a vzduchu | H158: =SUBTOTAL(9,H159:H168) -> 0
A159: K4.01m | B159: K | C159: 751 13 3012 | D159: Mtž diag. potrubního ventilátoru D do 200mm | E159: kus | F159: 1 | H159: =F159*G159 -> 0
A160: K4.01 | B160: M | D160: Diagonální ventilátor DN160, Qv=400m3/h, pext=150Pa, vč. upínacích spon a zpětné kl. | E160: kus | F160: 1 | H160: 0
A161: K4.02m | B161: K | C161: 751 51 4776 | D161: Mtž protidešťové stříšky bez příruby D 200mm | E161: kus | F161: 1 | H161: 0
A162: K4.02 | B162: M | D162: Protidešťová stříška DN160 s ochrannou síťkou | E162: kus | F162: 1 | H162: 0
A163: K4.03m | B163: K | C163: 751 51 4776 | D163: Mtž protidešťové stříšky bez příruby D 200mm | E163: kus | F163: 1 | H163: 0
A164: K4.03 | B164: M | D164: Výfuková hlavice DN160 | E164: kus | F164: 1 | H164: 0
A165: K4.04m | B165: K | C165: 751 51 4777 | D165: Mtž protidešťové stříšky bez příruby D 300mm | E165: kus | F165: 2 | H165: 0
A166: K4.04 | B166: M | D166: Střešní průchod izolovaný DN240 s podstavcem a objímkou | E166: kus | F166: 2 | H166: 0
A167: K4.05m | B167: K | C167: 751 39 8012 | D167: Mtž mřížky na kruhové potrubí D do 200mm | E167: kus | F167: 3 | H167: 0
A168: K4.05 | B168: M | D168: Krycí mřížka na potrubí pozinkovaná DN160 | E168: kus | F168: 3 | H168: 0
D169: AHU K5 - Suterén 1.PP A sklad odpadu - přívod a odvod vzduchu | H169: =SUBTOTAL(9,H170:H183) -> 0
A170: K5.01m | B170: K | C170: 751 61 1115R | D170: Mtž vzduchotechnické jednotky nástěnné nad 500m3/h | E170: kus | F170: 1 | H170: =F170*G170 -> 0
A171: K5.01 | B171: M | D171: Kompaktní vzduchotechnická jednotka nástěnná Qv=550m3/h s regulací dle standardu VZT7 | E171: kus | F171: 1 | H171: 0
A172: K5.02m | B172: K | C172: 751 39 8051 | D172: Mtž protidešťové žaluzie přes 0,15m2 | E172: kus | F172: 2 | H172: 0
A173: K5.02 | B173: M | D173: Protidešťová žaluzie pozinkovaná s rámem a sítem, lakovaná RAL xxxx, 315x315mm | E173: kus | F173: 2 | H173: 0
A174: K5.03m | B174: K | C174: 751 39 8022 | D174: Mtž mřížky přes 0,1m2 | E174: kus | F174: 1 | H174: 0
A175: K5.03 | B175: M | D175: Krycí síto na čtyřhranné potrubí 315x315mm | E175: kus | F175: 1 | H175: 0
A176: K5.10m | B176: K | C176: 751 32 2011 | D176: Mtž talířového ventilu D do 100 mm | E176: kus | F176: 6 | H176: 0
A177: K5.10 | B177: M | D177: Talířový ventil univerzální, kovový, bílý DN100 se zděří | E177: kus | F177: 6 | H177: 0
A178: K5.11m | B178: K | C178: 751 31 1091 | D178: Mtž vyústky čtyřhranné na čtyřhranné potrubí do 0,04m2 | E178: kus | F178: 8 | H178: 0
A179: K5.11m | B179: M | D179: Vyústka jednořadá s regulací R1, 200x100mm na čtyřhranné potrubí, bílá | E179: kus | F179: 8 | H179: 0
A180: K5.20m | B180: K | C180: 751 34 4112 | D180: Mtž tl. hluku kruhového D do 200mm | E180: kus | F180: 2 | H180: 0
A181: K5.20 | B181: M | D181: Tlumič hluku přeslechový, ohebný DN200, l=1m, tl. Izolace 50mm | E181: kus | F181: 2 | H181: 0
A182: K5.50m | B182: K | C182: 751 51 4813R | D182: Mtž požární klapky do potrubí do 0,14m2 | E182: kus | F182: 2 | H182: 0
A183: K5.50 | B183: M | D183: Požární klapka 315x315, PI90, se servopohonem 230V, signalizací krajní polohy listu a montážním kitem pro suchou montáž | E183: kus | F183: 2 | H183: 0
D184: AHU K6 - Místnost DA - přívod a odvod vzduchu | H184: =SUBTOTAL(9,H185:H190) -> 0
A185: K6.01m | B185: K | C185: 751 51 4620 | D185: Mtž škrticí klapky s přírubou do potrubí 0,63m2 | E185: kus | F185: 2 | H185: =F185*G185 -> 0
A186: K6.01m | B186: M | D186: Regulační klapka uzavírací těsná 900x630 se servopohonem 230V | E186: kus | F186: 2 | H186: 0
A187: K6.02m | B187: K | C187: 751 39 8054 | D187: Mtž protidešťové žaluzie přes 0,6m2 | E187: kus | F187: 2 | H187: 0
A188: K6.02 | B188: M | D188: Protidešťová žaluzie pozinkovaná s rámem a sítem, lakovaná RAL xxxx, 900x630mm | E188: kus | F188: 2 | H188: 0
A189: K6.03m | B189: K | C189: 751 39 8025 | D189: Mtž mřížky přes 0,2m2 | E189: kus | F189: 1 | H189: 0
A190: K6.03m | B190: M | D190: Krycí síto na čtyřhranné potrubí 900x630mm | E190: kus | F190: 1 | H190: 0
D191: AHU K7 - Odvětrání hydroizolace - odvod vzduchu | H191: =SUBTOTAL(9,H192:H195) -> 0
A192: K7.01m | B192: K | C192: 751 11 1131 | D192: Mtž axiálního ventilátoru potrubního D do 200mm | E192: kus | F192: 2 | H192: =F192*G192 -> 0
A193: K7.01m | B193: M | D193: Axiální vestavný ventilátor DN120 s kuličkovými ložisky,vest. přetl.klapkou U=230V, Qv=50m3/h | E193: kus | F193: 2 | H193: 0
A194: K7.02m | B194: K | C194: 751 39 8051 | D194: Mtž protidešťové žaluzie do 0,15m2 | E194: kus | F194: 2 | H194: 0
A195: K7.02 | B195: M | D195: Protidešťová žaluzie pozinkovaná s rámem a sítem, lakovaná RAL xxxx, 150x300mm | E195: kus | F195: 2 | H195: 0
D196: AHU CH1 - CHUC - přívod vzduchu | H196: =SUBTOTAL(9,H197:H214) -> 0
A197: CH1.01m | B197: K | C197: 751 12 2116 | D197: Mtž radiálního ventilátoru potrubního 0,42m2 | E197: kus | F197: 1 | H197: =F197*G197 -> 0
A198: CH1.01 | B198: M | D198: Radiální potrubní ventilátor výklopný, 800x500 mm, U=400V, Qv=6800, Pext=200Pa | E198: kus | F198: 1 | H198: 0
A199: CH1.02m | B199: K | C199: 751 51 4617 | D199: Mtž škrticí klapky s přírubou do potrubí do 0,42m2 | E199: kus | F199: 1 | H199: 0
A200: CH1.02 | B200: M | D200: Regulační klapka uzavírací těsná 500x800 se servopohonem 230V | E200: kus | F200: 1 | H200: 0
A201: CH1.03m | B201: K | C201: 751 51 4615 | D201: Mtž škrticí klapky s přírubou do potrubí 0,28m2 | E201: kus | F201: 1 | H201: 0
A202: CH1.03 | B202: M | D202: Regulační klapka uzavírací těsná 800x345 se servopohonem 230V | E202: kus | F202: 1 | H202: 0
A203: CH1.04m | B203: K | C203: 751 39 8052 | D203: Mtž protidešťové žaluzie přes 0,3m2 | E203: kus | F203: 1 | H203: 0
A204: CH1.04 | B204: M | D204: Protidešťová žaluzie pozinkovaná s rámem a sítem, lakovaná RAL xxxx, 800x345mm | E204: kus | F204: 1 | H204: 0
A205: CH1.05m | B205: K | C205: 751 39 8052 | D205: Mtž protidešťové žaluzie přes 0,3m2 | E205: kus | F205: 1 | H205: 0
A206: CH1.05 | B206: M | D206: Protidešťová žaluzie pozinkovaná s rámem a sítem, lakovaná RAL xxxx, 600x1250mm | E206: kus | F206: 1 | H206: 0
A207: CH1.06m | B207: K | C207: 751 39 8025 | D207: Mtž mřížky přes 0,2m2 | E207: kus | F207: 1 | H207: 0
A208: CH1.06m | B208: M | D208: Krycí síto na čtyřhranné potrubí 800x345mm | E208: kus | F208: 1 | H208: 0
A209: CH1.07m | B209: K | C209: 751 39 8051 | D209: Mtž protidešťové žaluzie do 0,15m2 | E209: kus | F209: 1 | H209: 0
A210: CH1.07m | B210: M | D210: Protidešťová žaluzie pozinkovaná s rámem a sítem, lakovaná RAL xxxx, 200x200mm | E210: kus | F210: 1 | H210: 0
A211: CH1.08m | B211: K | C211: 751 39 8021 | D211: Mtž mřížky do 0,04m2 | E211: kus | F211: 1 | H211: 0
A212: CH1.08 | B212: M | D212: Krycí síto na čtyřhranné potrubí 200x200mm | E212: kus | F212: 1 | H212: 0
A213: CH1.09m | B213: K | C213: 751 39 8052 | D213: Mtž protidešťové žaluzie přes 0,3m2 | E213: kus | F213: 1 | H213: 0
A214: CH1.09m | B214: M | D214: Přetlaková klapka s garancí přetlaku dtp=50Pa, 800x345mm | E214: kus | F214: 1 | H214: 0
D215: AHU KL1 - Technické místnosti - větrání a klimatizace | H215: =SUBTOTAL(9,H216:H245) -> 0
... 164 more rows

Sheet 04_SO 01 - ÚT
A1: =CONCATENATE('Rekapitulace stavby'!C55,"_",'Rekapitulace stavby'!I55) -> 04_SO 01 - Ústřední vytápění
A3: SPECIFIKACE DODÁVEK A PRACÍ
A4: Název akce:
A5: ='Identifikační údaje'!B1 -> ČRo Olomouc – rekonstrukce objektu Pavelčákova 2/19
A7: Zadavatel: | C7: ='Identifikační údaje'!E7 -> Český rozhlas, Vinohradská 12, 120 99 Praha 2
B8: IČ: | C8: ='Identifikační údaje'!B9 -> 45245053
B9: DIČ: | C9: ='Identifikační údaje'!B10 -> CZ45245053
A11: Projektant: | C11: ='Identifikační údaje'!E12 -> ATELIER 38 s.r.o., Porážková 1424/20, 702 00 Ostrava – Moravská Ostrava
B12: IČ: | C12: ='Identifikační údaje'!B14 -> 258 58 343
B13: DIČ: | C13: ='Identifikační údaje'!B15 -> CZ25858343
A15: Uchazeč: | C15: ='Identifikační údaje'!E19 -> , ,
B16: IČ: | C16: ='Identifikační údaje'!B23 -> 0
B17: DIČ: | C17: ='Identifikační údaje'!B24 -> 0
A19: Místo stavby: | C19: ='Identifikační údaje'!B3 -> Budova Českého rozhlasu Olomouc na adrese Pavelčákova 2/19, 779 00 Olomouc
A21: Datum vyplnění: | C21: ='Identifikační údaje'!B5 -> 00:00:00
A23: =CONCATENATE("REKAPITULACE DODÁVEK A PRACÍ OBJEKTU ",'Rekapitulace stavby'!I55) -> REKAPITULACE DODÁVEK A PRACÍ OBJEKTU SO 01 - Ústřední vytápění
A25: P.č. | B25: Číslo položky | C25: Název položky | D25: Kč bez DPH
A27: Díl: | B27: =B44 -> 713 | C27: =C44 -> Izolace tepelné | G27: =G44 -> 0
A28: Díl: | B28: =B56 -> 731 | C28: =C56 -> Kotelny | G28: =G56 -> 0
A29: Díl: | B29: =B70 -> 732 | C29: =C70 -> Strojovny | G29: =G70 -> 0
A30: Díl: | B30: =B102 -> 733 | C30: =C102 -> Rozvod potrubí | G30: =G102 -> 0
A31: Díl: | B31: =B129 -> 734 | C31: =C129 -> Armatury | G31: =G129 -> 0
A32: Díl: | B32: =B177 -> 735 | C32: =C177 -> Otopná tělesa | G32: =G177 -> 0
A33: Díl: | B33: =B213 -> 767 | C33: =C213 -> Konstrukce zámečnické | G33: =G213 -> 0
A34: Díl: | B34: =B230 -> 783 | C34: =C230 -> Nátěry | G34: =G230 -> 0
A35: Díl: | B35: =B233 -> 799 | C35: =C233 -> Ostatní | G35: =G233 -> 0
A37: =CONCATENATE("CELKEM ZA OBJEKT ",'Rekapitulace stavby'!I55, " v Kč bez DPH") -> CELKEM ZA OBJEKT SO 01 - Ústřední vytápění v Kč bez DPH | D37: =SUM(G27:G35) -> 0
A43: P.č. | B43: Číslo položky | C43: Název položky | D43: MJ | E43: množství | F43: cena / MJ | G43: celkem
A44: Díl: | B44: 713 | C44: Izolace tepelné | G44: =SUBTOTAL(9,G45:G54) -> 0
A45: 1 | B45: 713591171T00 | C45: Montáž izolace potrubí Paroc | D45: m | E45: 2012 | G45: =E45*F45 -> 0
A46: =A45+1 -> 2 | B46: 63143048T | C46: Pouzdro potrubní minerální KPS 041 AluR 18/20 mm | D46: m | E46: 66 | G46: =E46*F46 -> 0
A47: =A46+1 -> 3 | B47: 63143049T | C47: Pouzdro potrubní minerální KPS 041 AluR 15/20 mm | D47: m | E47: 938 | G47: 0
A48: 4 | B48: 63143050R | C48: pouzdro potrubní minerální vlákno; povrchová úprava Al fólie; vnitřní průměr 21,0 mm; tl. izolace 25,0 mm; provozní teplota do 600 °C; tepelná vodivost (50°C) 0,040 W/mK; tepelná vodivost (250°C) 0,083 W/mK | D48: m | E48: 348 | G48: 0
A49: 5 | B49: 63143081R | C49: pouzdro potrubní minerální vlákno; povrchová úprava Al fólie; vnitřní průměr 27,0 mm; tl. izolace 30,0 mm; provozní teplota do 600 °C; tepelná vodivost (50°C) 0,040 W/mK; tepelná vodivost (250°C) 0,083 W/mK | D49: m | E49: 258 | G49: 0
A50: 6 | B50: 63143082R | C50: pouzdro potrubní minerální vlákno; povrchová úprava Al fólie; vnitřní průměr 34,0 mm; tl. izolace 30,0 mm; provozní teplota do 600 °C; tepelná vodivost (50°C) 0,040 W/mK; tepelná vodivost (250°C) 0,083 W/mK | D50: m | E50: 238 | G50: 0
A51: 7 | B51: 63143083R | C51: pouzdro potrubní minerální vlákno; povrchová úprava Al fólie; vnitřní průměr 43,0 mm; tl. izolace 30,0 mm; provozní teplota do 600 °C; tepelná vodivost (50°C) 0,040 W/mK; tepelná vodivost (250°C) 0,083 W/mK | D51: m | E51: 124 | G51: 0
A52: 8 | B52: 63143115R | C52: pouzdro potrubní minerální vlákno; povrchová úprava Al fólie; vnitřní průměr 61,0 mm; tl. izolace 40,0 mm; provozní teplota do 600 °C; tepelná vodivost (50°C) 0,040 W/mK; tepelná vodivost (250°C) 0,083 W/mK | D52: m | E52: 14 | G52: 0
A53: 9 | B53: 63143157R | C53: pouzdro potrubní minerální vlákno; povrchová úprava Al fólie; vnitřní průměr 77,0 mm; tl. izolace 50,0 mm; provozní teplota do 600 °C; tepelná vodivost (50°C) 0,040 W/mK; tepelná vodivost (250°C) 0,083 W/mK | D53: m | E53: 26 | G53: 0
A54: 10 | B54: 998713201R00 | C54: Přesun hmot pro izolace tepelné v objektech výšky do 36 m | D54: kpl | E54: 1 | G54: 0
A56: Díl: | B56: 731 | C56: Kotelny | G56: =SUBTOTAL(9,G57:G68) -> 0
A57: =A54+1 -> 11 | B57: 731100012T00 | C57: Průchod střechou DN200 | D57: ks | E57: 2 | G57: =E57*F57 -> 0
A58: =A57+1 -> 12 | B58: 731052023T00 | C58: Kotel Buderus Logamax plus GB162-85 kondenzační | D58: ks | E58: 2 | G58: 0
A59: =A58+1 -> 13 | B59: 731052402T00 | C59: Regulační přístroj Logamatic RC310 s venk.čidlem | D59: ks | E59: 1 | G59: 0
A60: 14 | B60: 731052650T00 | C60: Buderus připoj.čerpadlová skupina 7738502359 | D60: ks | E60: 2 | G60: 0
A61: 15 | B61: 731052651T00 | C61: Buderus kaskádová jednotka pro 2 kotle vedle sebe 7736700457 | D61: ks | E61: 1 | G61: 0
A62: 16 | B62: 731249500T00 | C62: Montáž odkouření kotle | D62: soubor | E62: 2 | G62: 0
A63: 17 | B63: 731010181T00 | C63: Neutralizační zařízení NE0.1 vč.granulátu | D63: ks | E63: 1 | G63: 0
A64: 18 | B64: 731249129R00 | C64: Montáž ocelových kotlů do 50 kW (100 kW) na kapalná a plynná paliva přes 85 do 100 kW | D64: soubor | E64: 2 | G64: 0
A65: 19 | B65: 40541361T | C65: Regulace Buderus modul MC400 | D65: ks | E65: 1 | G65: 0
A66: 20 | B66: 48412609T | C66: Sada odkouření přes střechu DO, 110/160, 1000mm | D66: ks | E66: 2 | G66: 0
A67: 21 | B67: 48412635T | C67: Trubka 110/160mm, délka 1000mm | D67: ks | E67: 2 | G67: 0
A68: 22 | B68: 998731201R00 | C68: Přesun hmot pro kotelny umístěné ve výšce (hloubce) do 36 m | D68: kpl | E68: 1 | G68: 0
A70: Díl: | B70: 732 | C70: Strojovny | G70: =SUBTOTAL(9,G71:G100) -> 0
A71: =A68+1 -> 23 | B71: 732111312R00 | C71: Rozdělovače a sběrače včetně dodávky (výroby) těles trubková hrdla rozdělovačů a sběračů bez přírub, DN 20 | D71: kus | E71: 2 | G71: =E71*F71 -> 0
A72: =A71+1 -> 24 | B72: 732111315R00 | C72: Rozdělovače a sběrače včetně dodávky (výroby) těles trubková hrdla rozdělovačů a sběračů bez přírub, DN 32 | D72: kus | E72: 2 | G72: 0
A73: =A72+1 -> 25 | B73: 732111316R00 | C73: Rozdělovače a sběrače včetně dodávky (výroby) těles trubková hrdla rozdělovačů a sběračů bez přírub, DN 40 | D73: kus | E73: 4 | G73: 0
A74: 26 | B74: 732111318R00 | C74: Rozdělovače a sběrače včetně dodávky (výroby) těles trubková hrdla rozdělovačů a sběračů bez přírub, DN 50 | D74: kus | E74: 2 | G74: 0
A75: 27 | B75: 732111322R00 | C75: Rozdělovače a sběrače včetně dodávky (výroby) těles trubková hrdla rozdělovačů a sběračů bez přírub, DN 65 | D75: kus | E75: 2 | G75: 0
A76: 28 | B76: 732111100T00 | C76: Montáž VZT uzlu | D76: ks | E76: 6 | G76: 0
A77: 29 | B77: 732111147T00 | C77: Rozdělovač RS KOMBI MODUL 120 | D77: m | E77: 3.3 | G77: 0
A78: 30 | B78: 732111148T00 | C78: Podpěra k rozdělovači RS KOMBI 80-150 | D78: ks | E78: 2 | G78: 0
A79: 31 | B79: 732111224T00 | C79: Izolace pro rozdělovač a sběrač DN100 | D79: m | E79: 1 | G79: 0
A80: 32 | B80: 732199100RM1 | C80: Montáž orientačních štítků s dodávkou orientačního štítku | D80: soubor | E80: 1 | G80: 0
A81: 33 | B81: 732219305T00 | C81: Montáž ohříváků vody zásobníkových | D81: soubor | E81: 1 | G81: 0
A82: 34 | B82: 732423001T00 | C82: Čerpadlo oběhové Grundfos MAGNA 25-40 | D82: ks | E82: 1 | G82: 0
A83: 35 | B83: 732423051T00 | C83: Čerpadlo oběhové Grundfos MAGNA1 40-60F | D83: ks | E83: 1 | G83: 0
A84: 36 | B84: 732423499T00 | C84: Čerpadlo oběhové Grundfos ALPHA2 25-50 | D84: soubor | E84: 1 | G84: 0
A85: 37 | B85: 732423500T00 | C85: Čerpadlo oběhové Grundfos ALPHA2 25-40 | D85: soubor | E85: 1 | G85: 0
A86: 38 | B86: 7324235010T00 | C86: Čerpadlo oběhové Grundfos ALPHA2 15-40 | D86: soubor | E86: 4 | G86: 0
A87: 39 | B87: 73242-3001.T00T00 | C87: čerpadlo oběhové Grundfos MAGNA 32-80 230V | D87: ks | E87: 1 | G87: 0
A88: 40 | B88: 732423006T00 | C88: oběhové čerpadlo Grundfos MAGNA 1 32-40 | D88: ks | E88: 1 | G88: 0
A89: 41 | B89: 48430002T | C89: Ohřívač ACV SMART SL320 | D89: ks | E89: 1 | G89: 0
A90: 42 | B90: 48466200R | C90: nádrž tlaková expanzní membránová; pro topné a chladící soustavy; objem 8 l; d nádrže 206 mm; uložení: stojatý; max. přetlak do 6 bar; přetlak plynu 1,5 bar; prac. látka plyn; membrána vyměnitelná; prac. teplota do 70 °C; připojení R 3/4"; barva bílá, červená, šedá | D90: kus | E90: 2 | G90: 0
A91: 43 | B91: 48466209R | C91: nádrž tlaková expanzní membránová; pro topné a chladící soustavy; objem 200 l; d nádrže 634 mm; uložení: stojatý; max. přetlak do 6 bar; přetlak plynu 1,5 bar; prac. látka plyn; membrána pevná; prac. teplota do 70 °C; připojení R 1"; barva bílá, červená, šedá | D91: kus | E91: 1 | G91: 0
A92: 44 | B92: 484673901T | C92: Uzávěr se zajištěním MK DN25 | D92: ks | E92: 1 | G92: 0
A93: 45 | B93: 484673902T | C93: Uzávěr se zajištěním MK DN20 | D93: ks | E93: 2 | G93: 0
A94: 46 | B94: 484674041T | C94: Fillguard MINI | D94: ks | E94: 1 | G94: 0
A95: 47 | B95: 484674042T | C95: Fillsoft II Zero | D95: ks | E95: 4 | G95: 0
A96: 48 | B96: 484674043T | C96: Fillsoft II Pouzdro | D96: ks | E96: 1 | G96: 0
A97: 49 | B97: 484674210T | C97: Sada pro měření tvrdosti | D97: ks | E97: 1 | G97: 0
A98: 50 | B98: 484674404T | C98: Servitec S podtlakové odplyňovací zařízení | D98: ks | E98: 1 | G98: 0
A99: 51 | B99: 484674991T | C99: Uvedení do provozu - servitec 30 | D99: ks | E99: 1 | G99: 0
A100: 52 | B100: 998732201R00 | C100: Přesun hmot pro strojovny v objektech výšky do 36 m | D100: kpl | E100: 1 | G100: 0
A102: Díl: | B102: 733 | C102: Rozvod potrubí | G102: =SUBTOTAL(9,G103:G127) -> 0
A103: =A100+1 -> 53 | B103: 736 346928T00 | C103: Montáž podlahového vytápění na systémovou desku | D103: m2 | E103: 110 | G103: =E103*F103 -> 0
A104: =A103+1 -> 54 | B104: 736346925T00 | C104: Montáž rozdělovače vč.skříně | D104: ks | E104: 1 | G104: 0
A105: =A104+1 -> 55 | B105: 733113113R00 | C105: Potrubí z trubek závitových příplatek k ceně za zhotovení přípojky z ocelových trubek závitových, , , DN 15 | D105: kus | E105: 182 | G105: 0
A106: 56 | B106: 733113115R00 | C106: Potrubí z trubek závitových příplatek k ceně za zhotovení přípojky z ocelových trubek závitových, , , DN 25 | D106: kus | E106: 12 | G106: 0
A107: 57 | B107: 733121160R00 | C107: Potrubí z trubek hladkých ocelových bezešvých tvářených za tepla nízkotlaké a středotlaké, D 70 mm, tloušťka stěny 3,6 mm | D107: m | E107: 26 | G107: 0
A108: 58 | B108: 733162128T00 | C108: Pancéřová hadice plnoprůtoková DN 25 Meibes, dl. 500mm | D108: ks | E108: 2 | G108: 0
A109: 59 | B109: 733162132T00 | C109: Pancéřová hadice plnoprůtoková DN 15 Meibes, dl. 500mm | D109: ks | E109: 8 | G109: 0
A110: 60 | B110: 733178000T00 | C110: Potrubí z uhlíkové oceli vně pozinkované D 15 x 1,2 mm, vč. dodávky tvarovek | D110: m | E110: 1885 | G110: 0
A111: 61 | B111: 733178001T00 | C111: Potrubí z uhlíkové oceli vně pozinkované, D 18 x 1,2 mm, vč.dodávky tvarovek | D111: m | E111: 202 | G111: 0
A112: 62 | B112: 733178002T00 | C112: Potrubíz uhlíkové oceli vně pozinkované, D 28 x 1,5 mm, vč. dodávky tvarovek | D112: m | E112: 304 | G112: 0
A113: 63 | B113: 733178003T00 | C113: Potrubí z uhlíkové oceli vně pozinkované, D 35 x 1,5 mm, vč.dodávky tvarovek | D113: m | E113: 238 | G113: 0
A114: 64 | B114: 733178004T00 | C114: Potrubí z uhlíkové oceli vně pozinkované, D 42 x 1,5 mm, vč.dodávky tvarovek | D114: m | E114: 124 | G114: 0
A115: 65 | B115: 733178005T00 | C115: Potrubí z uhlíkové oceli vně pozinkované, D 54 x 1,5 mm, vč.dodávky tvarovek | D115: m | E115: 14 | G115: 0
A116: 66 | B116: 733178007T00 | C116: Potrubíz uhlíkové oceli vně pozinkované, D 22 x 1,5 mm, vč.dodávky tvarovek | D116: m | E116: 348 | G116: 0
A117: 67 | B117: 286003240R | C117: trubka plastová otopné systémy PE-Xa; D = 16,0 mm; Di = 12,0 mm; s = 2,00 mm; teplota média max 95 °C; tlak média max 0,6 MPa; s kyslíkovou bariérou | D117: m | E117: 848 | G117: 0
A118: 68 | B118: 28600362R | C118: deska izolační kročejová, nosič trubek; expandovaný polystyren; povrch s výstupky; rovná hrana; tl. 52,0 mm; kašírování fólie PST; R = 0,750 m2K/W | D118: m2 | E118: 150 | G118: 0
A119: 69 | B119: 28600372T | C119: Uponor krycí fólie | D119: m2 | E119: 150 | G119: 0
A120: 70 | B120: 28600378T | C120: Uponor dilatační spára | D120: m | E120: 180 | G120: 0
A121: 71 | B121: 28600381T | C121: Uponor objímka červená | D121: ks | E121: 26 | G121: 0
A122: 72 | B122: 28600390T | C122: Uponor ochranná trubka | D122: m | E122: 30 | G122: 0
A123: 73 | B123: 28600395T | C123: Uponor fixační oblouk 16 | D123: ks | E123: 18 | G123: 0
A124: 74 | B124: 551295723T | C124: Uponor rozdělovač Vario M 9okruhů | D124: ks | E124: 1 | G124: 0
A125: 75 | B125: 551295752T | C125: Uponor skříň rozdělovače UFH 3 | D125: ks | E125: 1 | G125: 0
A126: 76 | B126: 551295801T | C126: Uponor L-garnitura 16/300 | D126: ks | E126: 18 | G126: 0
A127: 77 | B127: 998733201R00 | C127: Přesun hmot pro rozvody potrubí v objektech výšky do 36 m | D127: kpl | E127: 1 | G127: 0
A129: Díl: | B129: 734 | C129: Armatury | G129: =SUBTOTAL(9,G130:G175) -> 0
A130: =A127+1 -> 78 | B130: 734429104T00 | C130: Manometrický kohout třícestný Peveko PVKTK-25-1112L DN15-PN25 | D130: ks | E130: 14 | G130: =E130*F130 -> 0
A131: =A130+1 -> 79 | B131: 734191755T00 | C131: Regulační ventil TA Hydronics TBV LF 15 | D131: ks | E131: 8 | G131: 0
A132: =A131+1 -> 80 | B132: 734191761T00 | C132: Regulační ventil TA Hydronics TBV NF 15 | D132: Soubor | E132: 1 | G132: 0
A133: 81 | B133: 734423131T00 | C133: Tlakoměr 0- 350kPa | D133: ks | E133: 14 | G133: 0
A134: 82 | B134: 734173416R00 | C134: Přírubový spoj PN 1,6/I MPa, DN 65, včetně dodávky materiálu | D134: soubor | E134: 4 | G134: 0
A135: 83 | B135: 734191747T00 | C135: Ventily regulační vyvažovací STAD DN40 | D135: ks | E135: 1 | G135: 0
A136: 84 | B136: 734191749T00 | C136: Ventily regulační vyvažovací STAD DN15 | D136: ks | E136: 6 | G136: 0
A137: 85 | B137: 734191750T00 | C137: Ventily regulační vyvažovací STAD DN20 | D137: ks | E137: 3 | G137: 0
A138: 86 | B138: 734191751T00 | C138: Ventily regulační vyvažovací STAD DN32 | D138: ks | E138: 2 | G138: 0
A139: 87 | B139: 734191752T00 | C139: Ventily regulační vyvažovací STAD DN25 | D139: ks | E139: 8 | G139: 0
A140: 88 | B140: 734191764T00 | C140: TA Modulátor DN15 | D140: ks | E140: 5 | G140: 0
A141: 89 | B141: 734191766T00 | C141: TA Slider 160 24V pohon | D141: ks | E141: 5 | G141: 0
A142: 90 | B142: 734191777T00 | C142: TA-Modulator DN 25 | D142: ks | E142: 1 | G142: 0
A143: 91 | B143: 734193217R00 | C143: Klapka mezipřírubová uzavírací a regulační, litinová, PN 16, spoj bez navaření přírub, DN 65, včetně dodávky materiálu | D143: kus | E143: 2 | G143: 0
A144: 92 | B144: 734215133R00 | C144: Ventil automatický, odvzdušňovací, mosazný, PN 14, DN 15, včetně dodávky materiálu | D144: kus | E144: 16 | G144: 0
A145: 93 | B145: 734226212R00 | C145: Ventil termostatický, dvouregulační, přímý, mosazný, DN 15, bez termostatické hlavice, PN 10, vnější závit, včetně dodávky materiálu | D145: kus | E145: 89 | G145: 0
A146: 94 | B146: 734221672RT3 | C146: Hlavice termostatická, včetně dodávky materiálu | D146: kus | E146: 82 | G146: 0
A147: 95 | B147: 734235121R00 | C147: Kohout kulový, mosazný, DN 15, PN 42, vnitřní-vnitřní, včetně dodávky materiálu | D147: kus | E147: 34 | G147: 0
A148: 96 | B148: 734235122R00 | C148: Kohout kulový, mosazný, DN 20, PN 42, vnitřní-vnitřní, včetně dodávky materiálu | D148: kus | E148: 2 | G148: 0
A149: 97 | B149: 734235123R00 | C149: Kohout kulový, mosazný, DN 25, PN 35, vnitřní-vnitřní, včetně dodávky materiálu | D149: kus | E149: 16 | G149: 0
A150: 98 | B150: 734235124R00 | C150: Kohout kulový, mosazný, DN 32, PN 35, vnitřní-vnitřní, včetně dodávky materiálu | D150: kus | E150: 11 | G150: 0
A151: 99 | B151: 734235125R00 | C151: Kohout kulový, mosazný, DN 40, PN 35, vnitřní-vnitřní, včetně dodávky materiálu | D151: kus | E151: 10 | G151: 0
A152: 100 | B152: 734235126R00 | C152: Kohout kulový, mosazný, DN 50, PN 35, vnitřní-vnitřní, včetně dodávky materiálu | D152: kus | E152: 4 | G152: 0
A153: 101 | B153: 734245421R00 | C153: Klapka zpětná, mosazná, DN 15, PN 16, vnitřní-vnitřní závit, včetně dodávky materiálu | D153: kus | E153: 5 | G153: 0
A154: 102 | B154: 734245423R00 | C154: Klapka zpětná, mosazná, DN 25, PN 16, vnitřní-vnitřní závit, včetně dodávky materiálu | D154: kus | E154: 1 | G154: 0
A155: 103 | B155: 734245424R00 | C155: Klapka zpětná, mosazná, DN 32, PN 12, vnitřní-vnitřní závit, včetně dodávky materiálu | D155: kus | E155: 1 | G155: 0
A156: 104 | B156: 734245425R00 | C156: Klapka zpětná, mosazná, DN 40, PN 12, vnitřní-vnitřní závit, včetně dodávky materiálu | D156: kus | E156: 2 | G156: 0
A157: 105 | B157: 734245426R00 | C157: Klapka zpětná, mosazná, DN 50, PN 12, vnitřní-vnitřní závit, včetně dodávky materiálu | D157: kus | E157: 1 | G157: 0
A158: 106 | B158: 734261300T00 | C158: Šroubení uzavírací k čerpadlu 1" | D158: kus | E158: 8 | G158: 0
A159: 107 | B159: 734266222R00 | C159: Šroubení uzavíratelné radiátorové regulační s vypouštěním, přímé, bronzové, DN 15, PN 10, včetně dodávky materiálu | D159: kus | E159: 89 | G159: 0
A160: 108 | B160: 734266426R00 | C160: Šroubení pro radiátory typu VK dvoutrubkový systém s vypouštěním, rohové, bronzové, DN EK 20x15, PN 10, včetně dodávky materiálu | D160: kus | E160: 1 | G160: 0
A161: 109 | B161: 734266446R00 | C161: Šroubení pro radiátory typu VK dvoutrubkový systém s integrovaným termostatickým ventilem, rohové, bronzové, DN EK 20x15, PN 10, včetně dodávky materiálu | D161: kus | E161: 1 | G161: 0
A162: 110 | B162: 734293312R00 | C162: Kohout kulový, napouštěcí a vypouštěcí, mosazný, DN 15, PN 10, včetně dodávky materiálu | D162: kus | E162: 30 | G162: 0
A163: 111 | B163: 734295211R00 | C163: Filtr mosazný, DN 15, PN 20, vnitřní-vnitřní závit, včetně dodávky materiálu | D163: kus | E163: 5 | G163: 0
A164: 112 | B164: 734295213R00 | C164: Filtr mosazný, DN 25, PN 20, vnitřní-vnitřní závit, včetně dodávky materiálu | D164: kus | E164: 1 | G164: 0
A165: 113 | B165: 734295214R00 | C165: Filtr mosazný, DN 32, PN 20, vnitřní-vnitřní závit, včetně dodávky materiálu | D165: kus | E165: 1 | G165: 0
A166: 114 | B166: 734295215R00 | C166: Filtr mosazný, DN 40, PN 20, vnitřní-vnitřní závit, včetně dodávky materiálu | D166: kus | E166: 2 | G166: 0
A167: 115 | B167: 734295216R00 | C167: Filtr mosazný, DN 50, PN 20, vnitřní-vnitřní závit, včetně dodávky materiálu | D167: kus | E167: 1 | G167: 0
A168: 116 | B168: 734291962R00 | C168: Opravy závitových armatur zpětná montáž hlavic ovládání termostatických ventilů ruční V 4250 | D168: kus | E168: 9 | G168: 0
A169: 117 | B169: 734494213R00 | C169: Návarek s trubkovým závitem G 1/2", včetně dodávky materiálu | D169: kus | E169: 38 | G169: 0
A170: 118 | B170: 38832812R | C170: teploměr dvojkovový rovný; hlavice plastová; mat.stonku nerez; délka stonku 100 mm; rozsah stupnice 0 až 200 °C; měřicí rozsah 20 až 180 °C; dělení stupnice 5 °C; použití přímé měření v prům.odvětvích | D170: kus | E170: 24 | G170: 0
A171: 119 | B171: 422175122T | C171: Směšovací klapka třícestná ESBE VRG 131 DN25 kvs=8m3/h | D171: ks | E171: 1 | G171: 0
A172: 120 | B172: 42217513T | C172: Směšovací klapka třícestná ESBE VRG 131 DN15 kvs=2,5m3/h | D172: ks | E172: 1 | G172: 0
A173: 121 | B173: 42217518T | C173: Směšovací klapka třícestná ESBE VRG 131 DN40 kv=25 | D173: ks | E173: 1 | G173: 0
A174: 122 | B174: 4221751T | C174: Servopohon ESBE ARA 639 24V | D174: ks | E174: 3 | G174: 0
A175: 123 | B175: 998734201R00 | C175: Přesun hmot pro armatury v objektech výšky do 36 m | D175: kpl | E175: 1 | G175: 0
A177: Díl: | B177: 735 | C177: Otopná tělesa | G177: =SUBTOTAL(9,G178:G211) -> 0
A178: =A175+1 -> 124 | B178: 735176200T00 | C178: El.přímotop Ecoflex TAC 20 | D178: ks | E178: 1 | G178: =E178*F178 -> 0
A179: =A178+1 -> 125 | B179: 735111700T00 | C179: Tělesa otopná litinová Termo, 500/95 | D179: článek | E179: 89 | G179: 0
A180: =A179+1 -> 126 | B180: 735111701T00 | C180: Tělesa otopná litinová Termo, 500/130 | D180: článek | E180: 49 | G180: 0
A181: 127 | B181: 735110914R00 | C181: Opravy otopných těles článkových litinových stažení otopného tělesa | D181: kus | E181: 9 | G181: 0
A182: 128 | B182: 735156260R00 | C182: Otopná tělesa panelová počet desek 1, počet přídavných přestupných ploch 1, výška 600 mm, délka 400 mm, levé nebo pravé boční připojení,s nuceným nebo samotížným oběhem, čelní deska profilovaná, včetně dodávky materiálu | D182: kus | E182: 8 | G182: 0
A183: 129 | B183: 735156547R00 | C183: Otopná tělesa panelová počet desek 2, počet přídavných přestupných ploch 1, výška 500 mm, délka 1200 mm, levé nebo pravé boční připojení,s nuceným nebo samotížným oběhem, čelní deska profilovaná, včetně dodávky materiálu | D183: kus | E183: 2 | G183: 0
A184: 130 | B184: 735156548R00 | C184: Otopná tělesa panelová počet desek 2, počet přídavných přestupných ploch 1, výška 500 mm, délka 1400 mm, levé nebo pravé boční připojení,s nuceným nebo samotížným oběhem, čelní deska profilovaná, včetně dodávky materiálu | D184: kus | E184: 4 | G184: 0
A185: 131 | B185: 735156560R00 | C185: Otopná tělesa panelová počet desek 2, počet přídavných přestupných ploch 1, výška 600 mm, délka 400 mm, levé nebo pravé boční připojení,s nuceným nebo samotížným oběhem, čelní deska profilovaná, včetně dodávky materiálu | D185: kus | E185: 6 | G185: 0
A186: 132 | B186: 735156561R00 | C186: Otopná tělesa panelová počet desek 2, počet přídavných přestupných ploch 1, výška 600 mm, délka 500 mm, levé nebo pravé boční připojení,s nuceným nebo samotížným oběhem, čelní deska profilovaná, včetně dodávky materiálu | D186: kus | E186: 7 | G186: 0
A187: 133 | B187: 735156563R00 | C187: Otopná tělesa panelová počet desek 2, počet přídavných přestupných ploch 1, výška 600 mm, délka 700 mm, levé nebo pravé boční připojení,s nuceným nebo samotížným oběhem, čelní deska profilovaná, včetně dodávky materiálu | D187: kus | E187: 2 | G187: 0
A188: 134 | B188: 735156565R00 | C188: Otopná tělesa panelová počet desek 2, počet přídavných přestupných ploch 1, výška 600 mm, délka 900 mm, levé nebo pravé boční připojení,s nuceným nebo samotížným oběhem, čelní deska profilovaná, včetně dodávky materiálu | D188: kus | E188: 3 | G188: 0
A189: 135 | B189: 735156566R00 | C189: Otopná tělesa panelová počet desek 2, počet přídavných přestupných ploch 1, výška 600 mm, délka 1000 mm, levé nebo pravé boční připojení,s nuceným nebo samotížným oběhem, čelní deska profilovaná, včetně dodávky materiálu | D189: kus | E189: 3 | G189: 0
A190: 136 | B190: 735156567R00 | C190: Otopná tělesa panelová počet desek 2, počet přídavných přestupných ploch 1, výška 600 mm, délka 1200 mm, levé nebo pravé boční připojení,s nuceným nebo samotížným oběhem, čelní deska profilovaná, včetně dodávky materiálu | D190: kus | E190: 4 | G190: 0
A191: 137 | B191: 735156568R00 | C191: Otopná tělesa panelová počet desek 2, počet přídavných přestupných ploch 1, výška 600 mm, délka 1400 mm, levé nebo pravé boční připojení,s nuceným nebo samotížným oběhem, čelní deska profilovaná, včetně dodávky materiálu | D191: kus | E191: 18 | G191: 0
A192: 138 | B192: 735156569R00 | C192: Otopná tělesa panelová počet desek 2, počet přídavných přestupných ploch 1, výška 600 mm, délka 1600 mm, levé nebo pravé boční připojení,s nuceným nebo samotížným oběhem, čelní deska profilovaná, včetně dodávky materiálu | D192: kus | E192: 4 | G192: 0
A193: 139 | B193: 735156570R00 | C193: Otopná tělesa panelová počet desek 2, počet přídavných přestupných ploch 1, výška 600 mm, délka 1800 mm, levé nebo pravé boční připojení,s nuceným nebo samotížným oběhem, čelní deska profilovaná, včetně dodávky materiálu | D193: kus | E193: 1 | G193: 0
A194: 140 | B194: 735156577R00 | C194: Otopná tělesa panelová počet desek 2, počet přídavných přestupných ploch 1, výška 600 mm, délka 1100 mm, levé nebo pravé boční připojení,s nuceným nebo samotížným oběhem, čelní deska profilovaná, včetně dodávky materiálu | D194: kus | E194: 2 | G194: 0
A195: 141 | B195: 735156629R00 | C195: Otopná tělesa panelová počet desek 2, počet přídavných přestupných ploch 2, výška 400 mm, délka 1600 mm, levé nebo pravé boční připojení,s nuceným nebo samotížným oběhem, čelní deska profilovaná, včetně dodávky materiálu | D195: kus | E195: 1 | G195: 0
A196: 142 | B196: 735156647R00 | C196: Otopná tělesa panelová počet desek 2, počet přídavných přestupných ploch 2, výška 500 mm, délka 1200 mm, levé nebo pravé boční připojení,s nuceným nebo samotížným oběhem, čelní deska profilovaná, včetně dodávky materiálu | D196: kus | E196: 1 | G196: 0
A197: 143 | B197: 735156648R00 | C197: Otopná tělesa panelová počet desek 2, počet přídavných přestupných ploch 2, výška 500 mm, délka 1400 mm, levé nebo pravé boční připojení,s nuceným nebo samotížným oběhem, čelní deska profilovaná, včetně dodávky materiálu | D197: kus | E197: 1 | G197: 0
A198: 144 | B198: 735156667R00 | C198: Otopná tělesa panelová počet desek 2, počet přídavných přestupných ploch 2, výška 600 mm, délka 1200 mm, levé nebo pravé boční připojení,s nuceným nebo samotížným oběhem, čelní deska profilovaná, včetně dodávky materiálu | D198: kus | E198: 4 | G198: 0
A199: 145 | B199: 735156670R00 | C199: Otopná tělesa panelová počet desek 2, počet přídavných přestupných ploch 2, výška 600 mm, délka 1800 mm, levé nebo pravé boční připojení,s nuceným nebo samotížným oběhem, čelní deska profilovaná, včetně dodávky materiálu | D199: kus | E199: 3 | G199: 0
A200: 146 | B200: 735156688R00 | C200: Otopná tělesa panelová počet desek 2, počet přídavných přestupných ploch 2, výška 900 mm, délka 1200 mm, levé nebo pravé boční připojení,s nuceným nebo samotížným oběhem, čelní deska profilovaná, včetně dodávky materiálu | D200: kus | E200: 2 | G200: 0
A201: 147 | B201: 735156689R00 | C201: Otopná tělesa panelová počet desek 2, počet přídavných přestupných ploch 2, výška 900 mm, délka 1400 mm, levé nebo pravé boční připojení,s nuceným nebo samotížným oběhem, čelní deska profilovaná, včetně dodávky materiálu | D201: kus | E201: 1 | G201: 0
A202: 148 | B202: 735156690R00 | C202: Otopná tělesa panelová počet desek 2, počet přídavných přestupných ploch 2, výška 900 mm, délka 1600 mm, levé nebo pravé boční připojení,s nuceným nebo samotížným oběhem, čelní deska profilovaná, včetně dodávky materiálu | D202: kus | E202: 1 | G202: 0
A203: 149 | B203: 735156691R00 | C203: Otopná tělesa panelová počet desek 2, počet přídavných přestupných ploch 2, výška 900 mm, délka 1800 mm, levé nebo pravé boční připojení,s nuceným nebo samotížným oběhem, čelní deska profilovaná, včetně dodávky materiálu | D203: kus | E203: 2 | G203: 0
A204: 150 | B204: 735158040T00 | C204: Držák radiátorový | D204: kus | E204: 20 | G204: 0
A205: 151 | B205: 735158041T00 | C205: Konzola radiátorová | D205: kus | E205: 20 | G205: 0
A206: 152 | B206: 735171135R00 | C206: Otopná tělesa koupelnová trubkové otopné těleso rovné, spodní středové připojení s roztečí 50 mm, výška 1820 mm, šířka 750 mm, průměr trubek 24 mm, objem tělesa 13,4 l, včetně dodávky materiálu | D206: kus | E206: 1 | G206: 0
A207: 153 | B207: 735419906T00 | C207: Konvektor LKE 160/15/23-10 | D207: ks | E207: 1 | G207: 0
A208: 154 | B208: 48406005R | C208: příslušenství k radiátorům růžice litinová slepá; G 1 1/4" | D208: kus | E208: 9 | G208: 0
A209: 155 | B209: 48406060R | C209: příslušenství k radiátorům růžice litinová vrtaná; G 1 1/4" x 1/4" | D209: kus | E209: 9 | G209: 0
A210: 156 | B210: 48406070R | C210: příslušenství k radiátorům růžice litinová vrtaná; G 1 1/4" x 1/2" | D210: kus | E210: 18 | G210: 0
A211: 157 | B211: 998735201R00 | C211: Přesun hmot pro otopná tělesa v objektech výšky do 36 m | D211: kpl | E211: 1 | G211: 0
A213: Díl: | B213: 767 | C213: Konstrukce zámečnické | G213: =SUBTOTAL(9,G214:G228) -> 0
A214: =A211+1 -> 158 | B214: 767100001T00 | C214: Konzola nosníková 250mm | D214: ks | E214: 38 | G214: =E214*F214 -> 0
A215: =A214+1 -> 159 | B215: 767100002T00 | C215: Konzola nosníková 30x30 2000mm | D215: ks | E215: 346 | G215: 0
A216: =A215+1 -> 160 | B216: 767100100T00 | C216: Pevný bod | D216: ks | E216: 36 | G216: 0
A217: 161 | B217: 767101000T00 | C217: Doplňková konstrukce | D217: kg | E217: 200 | G217: 0
A218: 162 | B218: 24633211R | C218: tmel akrylátový; těsnicí, požární; š. spáry od 5 mm; pro interiér; expandující; barva šedá; přilnavost k materiálům beton, omítky, sádrokarton, zdivo; přetíratelný | D218: kus | E218: 12 | G218: 0
A219: 163 | B219: 31179105R | C219: tyč závitová M8; l = 1 000 mm; mat. ocel 4,8 - DIN 975; povrch bez úpravy | D219: m | E219: 212 | G219: 0
A220: 164 | B220: 42310110R | C220: objímka ocelová použití potrubí měděné, potrubí plastové, potrubí ocelové, potrubí umělohmotné, potrubí skleněné, litinové roury; dvoušroubová; vnější pr.potrubí d = 12-16 mm 1/4"; DN 8,0 mm; galvan.pozink. | D220: kus | E220: 626 | G220: 0
A221: 165 | B221: 42310111R | C221: objímka ocelová použití potrubí měděné, potrubí plastové, potrubí ocelové, potrubí umělohmotné, potrubí skleněné, litinové roury; dvoušroubová; vnější pr.potrubí d = 17-19 mm 3/8"; DN 10,0 mm; galvan.pozink. | D221: kus | E221: 64 | G221: 0
... 16 more rows

Sheet 05_SO 01 - Plyn
A1: =CONCATENATE('Rekapitulace stavby'!C56,"_",'Rekapitulace stavby'!I56) -> 05_SO 01 - Plynoinstalace
A3: SPECIFIKACE DODÁVEK A PRACÍ
A4: Název akce:
A5: ='Identifikační údaje'!B1 -> ČRo Olomouc – rekonstrukce objektu Pavelčákova 2/19
A7: Zadavatel: | C7: ='Identifikační údaje'!E7 -> Český rozhlas, Vinohradská 12, 120 99 Praha 2
B8: IČ: | C8: ='Identifikační údaje'!B9 -> 45245053
B9: DIČ: | C9: ='Identifikační údaje'!B10 -> CZ45245053
A11: Projektant: | C11: ='Identifikační údaje'!E12 -> ATELIER 38 s.r.o., Porážková 1424/20, 702 00 Ostrava – Moravská Ostrava
B12: IČ: | C12: ='Identifikační údaje'!B14 -> 258 58 343
B13: DIČ: | C13: ='Identifikační údaje'!B15 -> CZ25858343
A15: Uchazeč: | C15: ='Identifikační údaje'!E19 -> , ,
B16: IČ: | C16: ='Identifikační údaje'!B23 -> 0
B17: DIČ: | C17: ='Identifikační údaje'!B24 -> 0
A19: Místo stavby: | C19: ='Identifikační údaje'!B3 -> Budova Českého rozhlasu Olomouc na adrese Pavelčákova 2/19, 779 00 Olomouc
A21: Datum vyplnění: | C21: ='Identifikační údaje'!B5 -> 00:00:00
A23: =CONCATENATE("REKAPITULACE DODÁVEK A PRACÍ OBJEKTU ",'Rekapitulace stavby'!I56) -> REKAPITULACE DODÁVEK A PRACÍ OBJEKTU SO 01 - Plynoinstalace
A25: P.č. | B25: Číslo položky | C25: Název položky | D25: Kč bez DPH
A27: Díl: | B27: =B42 -> 1 | C27: =C42 -> Zemní práce | G27: =G42 -> 0
A28: Díl: | B28: =B50 -> 723 | C28: =C50 -> Vnitřní plynovod | G28: =G50 -> 0
A29: Díl: | B29: =B80 -> 767 | C29: =C80 -> Konstrukce zámečnické | G29: =G80 -> 0
A30: Díl: | B30: =B88 -> 783 | C30: =C88 -> Nátěry | G30: =G88 -> 0
A31: Díl: | B31: =B91 -> 799 | C31: =C91 -> Ostatní | G31: =G91 -> 0
A33: =CONCATENATE("CELKEM ZA OBJEKT ",'Rekapitulace stavby'!I56, " v Kč bez DPH") -> CELKEM ZA OBJEKT SO 01 - Plynoinstalace v Kč bez DPH | D33: =SUM(G27:G31) -> 0
A40: P.č. | B40: Číslo položky | C40: Název položky | D40: MJ | E40: množství | F40: cena / MJ | G40: celkem
B41: Ceník, kapitola | C41: Poznámka uchazeče
A42: Díl: | B42: 1 | C42: Zemní práce | G42: =SUBTOTAL(9,G43:G48) -> 0
A43: 1 | B43: 122202509R00 | C43: Odkopávky a prokopávky pro železnice v hornině 3 příplatek k cenám za lepivost horniny nezapažené pro spodní stavbu železnic, s přemístěním výkopku v příčných profilech do 15 m nebo s naložením na dopravní prostředek, | D43: m3 | E43: 15 | G43: =E43*F43 -> 0
A44: =A43+1 -> 2 | B44: 131001000T00 | C44: Výkop pro potrubí vč.pískování | D44: m | E44: 20 | G44: =E44*F44 -> 0
A45: =A44+1 -> 3 | B45: 131001600T00 | C45: Odvoz zeminy na skládku | D45: m3 | E45: 5 | G45: 0
A46: 4 | B46: 139601102R00 | C46: Ruční výkop jam, rýh a šachet v hornině 3 s přehozením na vzdálenost do 5 m nebo s naložením na ruční dopravní prostředek | D46: m3 | E46: 5 | G46: 0
A47: 5 | B47: 162201102R00 | C47: Vodorovné přemístění výkopku z horniny 1 až 4, na vzdálenost přes 20 do 50 m po suchu, bez naložení výkopku, avšak se složením bez rozhrnutí, zpáteční cesta vozidla. | D47: m3 | E47: 15 | G47: 0
A48: 6 | B48: 174101101R00 | C48: Zásyp sypaninou se zhutněním jam, šachet, rýh nebo kolem objektů v těchto vykopávkách z jakékoliv horniny s uložením výkopku po vrstvách, | D48: m3 | E48: 15 | G48: 0
A50: Díl: | B50: 723 | C50: Vnitřní plynovod | G50: =SUBTOTAL(9,G51:G78) -> 0
A51: =A48+1 -> 7 | B51: 734429104T00 | C51: Manometrický kohout třícestný Peveko PVKTK-25-1112L DN15-PN25 | D51: ks | E51: 2 | G51: =E51*F51 -> 0
A52: =A51+1 -> 8 | B52: 723000030T00 | C52: Napojení PE potrubí | D52: soubor | E52: 1 | G52: 0
A53: =A52+1 -> 9 | B53: 723110006T00 | C53: Potrubí plynové PE 100 SDR11 90 | D53: m | E53: 23 | G53: 0
A54: 10 | B54: 723110013T00 | C54: Havarijní uzavírací ventil BAP DN40-NT SOLO | D54: ks | E54: 1 | G54: 0
A55: 11 | B55: 723110050T00 | C55: Signalizační vodič | D55: m | E55: 23 | G55: 0
C56: Potrubí včetně tvarovek a zednických výpomocí.
C57: Včetně pomocného lešení o výšce podlahy do 1900 mm a pro zatížení do 1,5 kPa.
A58: =A55+1 -> 12 | B58: 723110051T00 | C58: Žlutá výstražná fólie plynovodu | D58: m | E58: 22 | G58: =E58*F58 -> 0
A59: =A58+1 -> 13 | B59: 723110052T00 | C59: Nálepka HUP | D59: ks | E59: 1 | G59: 0
A60: =A59+1 -> 14 | B60: 731100006T00 | C60: Průchod střechou DN50 | D60: ks | E60: 1 | G60: 0
A61: 15 | B61: 734423133T00 | C61: Tlakoměr 0-6 kPa | D61: ks | E61: 2 | G61: 0
A62: 16 | B62: 722181953T00 | C62: Chránička PE110 | D62: m | E62: 2 | G62: 0
A63: 17 | B63: 723120203R00 | C63: Potrubí z trubek černých závitových svařovaných DN 20 bezešvých ČSN 42 0250 a běžných ČSN 42 5710 - jakost 11353.0, | D63: m | E63: 6 | G63: 0
A64: 18 | B64: 723120206R00 | C64: Potrubí z trubek černých závitových svařovaných DN 40 bezešvých ČSN 42 0250 a běžných ČSN 42 5710 - jakost 11353.0, | D64: m | E64: 2 | G64: 0
A65: 19 | B65: 723150312R00 | C65: Potrubí ocelové hladké černé svařované D 57 mm, s 2,9 mm | D65: m | E65: 2 | G65: 0
A66: 20 | B66: 723150313R00 | C66: Potrubí ocelové hladké černé svařované D 76 mm, s 3,2 mm | D66: m | E66: 54 | G66: 0
A67: 21 | B67: 723150371R00 | C67: Potrubí ocel. černé svařované - chráničky D 108 mm, s 4,0 mm | D67: m | E67: 7 | G67: 0
A68: 22 | B68: 723160206R00 | C68: Přípojky k plynoměrům G 6/4", bez ochozu včetně uzavíracích armatur, tvarovek, upevňovacího a těsnícího materiálu, | D68: soubor | E68: 1 | G68: 0
A69: 23 | B69: 723190207R00 | C69: Přípojky ke strojům a zařízením přípojky ke strojům a zařízením DN 50 plynovodní z ocelových trubek závitových černých spojovaných na závit, bezešvých, běžných - jakost 11 353.0, | D69: soubor | E69: 1 | G69: 0
A70: 24 | B70: 723215118R00 | C70: Armatury přírubové včetně dodávky materiálu kohout kulový, DN 80, PN 16, litina, spoj s navařením přírub | D70: kus | E70: 1 | G70: 0
A71: 25 | B71: 723225113R00 | C71: Armatury závitové s jedním závitem včetně materiálu vzorkovací ventil přímý, vnitřní závit, DN 15, mosaz | D71: kus | E71: 1 | G71: 0
A72: 26 | B72: 723236113R00 | C72: Armatury závitové se dvěma závity včetně materiálu kulový kohout, vnitřní-vnitřní, DN 15, PN 5, mosaz | D72: kus | E72: 1 | G72: 0
A73: 27 | B73: 723236114R00 | C73: Armatury závitové se dvěma závity včetně materiálu kulový kohout, vnitřní-vnitřní, DN 20, PN 5, mosaz | D73: kus | E73: 1 | G73: 0
A74: 28 | B74: 723236117R00 | C74: Armatury závitové se dvěma závity včetně materiálu kulový kohout, vnitřní-vnitřní, DN 40, PN 5, mosaz | D74: kus | E74: 1 | G74: 0
A75: 29 | B75: 723236118R00 | C75: Armatury závitové se dvěma závity včetně materiálu kulový kohout, vnitřní-vnitřní, DN 50, PN 5, mosaz | D75: kus | E75: 1 | G75: 0
A76: 30 | B76: 734494213R00 | C76: Stavoznaky, ochranné jímky, návarky návarky s trubkovým závitem G 1/2" | D76: kus | E76: 1 | G76: 0
A77: 31 | B77: 28653161T | C77: Přechodka PE/ocel 90/DN80 | D77: ks | E77: 1 | G77: 0
A78: 32 | B78: 42243823T | C78: Skříň ocelová 120x100x50cm, uzamykatelná, větrná | D78: kus | E78: 1 | G78: 0
A80: Díl: | B80: 767 | C80: Konstrukce zámečnické | G80: =SUBTOTAL(9,G81:G86) -> 0
A81: =A78+1 -> 33 | B81: 767100001T00 | C81: Konzola nosníková 250mm | D81: ks | E81: 26 | G81: =E81*F81 -> 0
A82: =A81+1 -> 34 | B82: 31179105R | C82: tyč závitová M8; l = 1 000 mm; mat. ocel 4,8 - DIN 975; povrch bez úpravy | D82: m | E82: 10 | G82: 0
A83: =A82+1 -> 35 | B83: 42310113R | C83: objímka ocelová dvoušroubová; vnější pr.potrubí d = 25-30 mm 3/4"; DN 20,0 mm; galvan.pozink. | D83: kus | E83: 4 | G83: 0
A84: 36 | B84: 42310116R | C84: objímka ocelová dvoušroubová; vnější pr.potrubí d = 48-53 mm 6/4"; DN 40,0 mm; galvan.pozink. | D84: kus | E84: 2 | G84: 0
A85: 37 | B85: 42310118R | C85: objímka ocelová dvoušroubová; vnější pr.potrubí d = 60-64 mm 2"; DN 50,0 mm; galvan.pozink. | D85: kus | E85: 2 | G85: 0
A86: 38 | B86: 42310120R | C86: objímka ocelová dvoušroubová; vnější pr.potrubí d = 72-78 mm 2 1/2"; DN 65,0 mm; galvan.pozink. | D86: kus | E86: 22 | G86: 0
A88: Díl: | B88: 783 | C88: Nátěry | G88: =SUBTOTAL(9,G89) -> 0
A89: =A86+1 -> 39 | B89: 783425350R00 | C89: Nátěry potrubí a armatur syntetické potrubí, do DN 100 mm, dvojnásobné s 1x emailováním a základním nátěrem na vzduchu schnoucí | D89: m | E89: 64 | G89: =E89*F89 -> 0
A91: Díl: | B91: 799 | C91: Ostatní | G91: =SUBTOTAL(9,G92:G99) -> 0
A92: =A89+1 -> 40 | B92: 906T00 | C92: Výchozí revize plynu | D92: ks | E92: 1 | G92: =E92*F92 -> 0
A93: =A92+1 -> 41 | B93: 910T00 | C93: Tlaková zkouška plynovodu | D93: hod | E93: 4 | G93: 0
A94: =A93+1 -> 42 | B94: 926T00 | C94: Revizní kniha kotelny | D94: ks | E94: 1 | G94: 0
A95: 43 | B95: 955T00 | C95: Sekání | D95: hod | E95: 20 | G95: 0
A96: 44 | B96: 960T00 | C96: Likvidace odpadu - kontejner vč. odvozu na skládku a uhrazení poplatku za uložení odpadu | D96: soubor | E96: 1 | G96: 0
A97: 45 | B97: 972T00 | C97: Geodetické zaměření | D97: ks | E97: 1 | G97: 0
A98: 46 | B98: 973T00 | C98: Vytýčení ing.sítí | D98: ks | E98: 1 | G98: 0
A99: =A98+1 -> 47 | B99: 999T00 | C99: Nezměřitelné práce | D99: hod | E99: 20 | G99: 0

Sheet 06_SO 01 - MaR
A1: =CONCATENATE('Rekapitulace stavby'!C57,"_",'Rekapitulace stavby'!I57) -> 06_SO 01 - Měření a regulace
A3: SPECIFIKACE DODÁVEK A PRACÍ
A4: Název akce:
A5: ='Identifikační údaje'!B1 -> ČRo Olomouc – rekonstrukce objektu Pavelčákova 2/19
A7: Zadavatel: | E7: ='Identifikační údaje'!E7 -> Český rozhlas, Vinohradská 12, 120 99 Praha 2
D8: IČ: | E8: ='Identifikační údaje'!B9 -> 45245053
D9: DIČ: | E9: ='Identifikační údaje'!B10 -> CZ45245053
A11: Projektant: | E11: ='Identifikační údaje'!E12 -> ATELIER 38 s.r.o., Porážková 1424/20, 702 00 Ostrava – Moravská Ostrava
D12: IČ: | E12: ='Identifikační údaje'!B14 -> 258 58 343
D13: DIČ: | E13: ='Identifikační údaje'!B15 -> CZ25858343
A15: Uchazeč: | E15: ='Identifikační údaje'!E19 -> , ,
D16: IČ: | E16: ='Identifikační údaje'!B23 -> 0
D17: DIČ: | E17: ='Identifikační údaje'!B24 -> 0
A19: Místo stavby: | E19: ='Identifikační údaje'!B3 -> Budova Českého rozhlasu Olomouc na adrese Pavelčákova 2/19, 779 00 Olomouc
A21: Datum vyplnění: | E21: ='Identifikační údaje'!B5 -> 00:00:00
A23: =CONCATENATE("REKAPITULACE DODÁVEK A PRACÍ OBJEKTU ",'Rekapitulace stavby'!I57) -> REKAPITULACE DODÁVEK A PRACÍ OBJEKTU SO 01 - Měření a regulace
A25: P.č. | B25: Číslo položky | E25: Název položky | F25: Kč bez DPH
A27: Díl: | B27: =B43 -> 1 | C27: =D43 -> Dodávka | E27: =E43 -> Dodávka řídícího systému | I27: =I43 -> 0
A28: Díl: | B28: =B55 -> 2 | C28: =D55 -> Dodávka | E28: =E55 -> Dodávka materiálu měření a regulace | I28: =I55 -> 0
A29: Díl: | B29: =B86 -> 3 | C29: =D86 -> 21-M | E29: =E86 -> Elektromontáže | I29: =I86 -> 0
A30: Díl: | B30: =B129 -> 4 | C30: =D129 -> 36-M | E30: =E129 -> Montáž provozních,měřících a regulačních zařízení | I30: =I129 -> 0
A31: Díl: | B31: =B161 -> 5 | E31: =E161 -> Služby k řídícímu systému | I31: =I161 -> 0
A32: Díl: | B32: =B170 -> 6 | E32: =E170 -> Rozvaděč RA0.1 dodávka + montáž | I32: =I170 -> 0
A33: Díl: | B33: =B233 -> 7 | E33: =E233 -> Rozvaděč RA5.1 dodávka + montáž | I33: =I233 -> 0
A35: =CONCATENATE("CELKEM ZA OBJEKT ",'Rekapitulace stavby'!I57, " v Kč bez DPH") -> CELKEM ZA OBJEKT SO 01 - Měření a regulace v Kč bez DPH | F35: =SUM(I27:I33) -> 0
A42: P.č. | D42: Číslo položky | E42: Název položky | F42: MJ | G42: množství | H42: cena / MJ | I42: celkem
A43: Díl: | B43: 1 | D43: Dodávka | E43: Dodávka řídícího systému | I43: =SUBTOTAL(9,I44:I53) -> 0
A44: 1 | B44: K | C44: PK | D44: SPC1 | E44: Procesní stanice PXC 200 IO bodů | F44: ks | G44: 1 | I44: =G44*H44 -> 0
A45: =A44+1 -> 2 | B45: K | C45: PK | D45: SPC2 | E45: Procesní stanice PXC 350 IO bodů | F45: ks | G45: 1 | I45: =G45*H45 -> 0
A46: =A45+1 -> 3 | B46: K | C46: PK | D46: SPC3 | E46: Sběrnicový modul | F46: ks | G46: 4 | I46: 0
A47: 4 | B47: K | C47: PK | D47: SPC4 | E47: Napájecí modul | F47: ks | G47: 4 | I47: 0
A48: 5 | B48: K | C48: PK | D48: SPC5 | E48: Modul digitálních vstupů 16 x DI | F48: ks | G48: 9 | I48: 0
A49: 6 | B49: K | C49: PK | D49: SPC6 | E49: Univerzální modul 8 x UI | F49: ks | G49: 10 | I49: 0
A50: 7 | B50: K | C50: PK | D50: SPC7 | E50: Modul digitálních výstupů 6 x DO | F50: ks | G50: 11 | I50: 0
A51: 8 | B51: K | C51: PK | D51: SPC8 | E51: Dotykový panel PXM30.E, 7“, BACnet/IP, 24V AC | F51: ks | G51: 2 | I51: 0
A52: 9 | B52: K | C52: PK | D52: SPC9 | E52: Štítky popisné | F52: ks | G52: 4 | I52: 0
A53: 10 | B53: K | C53: PK | D53: SPC10 | E53: Adresovací a resetovací kolíčky | F53: ks | G53: 4 | I53: 0
A55: Díl: | B55: 2 | D55: Dodávka | E55: Dodávka materiálu měření a regulace | I55: =SUBTOTAL(9,I56:I84) -> 0
A56: =A53+1 -> 11 | B56: K | C56: PK | D56: SPC11 | E56: Kanálové čidlo teploty 0,4 m, Ni1000, -50 až +80°C, IP42 | F56: kus | G56: 2 | I56: =G56*H56 -> 0
A57: =A56+1 -> 12 | B57: K | C57: PK | D57: SPC12 | E57: Příložný snímač teploty Ni1000, -30 až 130°C, IP42 | F57: kus | G57: 7 | I57: =G57*H57 -> 0
A58: =A57+1 -> 13 | B58: K | C58: PK | D58: SPC13 | E58: Prostorové čidlo teploty Ni1000, 0-50°C | F58: kus | G58: 7 | I58: 0
A59: 14 | B59: K | C59: PK | D59: SPC14 | E59: Venkovní čidlo teploty Ni1000, -35 až +50°C, IP43 | F59: kus | G59: 3 | I59: 0
A60: 15 | B60: K | C60: PK | D60: SPC15 | E60: Snímač teploty do jímky Ni1000,-30 až 130°C, 100 mm, včetně jímky | F60: kus | G60: 2 | I60: 0
A61: 16 | B61: K | C61: PK | D61: SPC16 | E61: Snímač teploty do jímky Ni1000,-30 až 130°C, 400 mm, včetně jímky | F61: kus | G61: 1 | I61: 0
A62: 17 | B62: K | C62: PK | D62: SPC17 | E62: Prostorové čidlo teploty a relativní vlhkosti, teplota 0 až 50°C, 0-10V, vlhkost 0-100% RV, 0-10V, displej | F62: kus | G62: 3 | I62: 0
A63: 18 | B63: K | C63: PK | D63: SPC18 | E63: Prostorové čidlo teploty Ni1000, korekce teploty +/- 3 K | F63: kus | G63: 1 | I63: 0
A64: 19 | B64: K | C64: PK | D64: SPC19 | E64: Kanálové čidlo teploty a relativní vlhkosti, teplota 0 až 50°C, 0-10V, vlhkost 0-100% RV, 0-10V | F64: kus | G64: 3 | I64: 0
A65: 20 | B65: K | C65: PK | D65: SPC20 | E65: Snímač tlaku -1 až 9 bar, 24V AC/DC, výstup 0-10V, IP65 | F65: kus | G65: 1 | I65: 0
A66: 21 | B66: K | C66: PK | D66: SPC21 | E66: Dvoustupňový detektor plynu, napájení 24V AC, 2 x přepínací kontakt | F66: kus | G66: 1 | I66: 0
A67: 22 | B67: K | C67: PK | D67: SPC22 | E67: Dvoustupňový detektor "CO", napájení 230V AC, 2 x přepínací kontakt | F67: kus | G67: 1 | I67: 0
A68: 23 | B68: K | C68: PK | D68: SPC23 | E68: Kontaktní snímač tlaku, rozsah 0,2 až 8 bar, G1/4“, IP44 | F68: kus | G68: 1 | I68: 0
A69: 24 | B69: K | C69: PK | D69: SPC24 | E69: Diferenční tlakový spínač pro vzduch, 20-300 Pa, včetně připoj. soupravy | F69: kus | G69: 6 | I69: 0
A70: 25 | B70: K | C70: PK | D70: SPC25 | E70: Diferenciální převodník tlaku vzduchu proporcionální 0-1000 Pa, 24V DC, 0-10V | F70: kus | G70: 4 | I70: 0
A71: 26 | B71: K | C71: PK | D71: SPC26 | E71: Snímač diferenčního tlaku vzduchu -500 až 500 Pa, napájení 24V AC/DC, výstup 0-10V | F71: kus | G71: 2 | I71: 0
A72: 27 | B72: K | C72: PK | D72: SPC27 | E72: Klapkový servopohon 7 Nm, 24V AC/DC, havarijní funkce | F72: kus | G72: 2 | I72: 0
A73: 28 | B73: K | C73: PK | D73: SPC28 | E73: Klapkový servopohon 10 Nm, 24V AC/DC | F73: kus | G73: 2 | I73: 0
A74: 29 | B74: K | C74: PK | D74: SPC29 | E74: Plováčkový snímač hladiny, magnetický kontakt | F74: kus | G74: 1 | I74: 0
A75: 30 | B75: K | C75: PK | D75: SPC30 | E75: Ponorný plovákový spínač, přepínací kontakt 230V/10A, IP68, kabel 20 m, pomocný materiál uchycení | F75: kus | G75: 2 | I75: 0
A76: 31 | B76: K | C76: PK | D76: SPC31 | E76: Záplavový set HWG-WLD relay detekčné kabel 2+2 m | F76: kus | G76: 1 | I76: 0
A77: 32 | B77: K | C77: PK | D77: SPC32 | E77: Termostat 30-90°C, G1/2“,kontaktní výstup, IP43 | F77: kus | G77: 2 | I77: 0
A78: 33 | B78: K | C78: PK | D78: SPC33 | E78: Termostat 40-120°C, G1/2“,kontaktní výstup, IP43 | F78: kus | G78: 1 | I78: 0
A79: 34 | B79: K | C79: PK | D79: SPC34 | E79: Kapilárové protimrazové čidlo teploty kapilára 6 m, 5 až +15°C, IP54 | F79: kus | G79: 1 | I79: 0
A80: 35 | B80: K | C80: PK | D80: SPC35 | E80: Tlačítkový ovládač včetně instalační krabice | F80: kus | G80: 6 | I80: 0
A81: 36 | B81: K | C81: PK | D81: SPC36 | E81: Místní ovládač volby provozu VZT AUT-0-MÍSTNÍ včetně instalační krabice | F81: kus | G81: 2 | I81: 0
A82: 37 | B82: K | C82: PK | D82: SPC37 | E82: Dveřní magnetický spínač uzavření dveří, kontaktní výstup + krabice | F82: kus | G82: 18 | I82: 0
A83: 38 | B83: K | C83: PK | D83: SPC38 | E83: Okenní magnetický kontakt otevření okna, kontaktní výstup + krabice | F83: kus | G83: 5 | I83: 0
A84: 39 | B84: K | C84: PK | D84: SPC39 | E84: Centrála počasí včetně čidla deště a čidla rychlosti větru, napájení 230V AC, IP54 | F84: kus | G84: 1 | I84: 0
A86: Díl: | B86: 3 | D86: 21-M | E86: Elektromontáže | I86: =SUBTOTAL(9,I87:I127) -> 0
A87: =A84+1 -> 40 | B87: K | D87: 210800547 | E87: Montáž měděných vodičů CY, HO5V, HO7V, NYM, NYY, YY 6 mm2 uložených pevně | F87: m | G87: 65 | I87: =G87*H87 -> 0
A88: =A87+1 -> 41 | B88: M | C88: MAT | D88: 341421570 | E88: vodič silový s Cu jádrem CY H07 V-K 6 mm2 | F88: m | G88: 65 | I88: =G88*H88 -> 0
A89: =A88+1 -> 42 | B89: K | D89: 210810055 | E89: Montáž měděných kabelů CYKY, CYKYD, CYKYDY, NYM, NYY 750 V 5x1,5 mm2 uložených pevně | F89: m | G89: 631 | I89: 0
A90: 43 | B90: M | C90: MAT | D90: 341110200 | E90: kabel silový s Cu jádrem CYKY-O 2x1,5 mm2 | F90: m | G90: 35 | I90: 0
A91: 44 | B91: M | C91: MAT | D91: 341110300 | E91: kabel silový s Cu jádrem CYKY 3x1,5 mm2 | F91: m | G91: 501 | I91: 0
A92: 45 | B92: M | C92: MAT | D92: 341110600 | E92: kabel silový s Cu jádrem CYKY 4x1,5 mm2 | F92: m | G92: 40 | I92: 0
A93: 46 | B93: M | C93: MAT | D93: 341110900 | E93: kabel silový s Cu jádrem CYKY 5x1,5 mm2 | F93: m | G93: 58 | I93: 0
A94: 47 | B94: K | D94: 210810057 | E94: Montáž měděných kabelů CYKY, CYKYD, CYKYDY, NYM, NYY, 750 V 5x4 mm2 uložených pevně | F94: m | G94: 100 | I94: 0
A95: 48 | B95: M | C95: MAT | D95: 341110940 | E95: kabel silový s Cu jádrem CYKY 5x2,5 mm2 | F95: m | G95: 8 | I95: 0
A96: 49 | B96: M | C96: MAT | D96: 341110060 | E96: kabel silový s Cu jádrem CYKY 2x2,5 mm2 | F96: m | G96: 92 | I96: 0
A97: 50 | B97: K | C97: 921 | D97: 210860221 | E97: Montáž měděných kabelů speciálních JYTY s Al folií 2x1 mm uložených pevně | F97: m | G97: 1614 | I97: 0
A98: 51 | B98: M | C98: MAT | D98: 341215500 | E98: kabel sdělovací JYTY Al laminovanou fólií 2x1 mm | F98: m | G98: 1614 | I98: 0
A99: 52 | B99: K | C99: 921 | D99: 210860222 | E99: Montáž měděných kabelů speciálních JYTY s Al folií 4x1 mm uložených pevně | F99: m | G99: 1556 | I99: 0
A100: 53 | B100: M | C100: MAT | D100: 341215540 | E100: kabel sdělovací JYTY Al laminovanou fólií 4x1 mm | F100: m | G100: 1556 | I100: 0
A101: 54 | B101: K | C101: MAT | D101: 210860223 | E101: Montáž měděných kabelů speciálních JYTY s Al folií 7x1 mm uložených pevně | F101: m | G101: 676 | I101: 0
A102: 55 | B102: M | C102: MAT | D102: 341215560 | E102: kabel sdělovací JYTY Al laminovanou fólií 7x1 mm | F102: m | G102: 676 | I102: 0
A103: 56 | B103: M | C103: 921 | D103: 210860223 | E103: Montáž měděných kabelů speciálních JYTY s Al folií 14x1 mm uložených pevně | F103: m | G103: 423 | I103: 0
A104: 57 | B104: K | C104: MAT | D104: 341215580 | E104: kabel sdělovací J-Y(St)Y 5x2x0,8 mm | F104: m | G104: 344 | I104: 0
A105: 58 | B105: K | C105: MAT | E105: kabel sdělovací UTP cat 5E | F105: m | G105: 58 | I105: 0
A106: 59 | B106: K | C106: 921 | D106: 210010351 | E106: Montáž rozvodek nástěnných plastových čtyřhranných ACIDUR vodič D do 4 mm2 | F106: kus | G106: 32 | I106: 0
A107: 60 | B107: M | C107: MAT | E107: Krabice do vhka IP43, včetně svorkovnice | F107: kus | G107: 32 | I107: 0
A108: 61 | B108: K | C108: 921 | D108: 210010083 | E108: Montáž trubky tuhé D20 pevně | F108: m | G108: 62 | I108: 0
A109: 62 | B109: M | C109: MAT | E109: Trubka tuhá PVC 1250 N D20 mm | F109: m | G109: 62 | I109: 0
A110: 63 | D110: 210110502 | E110: Montáž spínačů vestavných vačkových S25 A, 01 až 02 se zapojením vodičů | F110: kus | G110: 3 | I110: 0
A111: 64 | B111: M | C111: MAT | E111: Ovládač nouzového zastavení XAL-K174 ve skříňce, IP65 | F111: kus | G111: 1 | I111: 0
A112: 65 | C112: MAT | E112: Vačkový vypínač 3x400V, 10A AC3, v krytu IP54 | F112: kus | G112: 2 | I112: 0
A113: 66 | B113: K | C113: 921 | D113: 210020303 | E113: Kabelový žlab včetně víka a podpěrek do 100x50 mm | F113: m | G113: 279 | I113: 0
A114: 67 | B114: M | C114: MAT | E114: Drátový žlab 50 x 50 mm včetně podpěrek | F114: m | G114: 265 | I114: 0
A115: 68 | B115: M | C115: MAT | E115: Drátový žlab 100 x 50 mm včetně podpěrek | F115: m | G115: 14 | I115: 0
A116: 69 | B116: K | C116: 921 | D116: 210010102 | E116: Montáž lišt protahovacích šířky do 40 mm | F116: m | G116: 320 | I116: 0
A117: 70 | B117: M | C117: MAT | D117: 345721050 | E117: lišta elektroinstalační vkládací z PVC LV 18x13 | F117: m | G117: 210 | I117: 0
A118: 71 | B118: M | C118: MAT | D118: 345721050 | E118: lišta elektroinstalační vkládací z PVC LHD 17x17 | F118: m | G118: 45 | I118: 0
A119: 72 | B119: M | C119: MAT | D119: 345721090 | E119: lišta elektroinstalační vkládací z PVC LV 24x22 | F119: m | G119: 65 | I119: 0
A120: 73 | B120: K | C120: 921 | D120: 210190052 | E120: Montáž rozvaděčů skříňových nebo panelových dělitelných pole do 300 kg | F120: kus | G120: 2 | I120: 0
A121: 74 | B121: K | C121: 921 | D121: 210100001 | E121: Ukončení vodičů v rozváděči nebo na přístroji včetně zapojení průřezu žíly do 2,5 mm2 | F121: kus | G121: 645 | I121: 0
A122: 75 | B122: K | C122: 921 | D122: 210100002 | E122: Ukončení vodičů v rozváděči nebo na přístroji včetně zapojení průřezu žíly do 6 mm2 | F122: kus | G122: 10 | I122: 0
A123: 76 | B123: K | C123: 921 | D123: 210100002 | E123: Ukončení vodičů pro OP do 6 mm2 | F123: kus | G123: 55 | I123: 0
A124: 77 | B124: K | C124: 921 | D124: 2200320722 | E124: Montáž dveřního, okenního kontaktu | F124: kus | G124: 23 | I124: 0
A125: 78 | B125: K | C125: 921 | D125: 971031300 | E125: Vybourání otvorů ve zdivu cihelném plochy do 0,0225 m2 tloušťky do 45 cm | F125: kus | G125: 32 | I125: 0
A126: 79 | B126: K | C126: 921 | D126: 741920052 | E126: Protipožární prostup E120 ve stavební konstrukci s atestem | F126: m2 | G126: 1 | I126: 0
A127: 80 | C127: MAT | E127: Protipožární prostup E120 ve stavební konstrukci s atestem | F127: m2 | G127: 1 | I127: 0
A129: Díl: | B129: 4 | D129: 36-M | E129: Montáž provozních,měřících a regulačních zařízení | I129: =SUBTOTAL(9,I130:I159) -> 0
A130: =A127+1 -> 81 | B130: K | C130: 936 | D130: 362410525 | E130: Montáž odporového teploměru - venkovní, prostorový | F130: kus | G130: 10 | I130: =G130*H130 -> 0
A131: =A130+1 -> 82 | B131: K | C131: 936 | D131: 360410212 | E131: Montáž snímače vlhkosti | F131: kus | G131: 1 | I131: =G131*H131 -> 0
A132: =A131+1 -> 83 | B132: K | C132: 936 | D132: 360410212 | E132: Montáž snímače teploty a vlhkosti | F132: kus | G132: 6 | I132: 0
A133: 84 | B133: K | C133: 936 | D133: 360470065 | E133: Napojení chladící jednotky VZT | F133: kus | G133: 10 | I133: 0
A134: 85 | B134: K | C134: 936 | D134: 360430051 | E134: Montáž rotačního servopohonu, regulačního ventilu | F134: kus | G134: 11 | I134: 0
A135: 86 | B135: K | C135: 936 | D135: 360430051 | E135: Montáž pohonu světlíků | F135: kus | G135: 4 | I135: 0
A136: 87 | B136: K | C136: 936 | D136: 360410114 | E136: Montáž snímače diferenčního tlaku | F136: kus | G136: 12 | I136: 0
A137: 88 | B137: K | C137: 936 | D137: 360430001 | E137: Montáž tlačítkového ovládače | F137: kus | G137: 5 | I137: 0
A138: 89 | B138: K | C138: 936 | D138: 360410032 | E138: Montáž termostatu mrazové ochrany | F138: kus | G138: 1 | I138: 0
A139: 90 | B139: K | C139: 936 | D139: 360410043 | E139: Montáž kapiláry mrazové ochrany | F139: kus | G139: 1 | I139: 0
A140: 91 | B140: K | C140: 936 | D140: 360420203 | E140: Napojení regulátoru průtoku | F140: kus | G140: 15 | I140: 0
A141: 92 | B141: K | C141: 936 | D141: 360430002 | E141: Napojení požárních klapek | F141: kus | G141: 17 | I141: 0
A142: 93 | B142: K | C142: 936 | D142: 360480024 | E142: Napojení ventilátoru, čerpadla | F142: kus | G142: 21 | I142: 0
A143: 94 | B143: K | C143: 936 | D143: 360430002 | E143: Montáž prostorového ovládače SA | F143: ks | G143: 2 | I143: 0
A144: 95 | B144: K | C144: 936 | D144: 362410523 | E144: Montáž čidla teploty | F144: ks | G144: 13 | I144: 0
A145: 96 | B145: K | C145: 936 | D145: 360480213 | E145: Montáž plovákových snímačů hladiny | F145: ks | G145: 2 | I145: 0
A146: 97 | B146: K | C146: 936 | D146: 360831011 | E146: Montáž přístroje na odběr, hmotnost do 2 kg | F146: ks | G146: 13 | I146: 0
A147: 98 | B147: K | C147: 936 | D147: 360820501 | E147: Manipulace v montážní zóně přístroje do 2 kg | F147: ks | G147: 13 | I147: 0
A148: 99 | B148: K | C148: 936 | D148: 360810101 | E148: Příprava a zakončení práce - přístroje do 2 kg | F148: ks | G148: 13 | I148: 0
A149: 100 | B149: K | C149: 936 | D149: 360895021 | E149: Zkoušky individuální tuzemské jednoduché | F149: ks | G149: 13 | I149: 0
A150: 101 | B150: K | C150: 936 | D150: 360480024 | E150: Napojení kotle | F150: ks | G150: 2 | I150: 0
A151: 102 | B151: K | C151: 936 | D151: 360410076 | E151: Montáž regulátoru tlaku | F151: ks | G151: 1 | I151: 0
A152: 103 | B152: K | C152: 936 | D152: 360410032 | E152: Montáž termostatu | F152: ks | G152: 3 | I152: 0
A153: 104 | B153: K | C153: 936 | D153: 360410178 | E153: Montáž snímače zaplavení | F153: ks | G153: 2 | I153: 0
A154: 105 | B154: K | C154: 936 | D154: 360430051 | E154: Napojení havarijního uzávěru plynu | F154: ks | G154: 1 | I154: 0
A155: 106 | B155: K | C155: 936 | D155: 360410747 | E155: Montáž detektorů koncentrace plynu | F155: ks | G155: 2 | I155: 0
A156: 107 | B156: K | C156: 936 | D156: 360480024 | E156: Napojení parního zvlhčovače | F156: ks | G156: 3 | I156: 0
A157: 108 | B157: K | C157: 936 | D157: 360410076 | E157: Montáž snímače tlaku | F157: kus | G157: 2 | I157: 0
A158: 109 | B158: K | C158: 936 | D158: 360420201 | E158: Napojení FM rotačního rekuperátoru | F158: kus | G158: 1 | I158: 0
A159: 110 | B159: K | C159: 936 | D159: 360480211 | E159: Montáž meteostanice | F159: kus | G159: 1 | I159: 0
A161: Díl: | B161: 5 | E161: Služby k řídícímu systému | I161: =SUBTOTAL(9,I162:I168) -> 0
A162: =A159+1 -> 111 | E162: Zpracování uživatelských programů | F162: bod | G162: 265 | I162: =G162*H162 -> 0
A163: =A162+1 -> 112 | E163: Parametrizace periferií, oživení | F163: bod | G163: 265 | I163: =G163*H163 -> 0
A164: =A163+1 -> 113 | E164: Vizualizace do prostředí desigo CC | F164: bod | G164: 265 | I164: 0
A165: 114 | E165: Desigo CC compakt, licence 500 DB, 3 klienti, CMD4 | F165: kus | G165: 1 | I165: 0
A166: 115 | E166: Realizace integrace 100% systémů (nastavování parametrů, poruchové stavy) do systému používaným centrálním velínem ČRo, umístěným v budově ČRo, Vinohradská 12, který pro centrální správu systému MaR používá systém Siemens Desigo CC | F166: kpl | G166: 1 | I166: 0
A167: 116 | E167: Dokumentace skutečného provedení | F167: kpl | G167: 1 | I167: 0
A168: 117 | E168: Výchozí revize elektro části MaR | F168: kus | G168: 1 | I168: 0
A170: Díl: | B170: 6 | E170: Rozvaděč RA0.1 dodávka + montáž | I170: =SUBTOTAL(9,I172:I231) -> 0
E171: Montáž
A172: =A168+1 -> 118 | B172: K | D172: E-2020-1 | E172: Vypínač VSN 32 1105 A8 V NVZ3R, 32A červenožlutý | F172: ks | G172: 1 | I172: =G172*H172 -> 0
A173: =A172+1 -> 119 | B173: K | D173: E-2000-1 | E173: Jednofázový jistič | F173: ks | G173: 17 | I173: =G173*H173 -> 0
A174: =A173+1 -> 120 | B174: K | D174: E-2010-1 | E174: Dvoupolový jistič | F174: ks | G174: 1 | I174: 0
A175: 121 | B175: K | D175: E-3110-1 | E175: Vyrážecí civka k jističi 230V AC | F175: ks | G175: 1 | I175: 0
A176: 122 | B176: K | D176: E-2006-1 | E176: Proudový chránič s nadproudovou ochranou B/16/2-030AC | F176: ks | G176: 2 | I176: 0
A177: 123 | B177: K | D177: E-2006-1 | E177: Motorový spínač MP | F177: ks | G177: 2 | I177: 0
A178: 124 | B178: K | D178: E-2000-1 | E178: Pomocný kontakt k jističi, motorovému spínači | F178: ks | G178: 8 | I178: 0
A179: 125 | B179: K | D179: R-1140-1 | E179: Zářivkové svítidlo 1x9W s vypínačem | F179: ks | G179: 1 | I179: 0
A180: 126 | B180: K | D180: D-1623-1 | E180: Zásuvka modulární 230V/16A | F180: ks | G180: 2 | I180: 0
A181: 127 | B181: K | D181: H-2850-1 | E181: Pomocné relé 2x8A+patice | F181: ks | G181: 20 | I181: 0
A182: 128 | B182: K | D182: H-2850-1 | E182: Modulární relé 3x8A, cívka 24V AC | F182: ks | G182: 3 | I182: 0
A183: 129 | B183: K | D183: E-0100-1 | E183: Pojistka trubičková na DIN lištu | F183: ks | G183: 30 | I183: 0
A184: 130 | B184: K | D184: J-3010-1 | E184: Bezpečnostní transformátor 230/24 V 180VA | F184: ks | G184: 1 | I184: 0
A185: 131 | B185: K | D185: J-3010-1 | E185: Zdroj 230V AC/24V DC | F185: ks | G185: 1 | I185: 0
A186: 132 | B186: K | D186: E-2006-1 | E186: Přepěťová ochrana 3.stupeň 10A s vf. filtrem | F186: ks | G186: 1 | I186: 0
A187: 133 | B187: K | D187: G-5130-0 | E187: Signálka 24V AC/DC | F187: ks | G187: 7 | I187: 0
A188: 134 | B188: K | D188: G-0020-1 | E188: Ovládač pomocných obvodů I-0-II se signálkou | F188: ks | G188: 3 | I188: 0
A189: 135 | B189: K | D189: G-0020-1 | E189: Tlačítkový ovládač | F189: ks | G189: 1 | I189: 0
A190: 136 | B190: K | D190: K-1260-1 | E190: Regulátor | F190: ks | G190: 1 | I190: 0
A191: 137 | B191: K | D191: K-1260-1 | E191: Modulová lišta montáž | F191: ks | G191: 2 | I191: 0
A192: 138 | B192: K | D192: K-1260-1 | E192: Ethernet switch 5 portů | F192: ks | G192: 1 | I192: 0
A193: 139 | B193: K | D193: L-4900-1 | E193: Displej | F193: ks | G193: 1 | I193: 0
A194: 140 | B194: K | D194: P-0195-1 | E194: Ukončení vodičů na regulátoru | F194: ks | G194: 332 | I194: 0
A195: 141 | B195: K | D195: P-0195-1 | E195: Řadová svorkovnice do 2,5 mm2 | F195: ks | G195: 328 | I195: 0
A196: 142 | B196: K | D196: P-0196-1 | E196: Řadová svorkovnice do 10 mm2 | F196: ks | G196: 5 | I196: 0
A197: 143 | B197: K | D197: P-4040-0 | E197: Vývodka PG9, PG11, PG13,5 | F197: ks | G197: 149 | I197: 0
A198: 144 | B198: K | D198: P-4040-0 | E198: Vývodka PG21 | F198: ks | G198: 1 | I198: 0
E199: Dodávka
A200: =A198+1 -> 145 | B200: M | C200: MAT | D200: MATERIÁL | E200: Vypínač VSN 32 1105 A8 V NVZ3R, 32A červenožlutý | F200: ks | G200: 1 | I200: 0
A201: 146 | B201: M | C201: MAT | D201: MATERIÁL | E201: Jednofázový jistič D/2/1 2A | F201: ks | G201: 1 | I201: 0
A202: 147 | B202: M | C202: MAT | D202: MATERIÁL | E202: Jednofázový jistič B/6/1 6A | F202: ks | G202: 11 | I202: 0
A203: 148 | B203: M | C203: MAT | D203: MATERIÁL | E203: Jednofázový jistič B/10/1 10A | F203: ks | G203: 2 | I203: 0
A204: 149 | B204: M | C204: MAT | D204: MATERIÁL | E204: Jednofázový jistič B/16/1 16A | F204: ks | G204: 2 | I204: 0
A205: 150 | B205: M | C205: MAT | D205: MATERIÁL | E205: Jednofázový jistič C/10/1 10A | F205: ks | G205: 1 | I205: 0
A206: 151 | B206: M | C206: MAT | D206: MATERIÁL | E206: Dvoupólový jistič C/6/2 6A | F206: ks | G206: 1 | I206: 0
A207: 152 | B207: M | C207: MAT | D207: MATERIÁL | E207: Proudový chránič s nadproudovou ochranou B/6-003 A, 30 mA | F207: ks | G207: 1 | I207: 0
A208: 153 | B208: M | C208: MAT | D208: MATERIÁL | E208: Motorový spínač MP6,3/3P 4,0-6,3A | F208: ks | G208: 2 | I208: 0
A209: 154 | B209: M | C209: MAT | D209: MATERIÁL | E209: Vyrážecí cívka k jističi 230V AC | F209: ks | G209: 1 | I209: 0
A210: 155 | B210: M | C210: MAT | D210: MATERIÁL | E210: Pomocný kontakt k jističi | F210: ks | G210: 9 | I210: 0
A211: 156 | B211: M | C211: MAT | D211: MATERIÁL | E211: Zářivkové svítidlo 1x9W s vypínačem | F211: ks | G211: 1 | I211: 0
A212: 157 | B212: M | C212: MAT | D212: MATERIÁL | E212: Zásuvka modulární 230V/16A | F212: ks | G212: 2 | I212: 0
A213: 158 | B213: M | C213: MAT | D213: MATERIÁL | E213: Přepěťová ochrana SPD3 10A s vf. filtrem | F213: ks | G213: 1 | I213: 0
A214: 159 | B214: M | C214: MAT | D214: MATERIÁL | E214: Zdroj 230V AC/24V DC PS-30-24 , 30 W | F214: ks | G214: 1 | I214: 0
A215: 160 | B215: M | C215: MAT | D215: MATERIÁL | E215: Bezpečnostní transformátor 230/24 V 180VA | F215: ks | G215: 1 | I215: 0
A216: 161 | B216: M | C216: MAT | D216: MATERIÁL | E216: Modulární relé 3x8A, cívka 24V AC | F216: ks | G216: 3 | I216: 0
A217: 162 | B217: M | C217: MAT | D217: MATERIÁL | E217: Pomocné relé 2x8A, cívka 24V AC+patice | F217: ks | G217: 12 | I217: 0
A218: 163 | B218: M | C218: MAT | D218: MATERIÁL | E218: Pomocné relé 2x8A, cívka 24V DC+patice | F218: ks | G218: 5 | I218: 0
A219: 164 | B219: M | C219: MAT | D219: MATERIÁL | E219: Pomocné relé 2x8A, cívka 230V AC+patice | F219: ks | G219: 3 | I219: 0
A220: 165 | B220: M | C220: MAT | D220: MATERIÁL | E220: Pojistka trubičková na DIN lištu | F220: ks | G220: 30 | I220: 0
A221: 166 | B221: M | C221: MAT | D221: MATERIÁL | E221: Ovládač pomocných obvodů I-0-II se prosvětlený se signálkou 24V AC | F221: ks | G221: 4 | I221: 0
... 74 more rows

Sheet 07_SO 01 - Silnoproud
A1: =CONCATENATE('Rekapitulace stavby'!C58,"_",'Rekapitulace stavby'!I58) -> 07_SO 01 - Silnoproudá elektroinstalace
A3: SPECIFIKACE DODÁVEK A PRACÍ
A4: Název akce:
A5: ='Identifikační údaje'!B1 -> ČRo Olomouc – rekonstrukce objektu Pavelčákova 2/19
A7: Zadavatel: | C7: ='Identifikační údaje'!E7 -> Český rozhlas, Vinohradská 12, 120 99 Praha 2
B8: IČ: | C8: ='Identifikační údaje'!B9 -> 45245053
B9: DIČ: | C9: ='Identifikační údaje'!B10 -> CZ45245053
A11: Projektant: | C11: ='Identifikační údaje'!E12 -> ATELIER 38 s.r.o., Porážková 1424/20, 702 00 Ostrava – Moravská Ostrava
B12: IČ: | C12: ='Identifikační údaje'!B14 -> 258 58 343
B13: DIČ: | C13: ='Identifikační údaje'!B15 -> CZ25858343
A15: Uchazeč: | C15: ='Identifikační údaje'!E19 -> , ,
B16: IČ: | C16: ='Identifikační údaje'!B23 -> 0
B17: DIČ: | C17: ='Identifikační údaje'!B24 -> 0
A19: Místo stavby: | C19: ='Identifikační údaje'!B3 -> Budova Českého rozhlasu Olomouc na adrese Pavelčákova 2/19, 779 00 Olomouc
A21: Datum: | C21: ='Identifikační údaje'!B5 -> 00:00:00
A23: =CONCATENATE("REKAPITULACE DODÁVEK A PRACÍ OBJEKTU ",'Rekapitulace stavby'!I58) -> REKAPITULACE DODÁVEK A PRACÍ OBJEKTU SO 01 - Silnoproudá elektroinstalace
A25: P.č. | B25: Ozn. | D25: Materiál celkem | F25: Montáž celkem | H25: M+M celkem
A27: =B44 -> A. | B27: =C44 -> Svítidla a příslušenství | E27: =F44 -> 0 | G27: =H44 -> 0 | H27: =E27+G27 -> 0
A28: =B76 -> B. | B28: =C76 -> Spínače, zásuvky a ostatní přístroje | E28: =F76 -> 0 | G28: =H76 -> 0 | H28: =E28+G28 -> 0
A29: =B117 -> C. | B29: =C117 -> Instalační, úložný a ochranný materiál | E29: =F117 -> 0 | G29: =H117 -> 0 | H29: =E29+G29 -> 0
A30: =B156 -> D. | B30: =C156 -> Kabely a vodiče | E30: =F156 -> 0 | G30: =H156 -> 0 | H30: =E30+G30 -> 0
A31: =B190 -> E. | B31: =C190 -> Pospojování, uzemnění | E31: =F190 -> 0 | G31: =H190 -> 0 | H31: =E31+G31 -> 0
A32: =B208 -> F. | B32: =C208 -> Ostatní | E32: --- | G32: =H208 -> 0 | H32: =G32 -> 0
A33: =B218 -> G. | B33: =C218 -> Hromosvod a uzemnění | C33: =D218 -> 0 | E33: =F218 -> 0 | G33: =H218 -> 0 | H33: =E33+G33 -> 0
A34: =B259 -> H. | B34: =C259 -> Strojní část | C34: =D259 -> 0 | E34: =F259 -> 0 | G34: =H259 -> 0 | H34: =E34+G34 -> 0
A36: =CONCATENATE("CELKEM ZA OBJEKT ",'Rekapitulace stavby'!I58, " v Kč bez DPH") -> CELKEM ZA OBJEKT SO 01 - Silnoproudá elektroinstalace v Kč bez DPH | H36: =SUBTOTAL(9,H27:I34) -> 0
A39: Textová, výkresová i tabulková část projektové dokumentace tvoří jeden vzájemně se doplňující a provázaný celek. Jednotliví účastníci výběrového řízení se musí seznámit s projektojektovou dokumentací v návaznosti na soupis prací a na základě těchto informací části díla nacenit. Dále je potřeba při stanovení ceny dle vykázané výměry započítat všechny předpokládané doplňkové prvky a činnosti s touto položkou související tak, aby cena byla kompletní a prvek funkční.
A41: 1
F42: Materiál | H42: Montáž
A43: poř.č. | B43: položka | C43: popis položky | D43: MJ | E43: množství | F43: jedn.cena | G43: celkem [Kč] | H43: jedn.cena | I43: celkem [Kč]
B44: A. | C44: Svítidla a příslušenství | F44: =SUBTOTAL(9,G46:G74) -> 0 | H44: =SUBTOTAL(9,I46:I74) -> 0
C45: (komplet, včetně zdrojů, závěsů, pomocného materiálu, osazení zapojení, vyzkoušení apod.)
A46: 1 | C46: A - Velmi tenké, čtvercový přisazené LED svítidlo. IP65; IK10; 4000K; 6,3W; 1950lm; Ra=80; 120lm/W, přisazené na stěně, podestách a stropu. 277x277 mm, výška: 58 mm. | D46: ks | E46: 23 | G46: =E46*F46 -> 0 | I46: =E46*H46 -> 0
A47: =A46+1 -> 2 | C47: B - LED svítidlo typu downlight s vysokou účinností, nízká výška. IP44; IK09; 4000K; 19,5W; 1950lm; Ra=80; 100lm/W, vestavné do podhledu, průměr: 215 mm, výška: 88 mm. | D47: ks | E47: 40 | G47: =E47*F47 -> 0 | I47: =E47*H47 -> 0
A48: 3 | C48: B1 - LED svítidlo typu downlight. IP 54; IK03; 4000K; 16,3W; 2030lm; Ra=80; 125lm/W, vestavné do podhledu, průměr: 127 mm, výška: 94 mm. | D48: ks | E48: 26 | G48: 0 | I48: =E48*H48 -> 0
A49: 4 | C49: C1 -Univerzální kruhový led panel se svíticím okrajem. 4000K; 42W; 3374lm; Ra=80; 84lm/W, přisazené na stropě, průměr: 500 mm, výška: 55 mm | D49: ks | E49: 24 | G49: 0 | I49: 0
A50: 5 | C50: C2 -Univerzální kruhový led panel se svíticím okrajem. 4000K; 42W; 3374lm; Ra=80; 84lm/W, zavěšené, spodní líc svítidla v: 2,6 m, průměr: 500 mm, výška: 55 mm | D50: ks | E50: 255 | G50: 0 | I50: 0
A51: 6 | C51: C3 -Dekorativní difuzní LED kruhové svítidlo s opálovým krytem. 4000K; 90,8W; 14160lm; Ra=80; 156lm/W - s led předřadníkem DALI, zavěšené, spodní líc svítidla v: 2,6 m, průměr: 1150 mm, výška: 84,5 mm. | D51: ks | E51: 9 | G51: 0 | I51: 0
A52: 7 | C52: C4 -Dekorativní difuzní LED kruhové svítidlo krytem microprisma. 4000K; 60W; 5090lm; Ra=80; 85lm/W - s led předřadníkem DALI, zavěšené, spodní líc svítidla v: 2,6 m, průměr: 1200 mm, výška: 87 mm | D52: ks | E52: 2 | G52: 0 | I52: 0
A53: 8 | C53: C5 -Dekorativní difuzní LED kruhové svítidlo krytem microprisma. 4000K; 60W; 4940lm; Ra=80; 83lm/W - s led předřadníkem DALI, zavěšené, spodní líc svítidla v: 2,6 m, průměr: 850 mm, výška: 87 mm. | D53: ks | E53: 1 | G53: 0 | I53: 0
A54: 9 | C54: D - LED svítidlo v krytí IP66, odolné vůči prachu a vlhkosti. IK08, 4000K; 51,4W; 6400lm; Ra=80; 125lm/W, zavěšené/přisazené, spodní líc svítidla v: 2,6 m, 1600x92 mm, výška: 90 mm. | D54: ks | E54: 15 | G54: 0 | I54: 0
A55: 10 | C55: D1 - LED svítidlo v krytí IP66, odolné vůči prachu a vlhkosti. IK08, 4000K; 34,3W; 4300lm; Ra=80; 125lm/W, zavěšené/přisazené, spodní líc svítidla v: 2,6 m, 1100x92 mm, výška: 90 mm. | D55: ks | E55: 51 | G55: 0 | I55: 0
A56: 11 | C56: D2 - LED svítidlo v krytí IP66, odolné vůči prachu a vlhkosti. IK08, 4000K; 22W; 2900lm; Ra=80; 132lm/W, zavěšené/přisazené, spodní líc svítidla v: 2,6 m, 1100x92 mm, výška: 90 mm. | D56: ks | E56: 11 | G56: 0 | I56: 0
A57: 12 | C57: E - Lištové LED svítidlo. 4000K; 23,9W; 3350lm; Ra=80; 140lm/W, zavěšené, spodní líc svítidla v: 2,6 m, 1168x60 mm, výška: 74 mm. | D57: ks | E57: 8 | G57: 0 | I57: 0
A58: 13 | C58: T - Trubkové LED svítidlo, 4000K; 23,9W; 3350lm; Ra=80; 140lm/W, přisazené na sloupech, spodní líc svítidla v: 2,1 m, průměr: 90 mm, výška: 1260 mm. | D58: ks | E58: 14 | G58: =E58*F58 -> 0 | I58: =E58*H58 -> 0
A59: 14 | C59: On Air - červené svítidlo s nápisem On Air, 2x25W, 195x220x135 mm | D59: ks | E59: 2 | G59: 0 | I59: 0
A60: 15 | C60: Závěs ke svítidlu typu C1 a C2 | D60: ks | E60: 255 | G60: 0 | I60: 0
A61: 16 | C61: Závěs ke svítidlu typu C3 | D61: ks | E61: 9 | G61: 0 | I61: 0
A62: 17 | C62: Závěs 5 párů (řetěz) - zavěšení prachotěsů | D62: ks | E62: 9 | G62: 0 | I62: 0
A63: 18 | C63: NB1 - bezpečnostní svítidlo stropní, přisazené, LED 1x2 W, IP41, asymetrika | D63: ks | E63: 13 | G63: =E63*F63 -> 0 | I63: =E63*H63 -> 0
A64: 19 | C64: NB2 -bezpečnostní svítidlo stropní, přisazené, LED 1x2 W, IP41, symetrika | D64: ks | E64: 30 | G64: 0 | I64: 0
A65: 20 | C65: NB3 - bezpečnostní svítidlo stropní, přisazené, LED 1x2,2 W, IP41, asymetrika | D65: ks | E65: 28 | G65: 0 | I65: 0
A66: 21 | C66: NB4 - bezpečnostní svítidlo nástěnné, přisazené, LED 2x1,5W, IP65, asymetrika - úniky fasáda, Al tělo | D66: ks | E66: 3 | G66: 0 | I66: 0
A67: 22 | C67: NB5 - bezpečnostní svítidlo stropní, přisazené, LED 3x1 W, IP54, asymetrika | D67: ks | E67: 1 | G67: 0 | I67: 0
A68: 23 | C68: NB6 -bezpečnostní svítidlo stropní, přisazené, LED 4x1 W, IP54, symetrika | D68: ks | E68: 13 | G68: 0 | I68: 0
A69: 24 | C69: NB7 - bezpečnostní svítidlo stropní, vestavné, LED 1x2 W, IP41, asymetrika | D69: ks | E69: 6 | G69: 0 | I69: 0
A70: 25 | C70: NB8 - bezpečnostní svítidlo stropní, vestavné, LED 1x2 W, IP41, symetrika | D70: ks | E70: 7 | G70: 0 | I70: 0
A71: 26 | C71: NP1 - piktogram nástěnný, přisazený, LED 1,9 IP40, viditelnost 20 m | D71: ks | E71: 15 | G71: 0 | I71: 0
A72: 27 | C72: NP2 - piktogram přisazený, stropní, LED 2,9 W, IP40, viditelnost 20 m, oboustr. | D72: ks | E72: 14 | G72: 0 | I72: 0
A73: 28 | C73: NP3 - sdružený piktogram nástěnný, přisazený, LED 4x1 W, IP54, viditelnost 17 m | D73: ks | E73: 44 | G73: 0 | I73: 0
A74: 29 | C74: NP4 - piktogram stropní, přisazený, LED 4x1 W, IP54, viditelnost 17 m, oboustr. | D74: ks | E74: 3 | G74: 0 | I74: 0
B76: B. | C76: Spínače, zásuvky a ostatní přístroje | F76: =SUBTOTAL(9,G78:G115) -> 0 | H76: =SUBTOTAL(9,I78:I115) -> 0
C77: (komplet, včetně příslušenství, pomocného materiálu, osazení, zapojení, vyzkoušení apod.)
A78: =A74 -> 29 | C78: Tlačítkový spínač, včetně přístrojové krabice, montáž,zapojení a ukončení vodičů. | D78: ks | E78: 3 | G78: =E78*F78 -> 0 | I78: =E78*H78 -> 0
A79: 30 | C79: Vypínač č.1, včetně přístrojové krabice, montáž,zapojení a ukončení vodičů. | D79: ks | E79: 20 | G79: =E79*F79 -> 0 | I79: =E79*H79 -> 0
A80: 31 | C80: Vypínač č.1 IP44, včetně přístrojové krabice, montáž,zapojení a ukončení vodičů. | D80: ks | E80: 10 | G80: 0 | I80: 0
A81: 32 | C81: Vypínač č.5, včetně přístrojové krabice, montáž,zapojení a ukončení vodičů. | D81: ks | E81: 20 | G81: 0 | I81: 0
A82: 33 | C82: Vypínač č.5 IP44, včetně přístrojové krabice, montáž,zapojení a ukončení vodičů. | D82: ks | E82: 2 | G82: 0 | I82: 0
A83: 34 | C83: Vypínač č.6, včetně přístrojové krabice, montáž,zapojení a ukončení vodičů. | D83: ks | E83: 4 | G83: 0 | I83: 0
A84: 35 | C84: Vypínač č.6+6, včetně přístrojové krabice, montáž,zapojení a ukončení vodičů. | D84: ks | E84: 20 | G84: 0 | I84: 0
A85: 36 | C85: Vypínač č.6+6 IP44, včetně přístrojové krabice, montáž,zapojení a ukončení vodičů. | D85: ks | E85: 2 | G85: =E85*F85 -> 0 | I85: =E85*H85 -> 0
A86: 37 | C86: Vypínač č.7 IP44, včetně přístrojové krabice, montáž,zapojení a ukončení vodičů. | D86: ks | E86: 4 | G86: 0 | I86: 0
A87: 38 | C87: DALI Circle control - nástěnný ovládací/řídicí jednotka ve standartní velikosti velikosti vypínače a napájecí zdroj. Řídicí jednotka určená pro provoz kompletního DALI systému. Umožňuje konfigurovat různe scény a pro dannou činnost (psaní, projektor…), včetně regulace intenzity osvětlení a spínání jednotlivých okruhů. 230V | D87: ks | E87: 1 | G87: 0 | I87: 0
A88: 39 | C88: Pohybové čidlo 180° vhodné pro spínání LED, IP20, včetně přístrojové krabice, montáž,zapojení a ukončení vodičů. | D88: ks | E88: 46 | G88: 0 | I88: 0
A89: 40 | C89: Pohybové čidlo 180° vhodné pro spínání LED, IP44, včetně přístrojové krabice, montáž,zapojení a ukončení vodičů. | D89: ks | E89: 6 | G89: 0 | I89: 0
A90: 41 | C90: Přítomnostní čidlo 180° vhodné pro spínání LED, IP20, včetně přístrojové krabice, montáž,zapojení a ukončení vodičů. | D90: ks | E90: 6 | G90: 0 | I90: 0
A91: 42 | C91: Přítomnostní čídlo s vysokou citlivostí 360° vhodné pro spínání LED, IP20, včetně přístrojové krabice, montáž,zapojení a ukončení vodičů. | D91: ks | E91: 32 | G91: 0 | I91: 0
A92: 43 | C92: Zásuvka 400V/16A,5p, IP 44, montáž,zapojení a ukončení vodičů. | D92: ks | E92: 1 | G92: 0 | I92: 0
A93: 44 | C93: Zásuvka 230V/16A,3p, IP 20, včetně přístrojové krabice, montáž,zapojení a ukončení vodičů. Bílá | D93: ks | E93: 183 | G93: =E93*F93 -> 0 | I93: =E93*H93 -> 0
A94: 45 | C94: Zásuvka 230V/16A,3p, IP 20, včetně přístrojové krabice, montáž,zapojení a ukončení vodičů. Šedá | D94: ks | E94: 33 | G94: 0 | I94: 0
A95: 46 | C95: Zásuvka 230V/16A,3p, IP 20, včetně přístrojové krabice, montáž,zapojení a ukončení vodičů. Červená | D95: ks | E95: 54 | G95: 0 | I95: 0
A96: 47 | C96: Zásuvka 230V/16A,3p, IP 44, včetně přístrojové krabice, montáž,zapojení a ukončení vodičů. Bílá | D96: ks | E96: 25 | G96: 0 | I96: 0
A97: 48 | C97: Zásuvka 230V/16A,3p, IP 44, včetně přístrojové krabice, montáž,zapojení a ukončení vodičů. Červená | D97: ks | E97: 1 | G97: 0 | I97: 0
A98: 49 | C98: Zásuvka 230V/16A,3p, IP 65, montáž,zapojení a ukončení vodičů. | D98: ks | E98: 3 | G98: 0 | I98: 0
A99: 50 | C99: 19" Zásuvkový blok 6x 230V/16A,3p, IP 20, včetně montáže,zapojení a ukončení vodičů. | D99: ks | E99: 30 | G99: 0 | I99: 0
A100: 51 | C100: Zásuvkový blok zpauštěný do nábytku 6x 230V/16A,3p, IP20 (2x bílá, 2x šedá, 2x červená barva), včetně montáže,zapojení a ukončení vodičů. | D100: ks | E100: 1 | G100: 0 | I100: 0
A101: 52 | C101: Zásuvkový blok zpauštěný do nábytku 6x 230V/16A,3p, IP20 (2x bílá, 2x šedá, 2x červená barva) 2xUSB nabíjecí port, včetně montáže,zapojení a ukončení vodičů. | D101: ks | E101: 2 | G101: 0 | I101: 0
A102: 53 | C102: Zásuvka 230V/16A s přepěťovou ochranou a optickou signalizací poruchy,3p, IP 20, včetně přístrojové krabice, montáž,zapojení a ukončení vodičů. - Bílá | D102: ks | E102: 32 | G102: 0 | I102: 0
A103: 54 | C103: Zásuvka 230V/16A s přepěťovou ochranou a optickou signalizací poruchy,3p, IP 20, včetně přístrojové krabice, montáž,zapojení a ukončení vodičů. - Šedá | D103: ks | E103: 33 | G103: 0 | I103: 0
A104: 55 | C104: Zásuvka 230V/16A s přepěťovou ochranou a optickou signalizací poruchy,3p, IP 20, včetně přístrojové krabice, montáž,zapojení a ukončení vodičů. - Červená | D104: ks | E104: 33 | G104: 0 | I104: 0
A105: 56 | C105: Zásuvka 230V/16A dvojnásobná, 3p, IP 20, včetně přístrojové krabice, montáž,zapojení a ukončení vodičů. | D105: ks | E105: 6 | G105: 0 | I105: 0
A106: 57 | C106: Zásuvka 230V/16A dvojnásobná s přepěťovou ochranou a optickou signalizací poruchy, 3p, IP 20, včetně přístrojové krabice, montáž,zapojení a ukončení vodičů. | D106: ks | E106: 43 | G106: 0 | I106: 0
A107: 58 | C107: Podlahová krabice A - (24M - 286x286x80) - (12xSIL = 4x nezálohované, 4x záloha DA, 4x záloha UPS) | D107: ks | E107: 3 | G107: 0 | I107: 0
A108: 59 | C108: Podlahová krabice B - (12M - 219x264x70) - (6xSIL = 2x nezálohované, 2x záloha DA, 2x záloha UPS) | D108: ks | E108: 5 | G108: 0 | I108: 0
A109: 60 | C109: Podlahová krabice C - (16M vetikální 286x286x70) - 1x přístrojový modul pro SLP (+prostup pro SIL) | D109: ks | E109: 8 | G109: 0 | I109: 0
A110: 61 | C110: Podlahová krabice D - (16M vetikální 286x286x70) - 2x přístrojový modul pro SLP | D110: ks | E110: 2 | G110: 0 | I110: 0
A111: =A110+1 -> 62 | C111: TOTAL stop tlačítko v červeném proskleném krytu, včetně podružného příslušenství, montáž,zapojení a ukončení vodičů. | D111: ks | E111: 1 | G111: 0 | I111: 0
A112: 63 | C112: CENTRAL stop tlačítko v červeném proskleném krytu, včetně podružného příslušenství, montáž,zapojení a ukončení vodičů. | D112: ks | E112: 1 | G112: 0 | I112: 0
A113: 64 | C113: Hlavní ochranná svorka MET,AET, včetně krabice , montáž,zapojení a ukončení vodičů. | D113: ks | E113: 18 | G113: 0 | I113: 0
A114: 65 | C114: Regulační set na DIN lištu (8 DIN modulů) - umístění do rozvaděče RH Touto položkou je myšlen řídicí systém pro ohřev okapů, včetně snímačů (regulátor/termostat, vlhkostní čidlo, teplotní čidlo. | D114: ks | E114: 1 | G114: 0 | I114: 0
A115: 66 | C115: Topný kabel do okapů a svodů Touto položkou je myšlen topný kabel s ochranou proti UV záření. 1ks=14m, 230V, 20W/m. Studený konec 5m, dvoužílový. | D115: ks | E115: 1 | G115: 0 | I115: 0
B117: C. | C117: Instalační, úložný a ochranný materiál | F117: =SUBTOTAL(9,G118:G154) -> 0 | H117: =SUBTOTAL(9,I117:I154) -> 0
C118: (komplet, včetně příslušenství, pomocného materiálu, výkopu, záhozu výkopu, vytyčení trasy, osazení, zapojení, vyzkoušení apod.)
A119: =A115+1 -> 67 | C119: Instalační krabice odbočná s víčkem (d=73mm,h=42mm), včetně vnitřních svorkovnic, zapuštěná, montáž,zapojení a ukončení vodičů. | D119: ks | E119: 204 | G119: =E119*F119 -> 0 | I119: =E119*H119 -> 0
A120: =A119+1 -> 68 | C120: Instalační krabice odbočná s víčkem (d=103mm,h=50mm), včetně vnitřních svorkovnic, zapuštěná, montáž,zapojení a ukončení vodičů. | D120: ks | E120: 49 | G120: =E120*F120 -> 0 | I120: =E120*H120 -> 0
A121: =A120+1 -> 69 | C121: Instalační krabice s víčkem 107x107x50mm (š x v x h), včetně vnitřních svorkovnic, zapuštěná, montáž,zapojení a ukončení vodičů. | D121: ks | E121: 28 | G121: =E121*F121 -> 0 | I121: =E121*H121 -> 0
A122: =A121+1 -> 70 | C122: Rozbočovací krabice přisazená 80x80x40mm (š x v x h), včetně vnitřních svorkovnic, IP44, montáž,zapojení a ukončení vodičů. | D122: ks | E122: 64 | G122: =E122*F122 -> 0 | I122: =E122*H122 -> 0
A123: 71 | C123: Rozbočovací krabice přisazená 150x110x70mm (š x v x h), včetně vnitřních svorkovnic, IP55, montáž,zapojení a ukončení vodičů. | D123: ks | E123: 26 | G123: 0 | I123: 0
A124: 72 | C124: Instalační krabice s funkčností při požáru 105x105x40mm (š x v x h), včetně vnitřních svorkovnic, IP54, montáž,zapojení a ukončení vodičů. | D124: ks | E124: 38 | G124: 0 | I124: 0
A125: 73 | C125: Ohebná dvouplášťová korugovaná chránička, červená, d=40mm,di=32mm, včetně spojovacího materiálu a příslušenství | D125: m | E125: 20 | G125: 0 | I125: 0
A126: 74 | C126: Ohebná dvouplášťová korugovaná chránička, červená, d=110mm,di=94mm, včetně spojovacího materiálu a příslušenství | D126: m | E126: 10 | G126: 0 | I126: 0
A127: 75 | C127: Instalační trubka ohebná z PVC d=20mm, di=14,1mm, střední mechanická odolnost,upevňovací a spojovací materiál, montáž. | D127: m | E127: 10 | G127: 0 | I127: 0
A128: 76 | C128: Instalační trubka ohebná z PVC d=25mm, di=18,3mm, střední mechanická odolnost,upevňovací a spojovací materiál, montáž. | D128: m | E128: 2858 | G128: 0 | I128: 0
A129: 77 | C129: Instalační trubka ohebná z PVC d=32mm, di=24,3mm, střední mechanická odolnost,upevňovací a spojovací materiál, montáž. | D129: m | E129: 2305 | G129: 0 | I129: 0
A130: 78 | C130: Instalační trubka ohebná z PVC d=40mm, di=31,2mm, střední mechanická odolnost,upevňovací a spojovací materiál, montáž. | D130: m | E130: 67 | G130: 0 | I130: 0
A131: 79 | C131: Instalační trubka ohebná z PVC d=50mm, di=39,6mm, střední mechanická odolnost,upevňovací a spojovací materiál, montáž. | D131: m | E131: 27 | G131: 0 | I131: 0
A132: 80 | C132: Instalační trubka ohebná bezhalogenová d=25mm, di=18,2mm, střední mechanická odolnost,upevňovací a spojovací materiál, montáž. | D132: m | E132: 211 | G132: 0 | I132: 0
A133: 81 | C133: Ohebná UV stabilní trubka vhodná pro venkovní instalace d=32mm, di=24,3mm, nízká mechanická odolnost,upevňovací a spojovací materiál, montáž. | D133: m | E133: 121 | G133: 0 | I133: 0
A134: 82 | C134: UV stabilní ohebná dvouplášťová korugovaná chránička, d=40mm, di=32mm,včetně spojovacího materiálu a příslušenství | D134: m | E134: 29 | G134: 0 | I134: 0
A135: 83 | C135: Instalační trubka tuhá z PVC d=25mm, di=21,4mm, střední mechanická odolnost,upevňovací a spojovací materiál, montáž. | D135: m | E135: 518 | G135: 0 | I135: 0
A136: 84 | C136: Instalační trubka tuhá z PVC d=32mm, di=28,0mm, střední mechanická odolnost,upevňovací a spojovací materiál, montáž. | D136: m | E136: 140 | G136: 0 | I136: 0
A137: 85 | C137: Instalační trubka tuhá z PVC d=40mm, di=35,8mm, střední mechanická odolnost,upevňovací a spojovací materiál, montáž. | D137: m | E137: 68 | G137: 0 | I137: 0
A138: 86 | C138: Instalační trubka tuhá bezhalogenová d=25mm, di=21,0mm, střední mechanická odolnost,upevňovací a spojovací materiál, montáž. | D138: m | E138: 94 | G138: 0 | I138: 0
A139: 87 | C139: Instalační trubka tuhá bezhalogenová d=32mm, di=28,0mm, střední mechanická odolnost,upevňovací a spojovací materiál, montáž. | D139: m | E139: 94 | G139: 0 | I139: 0
A140: 88 | C140: Kabelový žlab PERFOROVANÝ (300x60mm). Včetně příslušenství(úhelníky,závěsy, spojky,redukce, koncovky,úchytek pro kabeláž, apod), montáž. | D140: m | E140: 24 | G140: 0 | I140: 0
A141: 89 | C141: Kabelová drátěná lávka (100x54mm). Včetně příslušenství (spojovací sety, profily l=400mm, závitové tyče l=1000mm, zemnící svorky, šrouby a matice), montáž. | D141: m | E141: 40 | G141: 0 | I141: 0
A142: 90 | C142: Kabelová drátěná lávka (150x54mm). Včetně příslušenství (spojovací sety, profily l=400mm, závitové tyče l=1000mm, zemnící svorky, šrouby a matice), montáž. | D142: m | E142: 24 | G142: 0 | I142: 0
A143: 91 | C143: Kabelová drátěná lávka (300x105mm). Včetně příslušenství (spojovací sety, profily l=400mm, závitové tyče l=1000mm, zemnící svorky, šrouby a matice), montáž. | D143: m | E143: 235 | G143: 0 | I143: 0
A144: 92 | C144: Kabelová drátěná lávka v podlaze (100x54mm). Včetně příslušenství (spojovací sety, profily, zemnící svorky, šrouby a matice), montáž. | D144: m | E144: 23 | G144: 0 | I144: 0
A145: 93 | C145: Kabelová drátěná lávka (100x54mm) P 120-R. Včetně příslušenství (oddělující přepážka, spojovací sety, profily l=400mm, závitové tyče l=1000mm, zemnící svorky, šrouby a matice), S FUNKČNÍM PROVEDENÍM POŽÁRNÍ TRASY, montáž. | D145: m | E145: 6 | G145: 0 | I145: 0
A146: 94 | C146: Kabelová drátěná lávka (300x54mm) P 120-R. Včetně příslušenství (oddělující přepážka, spojovací sety, profily l=400mm, závitové tyče l=1000mm, zemnící svorky, šrouby a matice), S FUNKČNÍM PROVEDENÍM POŽÁRNÍ TRASY, montáž. | D146: m | E146: 272 | G146: 0 | I146: 0
A147: 95 | C147: Kabelový žebřík (600x60mm), včetně příslušenství (spojky,redukce, koncovky,úchytek pro kabeláž ), montáž. | D147: m | E147: 18 | G147: 0 | I147: 0
A148: 96 | C148: Kabelový žebřík (300x60mm), včetně příslušenství (spojky,redukce, koncovky,úchytek pro kabeláž ), montáž. | D148: m | E148: 3 | G148: 0 | I148: 0
A149: 97 | C149: Kabelový žebřík (300x60mm), včetně příslušenství (spojky,redukce, koncovky,úchytek pro kabeláž, odlehčení v tahu) S FUNKČNÍM PROVEDENÍM POŽÁRNÍ TRASY, montáž. | D149: m | E149: 18 | G149: 0 | I149: 0
A150: 98 | C150: Jednostranná příchytka E30-E90 pro kabel o průměru 14mm, včetně příslušenství , montáž. | D150: ks | E150: 4903 | G150: 0 | I150: 0
A151: 99 | C151: Jednostranná příchytka E30-E90 pro kabel o průměru 25mm, včetně příslušenství , montáž. | D151: ks | E151: 1843 | G151: 0 | I151: 0
A152: 100 | C152: Svazkový držák z kovu pro vysokou mechanickou odolnost, i v případě požáru, FeZn 60x33x30mm, včetně příslušenství, montáž. | D152: ks | E152: 107 | G152: 0 | I152: 0
A153: 101 | C153: Podružný materiál, montáž. | D153: ks | E153: 7 | G153: 0 | I153: 0
A154: 102 | C154: Protipožární ucpávky, včetně příslušenství, nátěru a montáže | D154: m2 | E154: 8.8 | G154: 0 | I154: 0
B156: D. | C156: Kabely a vodiče | F156: =SUBTOTAL(9,G157:G188) -> 0 | H156: =SUBTOTAL(9,I156:I188) -> 0
C157: (komplet, včetně vyhotovení drážky, zapravení drážky, vytyčení trasy, pomocného materiálu, příchytek, spojek, odlehčovacích oblouků, zapojení, vyzkoušení apod.)
A158: =A154+1 -> 103 | C158: Kabel B2CaS1D1 stíněný 4x1 mm2 | D158: m | E158: 37 | G158: =E158*F158 -> 0 | I158: =E158*H158 -> 0
A159: =A158+1 -> 104 | C159: Kabel B2CaS1D1 stíněný 4x2x0,8 mm2 | D159: m | E159: 307 | G159: =E159*F159 -> 0 | I159: =E159*H159 -> 0
A160: =A159+1 -> 105 | C160: Kabel CYKY 5x6 mm2 | D160: m | E160: 266 | G160: =E160*F160 -> 0 | I160: =E160*H160 -> 0
A161: =A160+1 -> 106 | C161: Kabel CYKY 5x10 mm2 | D161: m | E161: 138 | G161: =E161*F161 -> 0 | I161: =E161*H161 -> 0
A162: =A161+1 -> 107 | C162: Kabel CYKY 5x16 mm2 | D162: m | E162: 24 | G162: =E162*F162 -> 0 | I162: =E162*H162 -> 0
A163: 108 | C163: Kabel CYKY 5x70 mm2 | D163: m | E163: 40 | G163: 0 | I163: 0
A164: 109 | C164: Kabel CYKY 4x120 mm2 | D164: m | E164: 10 | G164: 0 | I164: 0
A165: 110 | C165: Vodič H07V-U žz 4 mm2 | D165: m | E165: 60 | G165: 0 | I165: 0
A166: 111 | C166: Vodič H07V-U žz 6 mm2 | D166: m | E166: 1015 | G166: 0 | I166: 0
A167: 112 | C167: Vodič H07V-U žz 10 mm2 | D167: m | E167: 330 | G167: 0 | I167: 0
A168: 113 | C168: Vodič H07V-R žz 25 mm2 | D168: m | E168: 1280 | G168: 0 | I168: 0
A169: 114 | C169: Vodič H07V-R žz 120 mm2 | D169: m | E169: 6 | G169: 0 | I169: 0
A170: 115 | C170: Vodič 1-YY 120 mm2 | D170: m | E170: 285 | G170: 0 | I170: 0
A171: 116 | C171: Kabel CSKH 2x1,5 mm2 P60-R | D171: m | E171: 41 | G171: 0 | I171: 0
A172: 117 | C172: Kabel CSKH 3x1,5 mm2 P60-R | D172: m | E172: 114 | G172: 0 | I172: 0
A173: 118 | C173: Kabel CSKH 2x2,5 mm2 P60-R | D173: m | E173: 231 | G173: 0 | I173: 0
A174: 119 | C174: Kabel CSKH 3x2,5 mm2 P60-R | D174: m | E174: 3123 | G174: 0 | I174: 0
A175: 120 | C175: Kabel CSKH 5x2,5 mm2 P60-R | D175: m | E175: 227 | G175: 0 | I175: 0
A176: 121 | C176: Kabel CSKH 3x4 mm2 P60-R | D176: m | E176: 17 | G176: 0 | I176: 0
A177: 122 | C177: Kabel CSKH 5x4 mm2 P60-R | D177: m | E177: 137 | G177: 0 | I177: 0
A178: 123 | C178: Kabel CSKH 5x6 mm2 P60-R | D178: m | E178: 141 | G178: 0 | I178: 0
A179: 124 | C179: Kabel CSKH 5x16 mm2 P60-R | D179: m | E179: 49 | G179: 0 | I179: 0
A180: 125 | C180: Kabel CXKH 2x1,5 mm2 RE | D180: m | E180: 249 | G180: 0 | I180: 0
A181: 126 | C181: Kabel CXKH 3x1,5 mm2 RE | D181: m | E181: 6602 | G181: 0 | I181: 0
A182: 127 | C182: Kabel CXKH 5x1,5 mm2 RE | D182: m | E182: 98 | G182: 0 | I182: 0
A183: 128 | C183: Kabel CXKH 3x2,5 mm2 RE | D183: m | E183: 8464 | G183: 0 | I183: 0
A184: 129 | C184: Kabel CXKH 5x2,5 mm2 RE | D184: m | E184: 64 | G184: 0 | I184: 0
A185: 130 | C185: Kabel CXKH 3x4 mm2 RE | D185: m | E185: 80 | G185: 0 | I185: 0
A186: 131 | C186: Kabel CXKH 5x4 mm2 RE | D186: m | E186: 46 | G186: 0 | I186: 0
A187: 132 | C187: Kabel CXKH 5x6 mm2 RE | D187: m | E187: 731 | G187: 0 | I187: 0
A188: 133 | C188: Kabel CXKH 5x10 mm2 RE | D188: m | E188: 30 | G188: 0 | I188: 0
B190: E. | C190: Pospojování, uzemnění | F190: =SUBTOTAL(9,G191:G206) -> 0 | H190: =SUBTOTAL(9,I190:I206) -> 0
C191: (komplet, včetně příslušenství, svorek, pomocného materiálu, osazení, zapojení, vyzkoušení apod.)
A192: =A188+1 -> 134 | C192: Rozvaděč RP Touto položkou je myšlena kompletní výzbroj včetně montáže, uvedené na v.č.D.1.4.g.51 | D192: ks | E192: 1 | G192: =E192*F192 -> 0 | I192: =E192*H192 -> 0
A193: =A192+1 -> 135 | C193: Rozvaděč RH+kompenzace Touto položkou je myšlena kompletní výzbroj včetně montáže, uvedené na v.č.D.1.4.g.52 | D193: ks | E193: 1 | G193: =E193*F193 -> 0 | I193: =E193*H193 -> 0
A194: =A193+1 -> 136 | C194: Rozvaděč RPO Touto položkou je myšlena kompletní výzbroj včetně montáže, uvedené na v.č.D.1.4.g.53 | D194: ks | E194: 1 | G194: 0 | I194: 0
A195: 137 | C195: Rozvaděč RX1 Touto položkou je myšlena kompletní výzbroj včetně montáže, uvedené na v.č.D.1.4.g.54 | D195: ks | E195: 1 | G195: 0 | I195: 0
A196: 138 | C196: Rozvaděč R0 Touto položkou je myšlena kompletní výzbroj včetně montáže, uvedené na v.č.D.1.4.g.55 | D196: ks | E196: 1 | G196: 0 | I196: 0
A197: 139 | C197: Rozvaděč RS0 Touto položkou je myšlena kompletní výzbroj včetně montáže, uvedené na v.č.D.1.4.g.56 | D197: ks | E197: 1 | G197: 0 | I197: 0
A198: 140 | C198: Rozvaděč R1 Touto položkou je myšlena kompletní výzbroj včetně montáže, uvedené na v.č.D.1.4.g.57 | D198: ks | E198: 1 | G198: 0 | I198: 0
A199: 141 | C199: Rozvaděč RS1 Touto položkou je myšlena kompletní výzbroj včetně montáže, uvedené na v.č.D.1.4.g.58 | D199: ks | E199: 1 | G199: 0 | I199: 0
A200: 142 | C200: Rozvaděč R2 Touto položkou je myšlena kompletní výzbroj včetně montáže, uvedené na v.č.D.1.4.g.59 | D200: ks | E200: 1 | G200: 0 | I200: 0
A201: 143 | C201: Rozvaděč RS2 Touto položkou je myšlena kompletní výzbroj včetně montáže, uvedené na v.č.D.1.4.g.60 | D201: ks | E201: 1 | G201: 0 | I201: 0
A202: 144 | C202: Rozvaděč R3 Touto položkou je myšlena kompletní výzbroj včetně montáže, uvedené na v.č.D.1.4.g.61 | D202: ks | E202: 1 | G202: 0 | I202: 0
A203: 145 | C203: Rozvaděč R-SR Touto položkou je myšlena kompletní výzbroj včetně montáže, uvedené na v.č.D.1.4.g.62 | D203: ks | E203: 1 | G203: 0 | I203: 0
A204: 146 | C204: Rozvaděč R4 Touto položkou je myšlena kompletní výzbroj včetně montáže, uvedené na v.č.D.1.4.g.63 | D204: ks | E204: 1 | G204: 0 | I204: 0
A205: 147 | C205: Zapuštěná skříň 380x415x160 IP40/20 - s neprůhlednými dveřmi Touto položkou je myšlena kompletní výzbroj včetně montáže zapuštěného rozvaděče. 4ks přepěťových ochran SPD - typ 1+2 (1+1), 25kA. | D205: ks | E205: 1 | G205: 0 | I205: 0
A206: 148 | C206: Elektroměrový rozvaděč RE Touto položkou je myšlena kompletní výzbroj včetně montáže rozvaděče. Výzbrojí je myšleno hlavní jistič B/160A/3, 3x MTP 200/5A, můstek PEN, prostor pro elektroměr a řadové svorky. | D206: ks | E206: 1 | G206: 0 | I206: 0
B208: F. | C208: Ostatní | H208: =SUBTOTAL(9,I208:I216) -> 0
A209: =A206+1 -> 149 | C209: Kompletační a koordinační činnost - cena obsahuje kompletaci zařízení a jeho odzkoušení s vazbou na ostatní profese, včetně vzájemné koordinace během výstavby, dopravu materiálu, koordinaci na stavbě, účast na KD, apod. | D209: ks | E209: 7 | F209: --- | G209: --- | I209: =E209*H209 -> 0
A210: =A209+1 -> 150 | C210: Připojení zařízení, oživení, funkční zkoušky, zaškolení obsluhy | D210: hod | E210: 28 | F210: --- | G210: --- | I210: =E210*H210 -> 0
A211: =A210+1 -> 151 | C211: Výchozí revize - cena obsahuje kompletní revizi, včetně zpracování zprávy a doložení veškerých potřebných dokumentů ke koladaci stavby. | D211: ks | E211: 7 | F211: --- | G211: --- | I211: 0
A212: =A211+1 -> 152 | C212: Sekání drážek, kapes a průvlaků | D212: hod | E212: 188 | F212: --- | G212: --- | I212: 0
A213: =A212+1 -> 153 | C213: Projektová dokumentace výrobní/dílenská | D213: kpl | E213: 1 | F213: --- | G213: --- | I213: 0
A214: 154 | C214: Projektová dokumentace skutečného provedení | D214: kpl | E214: 1 | F214: --- | G214: --- | I214: 0
A215: 155 | C215: TIČR -státní odborný dozor nad bezpečností vyhrazených technických zařízení v rozsahu zák. č. 174/1968 Sb. a vyhl. 73/2010Sb. | D215: kpl | E215: 1 | F215: --- | G215: --- | I215: 0
A216: 156 | C216: Termorevize elektrických rozvaděčů po realizaci projektu - snímkování rozvaděčů, vypracování termorevizního protokolu, doprava, podružný materiál | D216: ks | E216: 13 | F216: --- | G216: --- | I216: 0
B218: G. | C218: Hromosvod a uzemnění | F218: =SUBTOTAL(9,G219:G257) -> 0 | H218: =SUBTOTAL(9,I218:I257) -> 0
C219: (komplet, včetně příslušenství, svorek, pomocného materiálu, osazení, zapojení, vyzkoušení apod.)
... 46 more rows

Sheet 08_SO 01 - Slaboproud
A1: =CONCATENATE('Rekapitulace stavby'!C59,"_",'Rekapitulace stavby'!I59) -> 08_SO 01 - Slaboproudá elektroinstalace
A3: SPECIFIKACE DODÁVEK A PRACÍ
A4: Název akce:
A5: ='Identifikační údaje'!B1 -> ČRo Olomouc – rekonstrukce objektu Pavelčákova 2/19
A7: Zadavatel: | C7: ='Identifikační údaje'!E7 -> Český rozhlas, Vinohradská 12, 120 99 Praha 2
B8: IČ: | C8: ='Identifikační údaje'!B9 -> 45245053
B9: DIČ: | C9: ='Identifikační údaje'!B10 -> CZ45245053
A11: Projektant: | C11: ='Identifikační údaje'!E12 -> ATELIER 38 s.r.o., Porážková 1424/20, 702 00 Ostrava – Moravská Ostrava
B12: IČ: | C12: ='Identifikační údaje'!B14 -> 258 58 343
B13: DIČ: | C13: ='Identifikační údaje'!B15 -> CZ25858343
A15: Uchazeč: | C15: ='Identifikační údaje'!E19 -> , ,
B16: IČ: | C16: ='Identifikační údaje'!B23 -> 0
B17: DIČ: | C17: ='Identifikační údaje'!B24 -> 0
A19: Místo stavby: | C19: ='Identifikační údaje'!B3 -> Budova Českého rozhlasu Olomouc na adrese Pavelčákova 2/19, 779 00 Olomouc
A21: Datum vyplnění: | C21: ='Identifikační údaje'!B5 -> 00:00:00
A23: =CONCATENATE("REKAPITULACE DODÁVEK A PRACÍ OBJEKTU ",'Rekapitulace stavby'!I59) -> REKAPITULACE DODÁVEK A PRACÍ OBJEKTU SO 01 - Slaboproudá elektroinstalace
A25: P.č. | B25: Číslo položky | C25: Název položky | D25: Kč bez DPH
A27: Díl: | B27: =B45 -> A | C27: =C45 -> SK - Strukturovaná kabeláž | G27: =G45 -> 0
A28: Díl: | B28: =B135 -> B | C28: =C135 -> PZTS - Poplachový a tísňový zabezpečovací systém | G28: =G135 -> 0
A29: Díl: | B29: =B201 -> C | C29: =C201 -> EKV - elektronická kontrola přístupu | G29: =G201 -> 0
A30: Díl: | B30: =B249 -> D | C30: =C249 -> IP CCTV - IP Kamerový systém | G30: =G249 -> 0
A31: Díl: | B31: =B290 -> E | C31: =C290 -> STA - Společná televizní anténa | G31: =G290 -> 0
A32: Díl: | B32: =B353 -> F | C32: =C353 -> VDT - Domácí videotelefon | G32: =G353 -> 0
A33: Díl: | B33: =B395 -> G | C33: =C395 -> JČ - Jednotný čas | G33: =G395 -> 0
A34: Díl: | B34: =B411 -> H | C34: =C411 -> KK - Kabelové konstrukce - žlaby | G34: =G411 -> 0
A36: =CONCATENATE("CELKEM ZA OBJEKT ",'Rekapitulace stavby'!I59, " v Kč bez DPH") -> CELKEM ZA OBJEKT SO 01 - Slaboproudá elektroinstalace v Kč bez DPH | D36: =SUM(G27:G34) -> 0
A43: P.č. | B43: Číslo položky | C43: Název položky | D43: MJ | E43: množství | F43: cena / MJ | G43: celkem
B44: Ceník, kapitola | C44: Poznámka uchazeče
A45: Díl: | B45: A | C45: SK - Strukturovaná kabeláž | G45: =SUBTOTAL(9,G46:G133) -> 0
B46: A.001 | C46: Datový rozváděč DR 1.1-1.4
A47: 1 | B47: A.002 | C47: Datový rozvaděč stojanový s krytím IP 20 v provedení 47U a rozměrech 600x800. Svařovaný rozvaděč s odnímatelnými bočnicemi a zadním krytem s nosností 400kg, s montážní sadou • Součástí rozvaděče jsou 4 posuvné vertikální lišty k instalaci zařízení (6 lišt pro rozvaděče hlubší než 800 mm). – Ocelový svařovaný skelet s odnímatelnými krycími panely – Dveře jednokřídlé nebo dvoukřídlé ve variantách celoplechové, perforované nebo prosklené s bezpečnostním tvrzeným sklem 4mm. Mohou být na přední i zadní straně rozvaděče. • Dovolené zatížení jednotlivých dveří je max. 20 kg. • Minimální tloušťka povrchové úpravy je 65 μm. • Rám rozvaděče a všechny oddělitelné části (boční a zadní kryty, dveře…) jsou pospojeny pomocí propojovacích kabelů, které musí být důkladně připevněny a zasunuty do konektorů po celou dobu užívání rozvaděče. • Na spodní části rozvaděče je umístěn šroub M8 pro připojení pospojení. • Kabelové vstupy kryté vylamovacími záslepkami jsou umístěny v horní a ve spodní části rozvaděče | D47: ks | E47: 3 | G47: =E47*F47 -> 0
A48: =A47+1 -> 2 | B48: A.003 | C48: Podstavec s filtrem prostojanový datový rozváděč 600/800 | D48: ks | E48: 3 | G48: =E48*F48 -> 0
A49: 3 | B49: A.004 | C49: Datový rozvaděč stojanový s krytím IP 20 v provedení 47U a rozměrech 600x1000. Svařovaný rozvaděč s odnímatelnými bočnicemi a zadním krytem s nosností min 1200kg, s montážní sadou • Součástí rozvaděče jsou 4 posuvné vertikální lišty k instalaci zařízení (6 lišt pro rozvaděče hlubší než 800 mm) - Ocelový svařovaný skelet s odnímatelnými krycími panely – Dveře jednokřídlé nebo dvoukřídlé ve variantách celoplechové, perforované nebo prosklené s bezpečnostním tvrzeným sklem 4 mm. Mohou být na přední i zadní straně rozvaděče – Příprava pro montáž vertikálních vyvazovacích panelů a rozvodných panelů včetně montážních úchytů do skeletu rozvaděče – Příprava pro snadné spojování rozvaděčů do sestav. • Rám rozvaděče a všechny oddělitelné části (boční a zadní kryty, dveře…) jsou pospojeny pomocí propojovacích kabelů, které musí být důkladně připevněny a zasunuty do konektorů po celou dobu užívání rozvaděče. • Na spodní části rozvaděče je umístěn šroub M8 pro připojení zemnícího vodiče. • Kabelové vstupy kryté vylamovacími záslepkami jsou umístěny v horní a ve spodní části rozvaděče. | D49: ks | E49: 1 | G49: 0
A50: 4 | B50: A.005 | C50: Podstavec s filtrem prostojanový datový rozváděč 600/1000 | D50: ks | E50: 1 | G50: 0
A51: 5 | B51: A.006 | C51: Montážní sada,4 x základní sada prvků (obsahuje plovoucí matici, šroub a plastovou podložku.) pro uchycení zařízení do rozvaděče nebo rámu | D51: ks | E51: 4 | G51: 0
A52: 6 | B52: A.007 | C52: Ventilační jednotka,4x ventilátor 230VAC/60W,termostat,spodní-horní | D52: ks | E52: 3 | G52: 0
A53: 7 | B53: A.008 | C53: Ventilační jednotka,6x ventilátor 230VAC/90W,termostat,spodní-horní | D53: ks | E53: 1 | G53: 0
A54: 8 | B54: A.009 | C54: Osvětlovací jednotka 1U | D54: ks | E54: 7 | G54: 0
A55: 9 | B55: A.010 | C55: Patch panel univerzální modulární 24x RJ45/cat 6A/10G, neosazený, komplet vč. montážního příslušenství | D55: ks | E55: 25 | G55: 0
A56: 10 | B56: A.011 | C56: Plně osazený stíněný 24 portový patch Cat6A (pro 10Gbps kabeláže), osazený 4 stíněnými vyjímatelnými kazetami , každá s 6 porty Cat6A RJ45 Šasi panelu lze zakoupit i neosazené kazetami, pro zakončení kabelu jsou v kazetách svorkovnice LSA IDC, Vyvazovací zadní strana umožnuje fixovat kabel za plášť pro znemožnění vytržení kabelu ze svorkovnice,barva černá | D56: ks | E56: 0 | G56: 0
A57: 11 | B57: A.012 | C57: Keystone modul kovový, RJ45, kat. 6A 10G, STP, samořezný, stříbrný | D57: ks | E57: 518 | G57: 0
A58: 12 | B58: A.013 | C58: Telefonní patch panel 50x RJ45, ISDN, 1U, 1U, černý, komplet vybavený | D58: ks | E58: 1 | G58: 0
A59: 13 | B59: A.014 | C59: Polička s perforací 1U/650mm, max.nosnost 80kg | D59: ks | E59: 12 | G59: 0
A60: 14 | B60: A.015 | C60: Vyvazovací panel 1U/ 19", horizontální s kovovými oky | D60: ks | E60: 23 | G60: 0
A61: 15 | B61: A.016 | C61: Montážní, vyvazovací a popisovací příslušenství pro jeden rack, stojanový | D61: ks | E61: 4 | G61: 0
C62: Patch kabely
A63: =A61+1 -> 16 | B63: A.018 | C63: Patch kabel cat 6A nestíněný U/UTP, 2m | D63: ks | E63: 200 | G63: 0
C64: Datový rozváděč DR T.1-4, DR T machine roomy
A65: =A63+1 -> 17 | B65: A.020 | C65: Datový rozvaděč stojanový s krytím IP 20 v provedení 47U a rozměrech 600x800. Svařovaný rozvaděč s odnímatelnými bočnicemi a zadním krytem s nosností 400kg, s montážní sadou - popis viz výše | D65: ks | E65: 8 | G65: 0
A66: 18 | B66: A.021 | C66: Podstavec s filtrem prostojanový datový rozváděč 600/800 | D66: ks | E66: 8 | G66: 0
A67: 19 | B67: A.022 | C67: Montážní sada,4 x základní sada prvků (obsahuje plovoucí matici, šroub a plastovou podložku.) pro uchycení zařízení do rozvaděče nebo rámu | D67: ks | E67: 8 | G67: 0
A68: 20 | B68: A.023 | C68: Ventilační jednotka,4x ventilátor 230VAC/60W,termostat,spodní-horní | D68: ks | E68: 8 | G68: 0
A69: 21 | B69: A.024 | C69: Osvětlovací jednotka 1U | D69: ks | E69: 8 | G69: 0
A70: 22 | B70: A.025 | C70: Patch panel univerzální modulární 24x RJ45/cat 6A/10G, neosazený, komplet vč. montážního příslušenství | D70: ks | E70: 6 | G70: 0
A71: 23 | B71: A.026 | C71: Plně osazený stíněný 24 portový patch Cat6A (pro 10Gbps kabeláže), osazený 4 stíněnými vyjímatelnými kazetami , každá s 6 porty Cat6A RJ45 Šasi panelu lze zakoupit i neosazené kazetami, pro zakončení kabelu jsou v kazetách svorkovnice LSA IDC, Vyvazovací zadní strana umožnuje fixovat kabel za plášť pro znemožnění vytržení kabelu ze svorkovnice,barva černá | D71: ks | E71: 0 | G71: 0
A72: 24 | B72: A.027 | C72: Keystone modul kovový, RJ45, kat. 6A 10G, STP, samořezný, stříbrný | D72: ks | E72: 139 | G72: 0
A73: 25 | B73: A.028 | C73: Polička s perforací 1U/650mm, max.nosnost 80kg | D73: ks | E73: 24 | G73: 0
A74: 26 | B74: A.029 | C74: Vyvazovací panel 1U/ 19", horizontální s kovovými oky | D74: ks | E74: 7 | G74: 0
A75: 27 | B75: A.030 | C75: Montážní, vyvazovací a popisovací příslušenství pro jeden rack, stojanový | D75: ks | E75: 8 | G75: 0
B76: A.031 | C76: Patch kabely
A77: =A75+1 -> 28 | B77: A.032 | C77: Patch kabel cat 6A nestíněný, 2m | D77: ks | E77: 150 | G77: 0
A78: =A77+1 -> 29 | B78: A.034 | C78: Datový kabel nestíněný 4 pár U/UTP cat. 6A Eurotřída B2ca s1d1 | D78: m | E78: 40480 | G78: 0
A79: 30 | B79: A.035 | C79: Datový kabel stíněný venkovní kabel U/FTP cat 6A s PE pláštěm a třídou reakce na oheň Fca | D79: m | E79: 264 | G79: 0
A80: 31 | B80: A.036 | C80: Bezhalogenový nízkofrekvenční sdělovací kabel s Al stíněním s malým množstvím uvolněného tepla v případě požáru, SHKFH–R 5x2x0,5, kabel B2ca s1d1, zapojení zámku | D80: m | E80: 106 | G80: 0
A81: 32 | B81: A.037 | C81: Kabel sdělovací stíněný vícepárový SYKFY 20x2x0,5 | D81: m | E81: 84 | G81: 0
B82: A.038 | C82: Datové zásuvky,design dodržet dle interiéru a dle silnoproudých instalací
A83: =A81+1 -> 33 | B83: A.039 | C83: Datová dvojzásuvka 2xRJ45 Cat.6A vč. rámečku komplet ,uložení pod omítku, na odpovídající přístrojovou krabici | D83: ks | E83: 196 | G83: 0
A84: 34 | B84: A.040 | C84: Datová dvojzásuvka 2xRJ45 Cat.6Avč. rámečku komplet,uložení na povrch, na omítku, na odpovídající přístrojovou krabici | D84: ks | E84: 21 | G84: 0
A85: 35 | B85: A.043 | C85: Datová dvojzásuvka 2xRJ45 Cat.6A komplet, formát 45 x 45mm,uložení do montážního boxu zapuštěného do nábytkové desky | D85: ks | E85: 6 | G85: 0
A86: 36 | B86: A.044 | C86: Montážní box 3x modul 45x45, zapuštěný box do nábytkové desky, design shodný s ENN | D86: ks | E86: 3 | G86: 0
A87: 37 | B87: A.045 | C87: Datová dvojzásuvka 2xRJ45 Cat.6A komplet, formát 45 x 45mm,uložení do podlahové krabice | D87: ks | E87: 28 | G87: 0
A88: 38 | B88: A.046 | C88: Patch kabel cat 6A nestíněný, 3m | D88: ks | E88: 200 | G88: 0
A89: 39 | B89: A.047 | C89: Datová dvojzásuvka 2xRJ45 Cat.6A, formát 45 x 45mm, uložení na povrch, venkovní prostředí/outdoor, krytí IP54 | D89: ks | E89: 10 | G89: 0
A90: 40 | B90: A.048 | C90: Standardní 8-pinový UTP konektor RJ45 | D90: ks | E90: 3 | G90: 0
A91: 41 | B91: A.049 | C91: Přepěťová ochrana 10/100M Ethernet + PoE A/B nebo Hi PoE(max.90W), dvoustupňové provedení, galvanicky izolovaná svorka PE, montáž na rovný podklad, IP55 vč montážní skříně | D91: ks | E91: 3 | G91: 0
A92: 42 | B92: A.050 | C92: Elektroinstalační chránička plastová /trubka 16mm, ohebná pod omítkou | D92: m | E92: 1618 | G92: 0
A93: 43 | B93: A.051 | C93: Elektroinstalační chránička plastová /trubka 23mm,ohebná pod omítkou | D93: m | E93: 450 | G93: 0
A94: 44 | B94: A.052 | C94: Elektroinstalační chránička plastová /trubka 29mm,ohebná pod omítkou | D94: m | E94: 360 | G94: 0
A95: 45 | B95: A.053 | C95: Elektroinstalační chránička plastová /trubka 36mm,ohebná pod omítkou | D95: m | E95: 390 | G95: 0
A96: 46 | B96: A.054 | C96: Elektroinstalační chránička trubka plastová pevná hladká 21mm bezhalogenová, montáž po povrchu | D96: m | E96: 118 | G96: 0
A97: 47 | B97: A.055 | C97: Trubka ohebná 2340, montáž do betonové podlahy | D97: m | E97: 180 | G97: 0
A98: 48 | B98: A.056 | C98: Trubka stabilní dvouplášťová korugovaná UV stabilní | D98: m | E98: 6 | G98: 0
A99: 49 | B99: A.057 | C99: Protahovací drát AY2,5 | D99: m | E99: 3116 | G99: 0
A100: 50 | B100: A.058 | C100: 125/50 Kabelový žlab oceloplechový s integrovanou spojkou vč. příslušenství montáž stropní , v provedení plný | D100: m | E100: 50 | G100: 0
A101: 51 | B101: A.059 | C101: 62/50 Kabelový žlab oceloplechový s integrovanou spojkou vč. příslušenství montáž stropní , v provedení plný | D101: m | E101: 8 | G101: 0
A102: 52 | B102: A.060 | C102: Krabice přístrojová KP 68,montáž pod omítku/ do dutých příček SDK | D102: ks | E102: 196 | G102: 0
A103: 53 | B103: A.061 | C103: Krabice přístrojová, montáž na povrch | D103: ks | E103: 21 | G103: 0
A104: 54 | B104: A.062 | C104: Krabice do venkovní prostředí IP 54, montáž na sloup vč. montážního příslušenství | D104: ks | E104: 1 | G104: 0
A105: 55 | B105: A.063 | C105: Přípojková skříň, nástěnná montáž, na omítku, rozváděč pro metalické telefonní sítě. Rozváděč je určen k distribuci až 100 párů ve vnitřním i venkovním prostředí, vč. svorkovnic a bleskojistek | D105: ks | E105: 1 | G105: 0
A106: 56 | B106: A.064 | C106: Požární ucpávky vč. požárního nátěru a popisu | D106: m2 | E106: 1.4 | G106: 0
A107: =A106+1 -> 57 | B107: A.066 | C107: Instalační materiál | D107: ks | E107: 261 | G107: 0
A108: 58 | B108: A.067 | C108: Kabelové trasy-instalace kabelů do trubek, žlabů, lišt apod | D108: m | E108: 40974 | G108: 0
A109: 59 | B109: A.068 | C109: Kabelové trasy-instalace chrániček, kabelů do zdi, na příchytky, drážkování apod. | D109: m | E109: 3122 | G109: 0
A110: =A109+1 -> 60 | B110: A.069 | C110: Montáž žlabu, stoupacího žebříku | D110: m | E110: 58 | G110: =E110*F110 -> 0
A111: 61 | B111: A.070 | C111: Montáž rozváděče včetně vybavení vč. popisů kabeláží , sestavení rozváděče komplet (vyvazovací panely, patch panely, příslušenství apod.) a uvedení do provozu | D111: ks | E111: 4 | G111: 0
A112: 62 | B112: A.071 | C112: Montáž rozváděče radiové technologie včetně vybavení vč. popisů kabeláží, sestavení rozváděče komplet - osazení vyvazovacími panely, patch panely | D112: ks | E112: 8 | G112: 0
A113: 63 | B113: A.072 | C113: Zapojení vývodů zásuvek a v Racku | D113: ks | E113: 656 | G113: 0
A114: 64 | B114: A.073 | C114: Montáž zásuvek vč. přístrojových krabic vč. jejich popisu | D114: ks | E114: 261 | G114: 0
A115: 65 | B115: A.074 | C115: Montáž keystone v zásuvce vč. jejich popisu | D115: ks | E115: 525 | G115: 0
A116: 66 | B116: A.075 | C116: Montáž keystone v PatchPanelu vč. jejich popisu | D116: ks | E116: 657 | G116: 0
A117: 67 | B117: A.076 | C117: Zapojení zásuvka-konsolidační bod, vč. popisu a uvedení do provozu | D117: ks | E117: 12 | G117: 0
A118: 68 | B118: A.077 | C118: Montáž úložných boxů, montáž stůl/nábytek | D118: ks | E118: 3 | G118: 0
A119: 69 | B119: A.078 | C119: Montáž PPanelu 24 keystone RJ 45 cat 6A, komplet do datového rozváděče, vč. Příslušenství, včetně popisů a zapojení a uvedení do provozu | D119: ks | E119: 32 | G119: 0
A120: 70 | B120: A.079 | C120: Montáž přípojkové skříně SLP, vč. vnitřního vybavení, kabelových forem a zapojení bleskojistek | D120: ks | E120: 1 | G120: 0
A121: 71 | B121: A.080 | C121: Montáž a ukončení telefonního kabelu ve stávající a nové přípojkové skříni na fasádě objektu, nasvorkování, vč. propojení a uvedení do provozu | D121: ks | E121: 1 | G121: 0
A122: 72 | B122: A.081 | C122: Montáž krabice venkovní, pro ukončení venkovních kabelů stožár, střecha | D122: ks | E122: 1 | G122: 0
A123: 73 | B123: A.082 | C123: Měření na vývodu + Certifikační měření Permanent link Cat.6A ISO 11802 | D123: ks | E123: 1182 | G123: 0
A124: 74 | B124: A.083 | C124: Průraz ve zdivu betonovém tl. 20cm, plochy do 0,025m2, vč. začištění | D124: ks | E124: 53 | G124: 0
A125: 75 | B125: A.084 | C125: Průraz ve zdivu betonovém tl. 20cm, plochy do 0,05m2, vč. začištění | D125: ks | E125: 0 | G125: 0
A126: 76 | B126: A.085 | C126: Průraz přes strop, vč. začištění | D126: ks | E126: 4 | G126: 0
A127: 77 | B127: A.086 | C127: Průraz přes obvodové zdivo , vč. začištění | D127: ks | E127: 3 | G127: 0
A128: 78 | B128: A.087 | C128: Vypracování výrobní dokumentace stavby | D128: kpl | E128: 1 | G128: 0
A129: 79 | B129: A.088 | C129: Vypracování skutečného provedení stavby | D129: kpl | E129: 1 | G129: 0
A130: 80 | B130: A.089 | C130: Oživení systému SK jako celku, jeho zkušební testy systému vč.kompletního zprovoznění | D130: hod | E130: 124 | G130: 0
A131: 81 | B131: A.090 | C131: Pomocné stavební práce | D131: kpl | E131: 120 | G131: 0
A132: 82 | B132: A.091 | C132: Revizní zpráva | D132: kpl | E132: 1 | G132: 0
A133: 83 | B133: A.093 | C133: Doprava | D133: kpl | E133: 1 | G133: 0
A135: Díl: | B135: B | C135: PZTS - Poplachový a tísňový zabezpečovací systém | G135: =SUBTOTAL(9,G137:G199) -> 0
C136: Podrobnější specifikace hlavních zařízení, detektorů PZTS viz. Technická zpráva
A137: =A133+1 -> 84 | B137: B.001 | C137: Sestava ústředny EZS, základní sestava ústředny ve vybaveném boxu s přepěťovou ochranou, zdrojem 230VAC/12VDC 5A, bez systémové licence | D137: ks | E137: 1 | G137: =E137*F137 -> 0
A138: =A137+1 -> 85 | B138: B.002 | C138: Bezúdržbový akumulátor 12V/26 Ah, 177x166x125 mm, 8,2 kg pro ústřednu | D138: ks | E138: 1 | G138: =E138*F138 -> 0
A139: =A138+1 -> 86 | B139: B.003 | C139: SW licence nutná pro provoz ústředny - STANDARD (500 zón, 50 dveří, 500 uživatelů) | D139: ks | E139: 1 | G139: 0
A140: 87 | B140: B.004 | C140: Licence konfiguračního softwaru pro ústřednu | D140: ks | E140: 1 | G140: 0
A141: 88 | B141: B.005 | C141: GSM komunikátor (bez SIM karty), 2 NO/NC vstupy,komunikace na až 8 telefonních čísel. Tranzistorový vstup-spínací/přepínací a může být ovládán z až 1.000 čísel v paměti komunikátoru.Programování SMS zprávami, softwarem pro PC nebo aplikací OS Android. dohled nad poklesem / výpadkem napájení, deník událostí pro 16.000 zpráv, graf síly signálu, aktualizovaný každou hodinu, přesměrování SMS zpráv na předdefinované telefonní číslo,detekce rušiček GSM signálu vč. antény | D141: ks | E141: 1 | G141: 0
A142: 89 | B142: B.006 | C142: USB Kit, programovacá kabel a český SW pro nastavení a zprovoznění GSM komunikátoru | D142: ks | E142: 1 | G142: 0
A143: 90 | B143: B.007 | C143: Obslužná-provozní kniha PZTS | D143: ks | E143: 1 | G143: 0
A144: 91 | B144: B.008 | C144: Zálohovaná plastová siréna venkovní 110dB/1m s majákem a akumulátorem | D144: ks | E144: 1 | G144: 0
A145: 92 | B145: B.009 | C145: Koncentrátor, 8x vstup, 1x výstup 30V/1A, 1x analog IN a OUT 0-10V, montáž do skříně vč. uvedení do provozu | D145: ks | E145: 6 | G145: 0
A146: 93 | B146: B.010 | C146: Montážní box 220x220x50 mm pro 1x modul a rozšiřující kartu, montáž na povrch | D146: ks | E146: 6 | G146: 0
A147: 94 | B147: B.011 | C147: Koncentrátor, 8x vstup, 1x výstup 30V/1A, 1x analog IN a OUT 0-10V, vč.montáž do skříně vč. uvedení do provozu | D147: ks | E147: 2 | G147: 0
A148: 95 | B148: B.012 | C148: Systémový zdroj 12V/5A v boxu rozměru 444x444x140mm, vybavený se zdrojem | D148: ks | E148: 2 | G148: 0
A149: 96 | B149: B.013 | C149: Bezúdržbový akumulátor 12V/26 Ah, 177x166x125 mm, 8,2 kg pro systémový záložní zdroj | D149: ks | E149: 2 | G149: 0
A150: 97 | B150: B.014 | C150: Klávesnice, dotykový ovládací panel, RGBW, barva černá/bílá (dle interiéru při realizaci), 4x vstup, hliníkové provedení, montáž na povrch | D150: ks | E150: 4 | G150: 0
A151: 98 | B151: B.015 | C151: Ochranný kryt kovový pro klávesnici | D151: ks | E151: 2 | G151: 0
A152: 99 | B152: B.016 | C152: Detektor drátový technologie QUAD PIR, 15m/85°-90°, -30 až +70 °C, stojánek na stěnu a strop, vyvažovací rezistory, digital | D152: ks | E152: 10 | G152: 0
A153: 100 | B153: B.017 | C153: DUAL PIR+MW, Digitální duální (PIR+MW) detektor s dosahem 15m (85°) a funkcí antimasking, která detekuje zakrytí detektoru, stojánky, vyvažovací rezistory | D153: ks | E153: 2 | G153: 0
A154: 101 | B154: B.018 | C154: Magnetický kontakt na max. 25 mm, kabel 3m | D154: ks | E154: 6 | G154: 0
A155: 102 | B155: B.019 | C155: Sada k MK pro vnitřní montáž do kovu/plast, dle typu oken | D155: ks | E155: 6 | G155: 0
A156: 103 | B156: B.020 | C156: Instalační plastová krabice povrchová, 24šroubovacích svorek, tamper | D156: ks | E156: 5 | G156: 0
A157: 104 | B157: B.021 | C157: Tísňový plastový hlásič s výklopnou páčkou. Vyklopením páčky dojde k tiché aktivaci poplachu. Paměť poplachu, montáž do nábytku | D157: ks | E157: 1 | G157: 0
A158: 105 | B158: B.022 | C158: Žluté tísňové tlačítko,NO/NC výstup, žluté, sklo, s označení "Nouzové otevření dveří" | D158: ks | E158: 1 | G158: 0
A159: 106 | B159: B.023 | C159: Detektor drátový PIR venkovní provedení max. 12 x 15 m / 120°, PET provedení, IP54, čidlo denního světla + denní/noční režim, nastavitelná citlivost detekce | D159: ks | E159: 1 | G159: 0
A160: 107 | B160: B.024 | C160: Nouzové tlačítko a táhlo, určeno pro přivolání pomoci pro WC invalidní, vč. montážního příslušenství | D160: ks | E160: 1 | G160: 0
A161: 108 | B161: B.025 | C161: Optická a akustická signalizace, vícebarevná LED dioda, piezoměnič doplňková signalizace nástěnná montáž, | D161: ks | E161: 1 | G161: 0
A162: 109 | B162: B.026 | C162: Požární ucpávky vč. požárního nátěru a popisu | D162: m2 | E162: 0.8 | G162: 0
A163: =A162+1 -> 110 | B163: B.028 | C163: Sběrnicový datový kabel stíněný F/FTP 4pár cat6 B2ca s1d1 | D163: m | E163: 388 | G163: 0
A164: 111 | B164: B.029 | C164: Sdělovací stíněný kabel bezhalogenový, typ pláště B2ca s1d1 SHKFH–R, B2ca, s1 d1 3x2x0,5, kabel bez zachování funkčnosti kabel. trasy | D164: m | E164: 354 | G164: 0
A165: 112 | B165: B.030 | C165: Silový kabel bezhalogenový, typ pláště B2ca s1d0 CXKH-R 2x1,5 B2ca s1d1, kabel bez zachování funkšnosti kabelové trasy | D165: m | E165: 227 | G165: 0
A166: 113 | B166: B.031 | C166: Sdělovací stíněný kabel bezhalogenový, typ pláště B2ca s1d1 SHKFH–R, B2ca, s1 d1 5x2x0,5, kabel bez zachování funkčnosti kabel. trasy, kabel pro EZS siréna | D166: m | E166: 84 | G166: 0
A167: 114 | B167: B.032 | C167: Kabel dle Vyhlášky č.268/2011 Sb.PH120-R, dle ČSN 73 0895, B2caS1D0 dle PrEN 50399:07,Ohniodolný dle ČSN IEC60331, bezhalogenový dle ČSN 50266 SSKFH–V180, B2ca, s1 d1 3x2x0,5 | D167: m | E167: 50 | G167: 0
A168: 115 | B168: B.033 | C168: Kabel dle Vyhlášky č.268/2011 Sb.PH120-R dle ČSN 73 0895, B2caS1D0 dle PrEN 50399:07, ohniodolné dle ČSN IEC60331, bezhalogenové dle ČSN 50266 2x1,5 PH120-R B2ca s1d1 | D168: m | E168: 56 | G168: 0
A169: 116 | B169: B.034 | C169: Elektroinstalační chránička plastová /trubka 16mm, ohebná pod omítkou | D169: m | E169: 1044 | G169: 0
A170: 117 | B170: B.036 | C170: Elektroinstalační chránička trubka plastová pevná hladká 21mm bezhalogenová , montáž po povrchu | D170: m | E170: 50 | G170: 0
A171: 118 | B171: B.037 | C171: Protahovací drát AY2,5 | D171: m | E171: 1094 | G171: 0
A172: 119 | B172: B.038 | C172: 125/100 Kabelový žlab oceloplechový s integrovanou spojkou vč. příslušenství montáž nástěnná, v provedení s perforací | D172: m | E172: 25 | G172: 0
A173: 120 | B173: B.039 | C173: Jednostranná příchytka E30-E90 pro kabel o d 10mm dle Vyhl.23/268 2011 Sb. (ČSN 73 0895) vč. příslušenství pro uchycení do stropu | D173: ks | E173: 20 | G173: 0
A174: =A173+1 -> 121 | B174: B.041 | C174: Instalační materiál | D174: ks | E174: 47 | G174: 0
A175: 122 | B175: B.042 | C175: Kabelové trasy-instalace kabelů do trubek, žlabů apod | D175: m | E175: 826 | G175: 0
A176: 123 | B176: B.043 | C176: Kabelové trasy-instalace chrániček, kabelů do zdi, na příchytky apod. | D176: m | E176: 1321 | G176: 0
A177: 124 | B177: B.044 | C177: Montáž žlabu, stoupacího žebříku | D177: m | E177: 25 | G177: 0
A178: 125 | B178: B.045 | C178: Montáž ústředny-včetně oživení, uvedení do provozu | D178: ks | E178: 1 | G178: 0
A179: 126 | B179: B.046 | C179: Montáž klávesnice, montáž na stěnu vč. příslušenství, vč. uvedení do provozu | D179: ks | E179: 4 | G179: 0
A180: 127 | B180: B.047 | C180: Montáž expandéru vč. jeho uvedení do provozu, nastavení funcí | D180: ks | E180: 8 | G180: 0
A181: 128 | B181: B.048 | C181: Montáž detektoru PIR a duálních detektorů, vč. uvedení do provozu | D181: ks | E181: 13 | G181: 0
A182: 129 | B182: B.049 | C182: Montáž signalizace zvukové a optické LED, majáku, vč. uvedení do provozu | D182: ks | E182: 1 | G182: 0
A183: 130 | B183: B.050 | C183: Montáž sirény vnitřní/venkovní, vč. uvedení do provozu | D183: ks | E183: 1 | G183: 0
A184: 131 | B184: B.051 | C184: Montáž magnetických kontaktů, vč. uvedení do provozu | D184: ks | E184: 6 | G184: 0
A185: 132 | B185: B.052 | C185: Montáž tísňového tlačítka, montáž do stolu, nábytku, vč. uvedení do provozu | D185: ks | E185: 2 | G185: 0
A186: 133 | B186: B.053 | C186: Montáž tísňového tlačítka tahového, tlačítka nástěnného s táhlem, vč. uvedení do provozu | D186: ks | E186: 1 | G186: 0
A187: 134 | B187: B.054 | C187: Montáž instalační plastová krabice povrchová | D187: ks | E187: 5 | G187: 0
A188: 135 | B188: B.055 | C188: Montáž podružného napájecího zdroje, vč. montážního příslušenství a vč. uvedení do provozu | D188: ks | E188: 2 | G188: 0
A189: 136 | B189: B.056 | C189: Montáž akumulátoru | D189: ks | E189: 3 | G189: 0
A190: 137 | B190: B.057 | C190: Průraz ve zdivu betonovém tl. 20cm, plochy do 0,025m2, vč. začištění | D190: ks | E190: 34 | G190: 0
A191: 138 | B191: B.059 | C191: Průraz přes obvodové zdivo , vč. začištění | D191: ks | E191: 2 | G191: 0
A192: 139 | B192: B.060 | C192: Programování ústředny PZTS | D192: h | E192: 36 | G192: 0
A193: 140 | B193: B.061 | C193: Oživení, zkušební provoz systému PZTS jako celku | D193: h | E193: 16 | G193: 0
A194: 141 | B194: B.062 | C194: Revizní zpráva | D194: kpl | E194: 1 | G194: 0
A195: 142 | B195: B.063 | C195: Školení obsluhy | D195: h | E195: 8 | G195: 0
A196: 143 | B196: B.064 | C196: Vypracování výrobní dokumentace stavby | D196: kpl | E196: 1 | G196: 0
A197: 144 | B197: B.065 | C197: Vypracování skutečného provedení stavby | D197: kpl | E197: 1 | G197: 0
A198: 145 | B198: B.066 | C198: Pomocné stavební práce | D198: h | E198: 26 | G198: 0
A199: 146 | B199: B.068 | C199: Doprava | D199: kpl | E199: 1 | G199: =E199*F199 -> 0
A201: Díl: | B201: C | C201: EKV - elektronická kontrola přístupu | G201: =SUBTOTAL(9,G205:P247) -> 0
C202: Bezkontaktní karty nejsou součástí dodávky. Zajistí investor samostatně.
C203: Použitá technologie musí být kompatibilní se stávajícím systémem EKV, použivaný uživatelem pro všechny objekty ČRo, vč. zajištěné kompatibility obslužného SW a všech typů přístupových karet. Typ bezkontaktní ISO karta INDALA Standardní formát dat Wiegand 26b (Lite)
C204: Tyto hardwarové komponenty potřebují řídící SW/Winpak verze 4.7,upgrade zajistí uživatel samostatně před zahájením realizace.
A205: =A199+1 -> 147 | B205: C.001 | C205: Řídící jednotka sběrnicová pro připojení až 16 I/O modulů,2 sběrnice RS-485. Volné programování rocedur; vestavěný Ethernetový převodník, připojená do LAN s dálkovou správou, osazená v montážní skříni do racku | D205: ks | E205: 1 | G205: =E205*F205 -> 0
A206: =A205+1 -> 148 | B206: C.002 | C206: Kryt pro moduly do 19" rozváděčové skříně, výška 7U | D206: ks | E206: 1 | G206: =E206*F206 -> 0
A207: =A206+1 -> 149 | B207: C.003 | C207: Spínaný zdroj v nástěnném kovovém krytu 13,8 Vss / 10A s reléovými výstupy a odpojovačem | D207: ks | E207: 1 | G207: 0
A208: 150 | B208: C.004 | C208: Akumulátor 12V/38Ah se šroubovými svorkami M6 a životností až 10 let, | D208: ks | E208: 1 | G208: 0
A209: 151 | B209: C.005 | C209: Modul pro 2 čtečky systému | D209: ks | E209: 4 | G209: 0
A210: 152 | B210: C.006 | C210: Elektronika bezkontaktní čtečky karet | D210: ks | E210: 6 | G210: 0
A211: 153 | B211: C.007 | C211: Krycí rámeček úzký/široký na bezkontaktní čtečku, standard dle uživatele | D211: ks | E211: 6 | G211: 0
A212: 154 | B212: C.008 | C212: Nástěnný kovový kryt se zdrojem pro 2 moduly,montáž na stěnu,vestavěný napájecí zdroj 12Vss/3A zátěž s modulem pro dobíjení akumulátoru (v krytu je prostor pro max. 17 Ah aku). dvířka pants se zámkem, tamper kontakt, připravené průrazy pro vedení kabeláže, signalizace stavu napájení na dvířkách krytu | D212: ks | E212: 5 | G212: 0
A213: 155 | B213: C.009 | C213: Akumulátor 12V/17Ah se šroubovými svorkami M5 a životností až 5 let, | D213: ks | E213: 5 | G213: 0
A214: 156 | B214: C.010 | C214: Napáječ spínaný zálohovaný v krytu 27,6V/5A,prostor pro AKU max 2x 17Ah, max. proud do zátěže 5A, pro napájení EZ | D214: ks | E214: 2 | G214: 0
A215: 157 | B215: C.011 | C215: Bezúdržbový akumulátor min 12V/18 Ah pro systémový záložní zdroj EZ životnost 5let | D215: ks | E215: 4 | G215: 0
A216: 158 | B216: C.012 | C216: Odpojovací blok napájení EZ na signál EPS | D216: ks | E216: 3 | G216: 0
A217: 159 | B217: C.013 | C217: Protizákmitová ochrana na zámky, sada 2 ks | D217: ks | E217: 4 | G217: 0
A218: 160 | B218: C.014 | C218: Implementace,zapojení,nastavení podsystému EKV jako celku do nadřazeného centrálního řídícího SW na centrála v Pze, bez nutnosti dokupování SW licence | D218: kplt | E218: 24 | G218: 0
... 342 more rows

Sheet 09_SO 01 - EPS
A1: =CONCATENATE('Rekapitulace stavby'!C60,"_",'Rekapitulace stavby'!I60) -> 09_SO 01 - EPS - Elektrická požární signalizace
A3: SPECIFIKACE DODÁVEK A PRACÍ
A4: Název akce:
A5: ='Identifikační údaje'!B1 -> ČRo Olomouc – rekonstrukce objektu Pavelčákova 2/19
A7: Zadavatel: | C7: ='Identifikační údaje'!E7 -> Český rozhlas, Vinohradská 12, 120 99 Praha 2
B8: IČ: | C8: ='Identifikační údaje'!B9 -> 45245053
B9: DIČ: | C9: ='Identifikační údaje'!B10 -> CZ45245053
A11: Projektant: | C11: ='Identifikační údaje'!E12 -> ATELIER 38 s.r.o., Porážková 1424/20, 702 00 Ostrava – Moravská Ostrava
B12: IČ: | C12: ='Identifikační údaje'!B14 -> 258 58 343
B13: DIČ: | C13: ='Identifikační údaje'!B15 -> CZ25858343
A15: Uchazeč: | C15: ='Identifikační údaje'!E19 -> , ,
B16: IČ: | C16: ='Identifikační údaje'!B23 -> 0
B17: DIČ: | C17: ='Identifikační údaje'!B24 -> 0
A19: Místo stavby: | C19: ='Identifikační údaje'!B3 -> Budova Českého rozhlasu Olomouc na adrese Pavelčákova 2/19, 779 00 Olomouc
A21: Datum vyplnění: | C21: ='Identifikační údaje'!B5 -> 00:00:00
A23: =CONCATENATE("REKAPITULACE DODÁVEK A PRACÍ OBJEKTU ",'Rekapitulace stavby'!I60) -> REKAPITULACE DODÁVEK A PRACÍ OBJEKTU SO 01 - EPS - Elektrická požární signalizace
A25: P.č. | B25: Číslo položky | C25: Název položky | D25: Kč bez DPH
A27: Díl: | B27: =B36 -> A | C27: =C36 -> EPS - Elektrická požární signalizace | G27: =G36 -> 0
A29: =CONCATENATE("CELKEM ZA OBJEKT ",'Rekapitulace stavby'!I60, " v Kč bez DPH") -> CELKEM ZA OBJEKT SO 01 - EPS - Elektrická požární signalizace v Kč bez DPH | D29: =SUM(G27:G27) -> 0
A35: P.č. | B35: Číslo položky | C35: Název položky | D35: MJ | E35: množství | F35: cena / MJ | G35: celkem
A36: Díl: | B36: A | C36: EPS - Elektrická požární signalizace | G36: =SUBTOTAL(9,G37:G137) -> 0
A37: =1 -> 1 | B37: A.001 | C37: Kompaktní 4 smyčková požární ústředna ve skříni Comfort, rozměry 430 x 796 x 188 mm s prostorem pro 2 x 12 V/26Ah Aku, max. 504 adresovatelných C-NET prvků, 12 x programovací OC vst/výs, 1x nehlídaný výstup DP poplach a porucha a 1x hlídaný výstup DP poplach, porucha a 2x hlídaný výstup pro sirény. Napájecí zdroj 150W. Síťování po C-WEB,ústředna vybavena pro zapojení OPPO, KTPO, zapojení do sítě ústředen | D37: ks | E37: 1 | G37: =E37*F37 -> 0
A38: =A37+1 -> 2 | B38: A.002 | C38: 28Ah/12V SCB Bezúdržbový akumulátor 12V. Rozměry: 166 x 173 x 126; Hmotnost : 7,1 kg | D38: ks | E38: 2 | G38: =E38*F38 -> 0
A39: =A38+1 -> 3 | B39: A.003 | C39: Provozní kniha EPS | D39: ks | E39: 1 | G39: 0
A40: =A39+1 -> 4 | B40: A.004 | C40: Paralelní ovládací a zobrazovací externí tablo s připojením na hlásičovou adresovatelnou linku C-NET. Podsvícený 6-ti řádkový display se 40 znaky. Napájení z adresovatelné linky nebo externího zdroje 24VDC (součástí je montážní deska pro zápustnou montáž s přívody kabelů pod omítkou). Rozměry 282 x 207 x 46 mm ,osazen v recepci | D40: ks | E40: 1 | G40: 0
A41: 5 | B41: A.005 | C41: Zařízení dálkového přenosu - vypracování realizační projektové dokumentace, uvedení do provozu, dodávka certifikované firmy pro Olomoucký kraj, na klíč (PCO typ GLobal II NAM) | D41: kplt | E41: 1 | G41: 0
A42: 6 | B42: A.006 | C42: Zásahové karty | D42: ks | E42: 1 | G42: 0
A43: 7 | B43: A.007 | C43: Modul interface RS485 např. pro sériové OPPO, RADOM apod. | D43: ks | E43: 1 | G43: 0
A44: 8 | B44: A.008 | C44: Licenční klíč S2 pro ústřednu a tablo pro dálkový přístup ke konfiguraci pomocí Cerberus Remote - dohled + základní ovládání – akustika vyp., potvrzení, zpětné nastavení | D44: ks | E44: 1 | G44: 0
A45: 9 | B45: A.009 | C45: Obslužné pole požární ochrany | D45: ks | E45: 1 | G45: 0
A46: 10 | B46: A.010 | C46: Klíčový trezor požární ochrany s vyhříváním, vč. provedení a klíčové vložky pro region HZS OlK | D46: ks | E46: 1 | G46: 0
A47: 11 | B47: A.011 | C47: Širokospektrální optickokouřový hlásič s nastavitelným algoritmem vyhodnocení | D47: ks | E47: 103 | G47: 0
A48: 12 | B48: A.012 | C48: Teplotní hlásič s nastavitelným vyhodnocením buď jako diferenciální, nebo maximální hlásič | D48: ks | E48: 2 | G48: 0
A49: 13 | B49: A.013 | C49: Multisenzorový optickokouřový hlásič s nastavitelným algoritmem vyhodnocení technologie ASA hlásič | D49: ks | E49: 3 | G49: 0
A50: 14 | B50: A.014 | C50: Patice standardní pro hlásiče | D50: ks | E50: 108 | G50: 0
A51: 15 | B51: A.015 | C51: Přídavná patice vývodková pro pro osazení hlásičů na stropě, přívodní kabeláž provedena v trubkách po povrchu | D51: ks | E51: 15 | G51: 0
A52: 16 | B52: A.016 | C52: Tlačítkový hlásič komplet, červený s nepřímou aktivací, IP 44 | D52: ks | E52: 34 | G52: 0
A53: 17 | B53: A.017 | C53: Kryt tlačítka - červený použitelný pro všechny elektroniky velkých tlačítek | D53: ks | E53: 34 | G53: 0
A54: 18 | B54: A.018 | C54: Adresovatelný modul 4 vstupy | D54: ks | E54: 1 | G54: 0
A55: 19 | B55: A.019 | C55: Elektronika lineárního hlásiče kouře vč. potřebného příslušenství, zapojený v hlás. Lince bez dodatkových zařízení | D55: ks | E55: 5 | G55: 0
A56: 20 | B56: A.020 | C56: Patice pro osazení lineárního hlásiče kouře | D56: ks | E56: 5 | G56: 0
A57: 21 | B57: A.021 | C57: Odrazný reflektor komplet pro vzdálenost do 30m, 200x200mm | D57: ks | E57: 5 | G57: 0
A58: 22 | B58: A.022 | C58: EN54-23 nástěnný maják, červený na vysoké patici, napájení 9-60Vss, odběr 10-25mA /24Vss (nebo 19-51mA/12Vss),bílé záblesky 1Hz (přepínatelný na 0,5Hz), IP65, -25 až 70°C, certifikát, umístění nad klíčový trezor dle zvyklostí místně příslušného HZS | D58: ks | E58: 1 | G58: 0
A59: 23 | B59: A.023 | C59: Reléová skříň, nástěnná, určená pro montáž s lištou o velikosti 12DIN | D59: ks | E59: 11 | G59: 0
A60: 24 | B60: A.024 | C60: Relé 12V=, 3xPŘEP 10A/250VAC, 35x35x54.4mm, do objímky | D60: ks | E60: 33 | G60: 0
A61: 25 | B61: A.025 | C61: Objímka pro relé R15 3C/O, na DIN lištu | D61: ks | E61: 99 | G61: 0
A62: 26 | B62: A.026 | C62: Relé 24VDC/24VDC, 3xPŘEP 5A, do objímky | D62: ks | E62: 4 | G62: 0
A63: 27 | B63: A.027 | C63: Multifunkční autonomní siréna bílá 9-29VDC, 5mA/max32mA, 103dB vč. příslušenství | D63: ks | E63: 57 | G63: 0
A64: 28 | B64: A.028 | C64: Přídavná patice k houkačce bílá | D64: ks | E64: 57 | G64: 0
A65: 29 | B65: A.029 | C65: Paralelní optická signalizace | D65: ks | E65: 2 | G65: 0
A66: 30 | B66: A.030 | C66: Přídavný rámeček optické signalizace | D66: ks | E66: 2 | G66: 0
A67: 31 | B67: A.031 | C67: Lineární teplotní hlásič - vyhodnocovací jednotka pro osm nezávislých smyček,reléové výstupy, signalizace stavu poplach, porucha | D67: ks | E67: 2 | G67: 0
A68: 32 | B68: A.032 | C68: Vstupně-výstupní reléový prvek na linku, 4 vst./4 výst. adresovatelný modul, relé výstup 250 VAC‚ 4 A‚ max. 1000 VA nebo 30 VDC‚ 4 A‚ max. 120 W | D68: ks | E68: 8 | G68: 0
A69: 33 | B69: A.033 | C69: Vstupně-výstupní reléový prvek na linku 2 vstupy (nebo 2 výstupy), hlídaný, pro zapojený hlídaných výstupů sirénových smyček | D69: ks | E69: 7 | G69: 0
A70: 34 | B70: A.034 | C70: Samolepky s čísly adres - příslušenství označování hlásičů a prvků na linkách | D70: ks | E70: 157 | G70: 0
A71: 35 | B71: A.035 | C71: Napájecí a dobíjecí zdroj, spínaný, max proud do zátěže 230VAC/24V DC/5A dle EN 54-4 vč. nástěnné montážní skříně a prostorem pro uložení AKU až 17Ah | D71: ks | E71: 2 | G71: 0
A72: 36 | B72: A.036 | C72: 7Ah/12V SCB Bezúdržbový akumulátor 12V. Rozměry: 152 x 94+6 x 65; Hmotnost : 2 kg | D72: ks | E72: 4 | G72: 0
A73: 37 | B73: A.037 | C73: Rozváděč nástěnný ocelový plech 1200x800x300mm, včetně montážní desky, 3bodový zámek s výsuvnou klikou | D73: ks | E73: 2 | G73: 0
A74: 38 | B74: A.038 | C74: Požární ucpávky, včetně nátěru a instalace | D74: m2 | E74: 1.4 | G74: 0
A75: 39 | B75: A.039 | G75: 0
A76: 40 | B76: A.040 | C76: Kabel dle Vyhlášky č.268/2011 Sb.PH120-R dle ČSN 73 0895, B2caS1D0 dle PrEN 50399:07, ohniodolné dle ČSN IEC60331, bezhalogenové dle ČSN 50266 2x1,5 PH120-R B2ca s1d1 | D76: m | E76: 274 | G76: 0
A77: 41 | B77: A.041 | C77: Kabel dle Vyhlášky č.268/2011 Sb.PH120-R, dle ČSN 73 0895, B2caS1D0 dle PrEN 50399:07,Ohniodolný dle ČSN IEC60331, bezhalogenový dle ČSN 50266 SSKFH–V180, B2ca, s1 d1 2x2x0,8 | D77: m | E77: 1570 | G77: 0
A78: 42 | B78: A.042 | C78: Kabel dle Vyhlášky č.268/2011 Sb.PH120-R, dle ČSN 73 0895, B2caS1D0 dle PrEN 50399:07,Ohniodolný dle ČSN IEC60331, bezhalogenový dle ČSN 50266 SSKFH–V180, B2ca, s1d1 1x2x0,8 | D78: m | E78: 416 | G78: 0
A79: 43 | B79: A.043 | C79: Bezhalogenový nízkofrekvenční sdělovací kabel s Al stíněním s malým množstvím uvolněného tepla v případě požáru, SHKFH–R 1x2x0,8, kabel pro hlásičové linky EPS B2ca s1d1 | D79: m | E79: 1638 | G79: 0
A80: 44 | B80: A.044 | C80: Bezhalogenový nízkofrekvenční sdělovací kabel s Al stíněním s malým množstvím uvolněného tepla v případě požáru, SHKFH–R 2x2x0,8, kabel EPS B2ca s1d1 | D80: m | E80: 214 | G80: 0
A81: 45 | B81: A.045 | C81: Lineární detekční kabel v základním provedení. Plášť ve vinylovém, oheň retardujícím provedení. Vhodný pro běžné aplikace. Nízká absorpce vlhkosti pláště. Odolný vůči běžným chemikáliím a vhodný pro nízké teploty. Teplota detekce - 68°C (155°F), maximální teplota okolí 46°C. (Uvedená cena za 1m.), vč. montážních příchytek a příslušenství pro uchycení kabelu,vč. T-clip držáků | D81: m | E81: 262 | G81: 0
A82: 46 | B82: A.046 | C82: Kabel dle Vyhlášky č.268/2011 Sb.PH120-R, dle ČSN 73 0895, B2caS1D0 dle PrEN 50399:07,Ohniodolný dle ČSN IEC60331, bezhalogenový dle ČSN 50266 SSKFH–V180, B2ca, s1, d1 4x2x0,8, připojení KTPO a ZDP | D82: m | E82: 86 | G82: 0
A83: 47 | B83: A.047 | C83: Kabel dle Vyhlášky č.268/2011 Sb.PH120-R, dle ČSN 73 0895, B2caS1D0 dle PrEN 50399:07,Ohniodolný dle ČSN IEC60331, bezhalogenový dle ČSN 50266 SSKFH–V180, B2ca, s1d1 10x2x0,8 | D83: m | E83: 86 | G83: 0
A84: 48 | B84: A.048 | C84: Bezhalogenový silový kabel 1-CXKH-R B2ca s1d0 3x1,5 kabel pro pož. klapky 230VAC se servopohonem | D84: m | E84: 271 | G84: 0
A85: 49 | B85: A.049 | C85: Rozbočovací krabice se zachováním funkčnosti při požáru, určena pro kabely s prokázanou funkčností při požáru vč. svorkovnice je určena pro 5 vodičů s průřezem od 1,5 do 16 mm2 | D85: ks | E85: 11 | G85: 0
A86: 50 | B86: A.050 | C86: Jednostranná příchytka E30-E90 pro kabel o d 10mm dle Vyhl.23/268 2011 Sb. (ČSN 73 0895) vč. příslušenství pro uchycení do stropu | D86: ks | E86: 8890.2 | G86: 0
A87: 51 | B87: A.051 | C87: Elektroinstalační trubka pevná hladká bezhalogenové provedení 23mm, montáž po povrchu | D87: m | E87: 198 | G87: 0
A88: 52 | B88: A.052 | C88: Elektroinstalační trubka, 16mm, ohebná pod omítku | D88: m | E88: 1460 | G88: 0
A89: 53 | B89: A.053 | C89: Kabelová lávka do 200mm určená pro trasy s požární odolností/integritou dle ČSN 73 0895, do stoupací svislé trasy rozvodů EPS 1.NP-5.NP | D89: m | E89: 20 | G89: 0
A90: 54 | B90: A.054 | C90: Montážní příslušenství pro svislé uchycení kabelové lávky | D90: ks | E90: 20 | G90: 0
A91: 55 | B91: A.055 | C91: Příchytka kabelová, typ H, 10-19mm (35) | D91: ks | E91: 600 | G91: 0
A92: 56 | B92: A.056 | C92: Označení požárně odolných tras | D92: ks | E92: 7 | G92: 0
A93: 57 | B93: A.057 | C93: Odlehčení v tahu do trasy P-30R stoupacích vedení 340x160x140mm | D93: ks | E93: 5 | G93: 0
A94: 58 | B94: A.058 | C94: Kryt kabelových příchytek | D94: ks | E94: 5 | G94: 0
A95: 59 | B95: A.059 | C95: Montážní set pro odlehčení v tahu | D95: ks | E95: 5 | G95: 0
A96: 60 | B96: A.060 | G96: 0
A97: 61 | B97: A.061 | C97: Instalační materiál | D97: ks | E97: 360 | G97: 0
A98: 62 | B98: A.062 | C98: Montáž ústředny, včetně přezkoušení a uvedení do provozu | D98: ks | E98: 1 | G98: 0
A99: 63 | B99: A.063 | C99: Montáž OPPO, včetně přezkoušení a uvedení do provozu | D99: ks | E99: 1 | G99: 0
A100: 64 | B100: A.064 | C100: Montáž KTPO, včetně přezkoušení a uvedení do provozu | D100: ks | E100: 1 | G100: 0
A101: 65 | B101: A.065 | C101: Montáž ovládacího tabla, včetně přezkoušení a uvedení do provozu | D101: ks | E101: 1 | G101: 0
A102: 66 | B102: A.066 | C102: Montáž zařízení ZDP, vč.proj.dokumentace v souladu s požadavky HZS MsK a uvedení zařízení do provozu | D102: ks | E102: 1 | G102: =E102*F102 -> 0
A103: 67 | B103: A.067 | C103: Montáž signalizačního majáku na povrchu vč. jeho uvedení do provozu | D103: ks | E103: 1 | G103: 0
A104: =A103+1 -> 68 | B104: A.068 | C104: Montáž pomocného napájecího zdroje vč. jeho uvedení do provozu | D104: ks | E104: 2 | G104: 0
A105: 69 | B105: A.069 | C105: Montáž akumulátoru do skříně zdroje, ústředny vč. jeho uvedení do provozu | D105: ks | E105: 6 | G105: 0
A106: 70 | B106: A.070 | C106: Montáž automat. hlásiče EPS, včetně přezkoušení a uvedení do provozu | D106: ks | E106: 108 | G106: 0
A107: 71 | B107: A.071 | C107: Montáž tlačítkového hlásiče EPS, včetně přezkoušení a uvedení do provozu | D107: ks | E107: 34 | G107: 0
A108: 72 | B108: A.072 | C108: Montáž zásuvky/patice po hlásič EPS | D108: ks | E108: 108 | G108: 0
A109: 73 | B109: A.073 | C109: Montáž krabice a příslušenství pro zvýšené krytí na povrch pro uložení zásuvky EPS | D109: ks | E109: 15 | G109: 0
A110: 74 | B110: A.074 | C110: Montáž lineárního optického hlásiče, vč. jeho nastavení a uvedení do provozu | D110: ks | E110: 5 | G110: 0
A111: 75 | B111: A.075 | C111: Montáž modul 4In/4Out vč. jeho uvedení do provozu | D111: ks | E111: 8 | G111: 0
A112: 76 | B112: A.076 | C112: Montáž modul 2In/Out vč. jeho uvedení do provozu | D112: ks | E112: 7 | G112: 0
A113: 77 | B113: A.077 | C113: Montáž modul 4In vč. jeho uvedení do provozu | D113: ks | E113: 1 | G113: 0
A114: 78 | B114: A.078 | C114: Montáž paralelní signalizace vč. jeho uvedení do provozu | D114: ks | E114: 2 | G114: 0
A115: 79 | B115: A.079 | C115: Montáž reléová skříňka, nástěnná, určená pro montáž s lištou o velikosti 12DIN, vč. relé, vč.uvedení do provozu | D115: ks | E115: 11 | G115: 0
A116: 80 | B116: A.080 | C116: Montáž samostatné sirény, majáku vč. jeho uvedení do provozu | D116: ks | E116: 58 | G116: 0
A117: 81 | B117: A.081 | C117: Montáž vyhodnocovací jednotky teplotního lineárního hlásiče vč. uvedení do provozu | D117: ks | E117: 2 | G117: 0
A118: 82 | B118: A.082 | C118: Montáž rozváděče EPS, vč. vnitřního příslušenství | D118: ks | E118: 2 | G118: 0
A119: 83 | B119: A.083 | C119: Kabelové trasy-instalace kabelů do trubek, žlabů apod | D119: m | E119: 2024 | G119: 0
A120: 84 | B120: A.084 | C120: Kabelové trasy-instalace chrániček, kabelů do zdi, na příchytky apod. | D120: m | E120: 4603 | G120: 0
A121: 85 | B121: A.085 | C121: Kabelové trasy-instalace kabelového žlabu, stoupacího žebříku vč. montážního příslušenství apod. | D121: m | E121: 20 | G121: 0
A122: 86 | B122: A.086 | C122: Průraz ve zdivu cihlovém/betonovém tl. 30cm, plochy do 0,025m2, vč. začištění | D122: ks | E122: 106 | G122: 0
A123: 87 | B123: A.087 | C123: Průraz ve stropě cihlovém/betonovém tl. 30cm, plochy do 0,025m2, vč. začištění | D123: ks | E123: 1 | G123: 0
A124: 88 | B124: A.088 | C124: Průraz přes strop, vč. začištění | D124: ks | E124: 19 | G124: 0
A125: 89 | B125: A.089 | C125: Montáž odlehčení v tahu do stoupací trasy | D125: ks | E125: 5 | G125: 0
A126: 90 | B126: A.090 | C126: Plošina, montážní práce ve výškách | D126: den | E126: 3 | G126: 0
A127: 91 | B127: A.091 | C127: Kontrola funkčnosti zapojených ovládaných zařízení, vč. uvedení do provozu | D127: ks | E127: 65 | G127: 0
A128: 92 | B128: A.092 | C128: Kontrola funkčnosti zapojených ovládaných PPK a PSUM, vč. uvedení do provozu | D128: ks | E128: 22 | G128: 0
A129: 93 | B129: A.093 | C129: Zapojení výstupů systému EKV, které slouží pro napájení el. zámků do systému EPS - přerušení napájení el. zámků | D129: ks | E129: 3 | G129: 0
A130: 94 | B130: A.094 | C130: Programování ústředny EPS jako celku | D130: h | E130: 88 | G130: 0
A131: 95 | B131: A.095 | C131: Školení obsluhy | D131: h | E131: 8 | G131: 0
A132: 96 | B132: A.096 | C132: Revize | D132: kplt | E132: 1 | G132: 0
A133: 97 | B133: A.097 | C133: Oživení, zkušební testy instalovaného systému | D133: kplt | E133: 1 | G133: 0
A134: 98 | B134: A.098 | C134: Vypracování výroní dokumentace stavby | D134: kplt | E134: 1 | G134: 0
A135: 99 | B135: A.099 | C135: Vypracování dokumentace skutečného provedení stavby | D135: kplt | E135: 1 | G135: 0
A136: 100 | B136: A.100 | C136: Pomocné stavební práce | D136: h | E136: 64 | G136: 0
A137: 101 | B137: A.101 | C137: Doprava | D137: kplt | E137: 1 | G137: 0

Sheet 10_SO 01 - akustika
A1: =CONCATENATE('Rekapitulace stavby'!C61,"_",'Rekapitulace stavby'!I61) -> 10_SO 01 - Prostorová akustika
A3: SPECIFIKACE DODÁVEK A PRACÍ
A4: Název akce:
A5: ='Identifikační údaje'!B1 -> ČRo Olomouc – rekonstrukce objektu Pavelčákova 2/19
A7: Zadavatel: | C7: ='Identifikační údaje'!E7 -> Český rozhlas, Vinohradská 12, 120 99 Praha 2
B8: IČ: | C8: ='Identifikační údaje'!B9 -> 45245053
B9: DIČ: | C9: ='Identifikační údaje'!B10 -> CZ45245053
A11: Projektant: | C11: ='Identifikační údaje'!E12 -> ATELIER 38 s.r.o., Porážková 1424/20, 702 00 Ostrava – Moravská Ostrava
B12: IČ: | C12: ='Identifikační údaje'!B14 -> 258 58 343
B13: DIČ: | C13: ='Identifikační údaje'!B15 -> CZ25858343
A15: Uchazeč: | C15: ='Identifikační údaje'!E19 -> , ,
B16: IČ: | C16: ='Identifikační údaje'!B23 -> 0
B17: DIČ: | C17: ='Identifikační údaje'!B24 -> 0
A19: Místo stavby: | C19: ='Identifikační údaje'!B3 -> Budova Českého rozhlasu Olomouc na adrese Pavelčákova 2/19, 779 00 Olomouc
A21: Datum vyplnění: | C21: ='Identifikační údaje'!B5 -> 00:00:00
A23: =CONCATENATE("REKAPITULACE DODÁVEK A PRACÍ OBJEKTU ",'Rekapitulace stavby'!I61) -> REKAPITULACE DODÁVEK A PRACÍ OBJEKTU SO 01 - Prostorová akustika
A25: P.č. | C25: Ozn. | D25: Název položky | I25: Kč bez DPH
A27: Díl: | B27: =A53 -> 1 | D27: =D53 -> 016 - Záložní studio | I27: =I73 -> 0
A28: Díl: | B28: =A76 -> 2 | D28: =D76 -> 017 - záložní režie | I28: =I96 -> 0
A29: Díl: | B29: =A99 -> 3 | D29: =D99 -> 109 - Samoobslužné pracoviště | I29: =I116 -> 0
A30: Díl: | B30: =A119 -> 4 | D30: =D119 -> 120 - Vysílací režie | I30: =I139 -> 0
A31: Díl: | B31: =A142 -> 5 | D31: =D142 -> 209 - Samoobslužné pracoviště | I31: =I159 -> 0
A33: =CONCATENATE("CELKEM ZA OBJEKT ",'Rekapitulace stavby'!I61, " v Kč bez DPH") -> CELKEM ZA OBJEKT SO 01 - Prostorová akustika v Kč bez DPH | I33: =SUM(I27:J31) -> 0
A37: Poznámky:
A38: V ceně je obsažena komplexní dodávka a montáž včetně dopravy, přesunu hmot, VRN a hrubého úklidu staveniště.
A39: V ceně akustických obkladů jsou obsaženy také všechny obložky a zakončení s ním související.
A40: Všechny výše uvedené rozměry je nutné před zahájením vlastní výroby ověřit zaměřením přímo na stavbě.
A53: 1 | D53: 016 - Záložní studio
A54: Čís. pol. | B54: Zkratka | C54: Název položky | G54: MJ | H54: množství | I54: jednotková cena | J54: celkem [Kč] | K54: Technické specifikace, technické a uživatelské standardy stavby, podrobný popis položky
A55: 1 | C55: Akustický podhled rastrový širokopásmový | G55: m2 | H55: 4.5 | J55: =I55*H55 -> 0 | K55: Akustický podhled rastrový, rozměr desek 600 x 600 mm, střední činitel akustické absorpce aw=1. Barva dle vzorníku a výběru investora, předpoklad bílá. Včetně nosného roštu.
A56: =A55+1 -> 2 | C56: Akustický podhled rastrový s redukovanou akustickou absorpcí | G56: m2 | H56: 4.5 | J56: =I56*H56 -> 0 | K56: Akustický podhled rastrový, rozměr desek 600 x 600 mm. Doplněk k širokopásmovým podhledovým deskám, redukovaná absorpce (méně než 0,4). Barva dle vzorníku a výběru investora, předpoklad bílá. Včetně nosného roštu. Poměr obou typů desek je předmětem úprav v rámci ladění na základě etapových měření.
A57: =A56+1 -> 3 | C57: SDK podhled plný | G57: m2 | H57: 10 | J57: 0 | K57: Obvodová část podhledu (lem) plný SDK 12,5 mm, kotvení do rastru stavební akustiky, včetně nosného roštu, obvodových lišt a příprav pro vyústky VZT a zásuvky LAN a 230V.
A58: =A57+1 -> 4 | C58: Širokopásmový stěnový obklad s potiskem | G58: m2 | H58: 17 | J58: 0 | K58: Širokopásmový akustický panel pro instalaci na stěny. Celková tl. min 40 mm, vážený koeficient akustické absorpce aw>0,9. Dodávka vč. celoplošného potisku, lemování/bočních obložek a instalačního materiálu. Přídavná minerální vata je uvedena a specifikována v samostatné položce. Před finálním vyhotovením musí proběhnout tisková zkouška a odsouhlasení tisku investorem.
A59: =A58+1 -> 5 | C59: Nízkofrekvenční akustické prvky | G59: m2 | H59: 16.5 | J59: 0 | K59: Nízkofrekvenční akustický panel pro instalaci na stěnový rošt. Skladba dle projektu interiéru - základní nosná deska s perforací a vertikální latě, průzvučná tkanina. Provedení perforace včetně rozestupů musí korespondovat s pozicemi latí a bude určena v rámci dílenské dokumentace na základě vstupního měření a dopočtů doby dozvuku. Předpoklad maxima akustické absorpce v oktávovém pásmu 125 Hz. Povrchová úprava dle projektu interiéru, třída hořlavosti A. Dodávka vč. instalačního materiálu. Potřebná minerální vata je uvedena a specifikována v samostatné položce.
A60: =A59+1 -> 6 | C60: Okenní parapet | G60: bm | H60: 1.4 | J60: 0 | K60: Parapet s ventilační mřížkou nad radiátorem, hloubka cca 800 mm, návaznost na kryt topení.
A61: 7 | C61: Kryt topení | G61: m2 | H61: 1 | J61: 0 | K61: Kryt radiátorů dle projektu interiéru, tvořený svislými lamelami v přímé vizuální návaznosti na akustický obklad. Třída hořlavosti A. Nosný rošt tvořící podporu parapetům.
A62: 8 | C62: Obložky dveří a oken | G62: kpl | H62: 1 | J62: 0 | K62: Zakončení akustických obkladů u studiového okna, okna do exteriéru a vstupních dveří. Plný deskový materiál bez perforace, včetně příprav pro instalaci zásuvek a rozvaděče. Třída hořlavosti A.
A63: 9 | C63: Mřížka vzduchotechniky - strop | G63: bm | H63: 3.8 | J63: 0 | K63: Mřížka do SDK sekcí podhledu pro přívod/odvod vzduchu, dle projektu interiéru, šířka 200 mm.
A64: 10 | C64: Mřížka vzduchotechniky - stěny | G64: m2 | H64: 1 | J64: 0 | K64: Vertikální vyústka VZT instalovaná v rámci stěnových obkladů, design v přímé návaznosti na nízkofrekvenční akustické prvky. Dle projektu interiéru.
A65: 11 | C65: Koberec | G65: m2 | H65: 16 | J65: 0 | K65: Koberec s důrazem na akustické nároky, tl. min. 8 mm, činitel akustické absorpce na oktávovém pásmu 500 Hz min. 0,5. Barva dle vzorníků a výběru investora. Klasifikace pro intenzivní provoz.
A66: 12 | C66: Minerální vata | G66: m2 | H66: 50 | J66: 0 | K66: Akustický absorbér pro akustické panely (nízkofrekvenční i širokopásmové), minerální nebo skelná vata, minimální tloušťka 80 mm, objemová hmotnost minimálně 35 kg/m2. Fixace pro zajištění vertikální pozice u akustických obkladů. U stěny s dveřmi je počítána dvojnásobná tloušťka.
A67: 13 | C67: Nosný rošt | G67: m2 | H67: 40 | J67: 0 | K67: Vertikální nosné prvky pro akustické panely, nehořlavý, rektifikace pro eliminaci nerovinnosti stěn, fixace minerálních desek.
A68: 14 | C68: Doprava | G68: kpl | H68: 1 | J68: 0
A69: 15 | C69: Instalační práce | G69: kpl | H69: 1 | J69: 0 | K69: Dodávka a montáž nových akustických prvků, VRN. Včetně ochrany podlahy a interiéru.
A70: 16 | C70: Úklid prostoru | G70: kpl | H70: 1 | J70: 0
A71: 17 | C71: Měření doby dozvuku | G71: kpl | H71: 3 | J71: 0 | K71: Měření kmitočtové závislosti doby dozvuku v řešeném prostoru - vstupní, etapové a závěrečné měření s vypracováním protokolu.
A72: 18 | C72: Dílenská dokumentace | G72: kpl | H72: 1 | J72: 0 | K72: Dokumentace pro realizaci akustických úprav, kterou musí investor před zahájením prací schválit a úpravy/dopočty navazující na vstupní a etapové měření.
A73: =CONCATENATE("Celkem Kč bez DPH za ",A53," - ",D53) -> Celkem Kč bez DPH za 1 - 016 - Záložní studio | I73: =SUM(J55:J72) -> 0
A76: 2 | D76: 017 - záložní režie
A77: Čís. pol. | B77: Zkratka | C77: Název položky | G77: MJ | H77: množství | I77: jednotková cena | J77: celkem [Kč] | K77: Technické specifikace, technické a uživatelské standardy stavby, podrobný popis položky
A78: =A72+1 -> 19 | C78: Akustický podhled rastrový širokopásmový | G78: m2 | H78: 11.5 | J78: =I78*H78 -> 0 | K78: Akustický podhled rastrový, rozměr desek 600 x 600 mm, střední činitel akustické absorpce aw=1. Barva dle vzorníku a výběru investora, předpoklad bílá. Včetně nosného roštu.
A79: =A78+1 -> 20 | C79: Akustický podhled rastrový s redukovanou akustickou absorpcí | G79: m2 | H79: 3.5 | J79: =I79*H79 -> 0 | K79: Akustický podhled rastrový, rozměr desek 600 x 600 mm. Doplněk k širokopásmovým podhledovým deskám, redukovaná absorpce (méně než 0,4). Barva dle vzorníku a výběru investora, předpoklad bílá. Včetně nosného roštu. Poměr obou typů desek je předmětem úprav v rámci ladění na základě etapových měření.
A80: =A79+1 -> 21 | C80: SDK podhled plný | G80: m2 | H80: 15 | J80: 0 | K80: Obvodová část podhledu (lem) plný SDK 12,5 mm, kotvení do rastru stavební akustiky, včetně nosného roštu, obvodových lišt a příprav pro vyústky VZT a zásuvky LAN a 230V.
A81: 22 | C81: Širokopásmový stěnový obklad s potiskem | G81: m2 | H81: 18 | J81: 0 | K81: Širokopásmový akustický panel pro instalaci na stěny. Celková tl. min 40 mm, vážený koeficient akustické absorpce aw>0,9. Dodávka vč. celoplošného potisku, lemování/bočních obložek a instalačního materiálu. Přídavná minerální vata je uvedena a specifikována v samostatné položce. Před finálním vyhotovením musí proběhnout tisková zkouška a odsouhlasení tisku investorem.
A82: 23 | C82: Nízkofrekvenční akustické prvky | G82: m2 | H82: 17.5 | J82: 0 | K82: Nízkofrekvenční akustický panel pro instalaci na stěnový rošt. Skladba dle projektu interiéru - základní nosná deska s perforací a vertikální latě, průzvučná tkanina. Provedení perforace včetně rozestupů musí korespondovat s pozicemi latí a bude určena v rámci dílenské dokumentace na základě vstupního měření a dopočtů doby dozvuku. Předpoklad maxima akustické absorpce v oktávovém pásmu 125 Hz. Povrchová úprava dle projektu interiéru, třída hořlavosti A. Dodávka vč. instalačního materiálu. Potřebná minerální vata je uvedena a specifikována v samostatné položce.
A83: 24 | C83: Okenní parapet | G83: bm | H83: 2.8 | J83: 0 | K83: Parapet s ventilační mřížkou (2 ks) nad radiátory, hloubka cca 800 mm, návaznost na kryty topení.
A84: 25 | C84: Kryt topení | G84: m2 | H84: 2 | J84: 0 | K84: Kryt radiátorů dle projektu interiéru, tvořený svislými lamelami v přímé vizuální návaznosti na akustický obklad. Třída hořlavosti A. Nosný rošt tvořící podporu parapetům.
A85: 26 | C85: Obložky dveří a oken | G85: kpl | H85: 1 | J85: 0 | K85: Zakončení akustických obkladů u studiového okna, okna do exteriéru a vstupních dveří. Plný deskový materiál bez perforace, včetně příprav pro instalaci zásuvek a rozvaděče. Třída hořlavosti A.
A86: 27 | C86: Mřížka vzduchotechniky - strop | G86: bm | H86: 13 | J86: 0 | K86: Mřížka do SDK sekcí podhledu pro přívod/odvod vzduchu, dle projektu interiéru, šířka 200 mm.
A87: 28 | C87: Mřížka vzduchotechniky - stěny | G87: m2 | H87: 2 | J87: 0 | K87: Vertikální vyústky VZT instalované v rámci stěnových obkladů, design v přímé návaznosti na nízkofrekvenční akustické prvky. Dle projektu interiéru.
A88: 29 | C88: Koberec | G88: m2 | H88: 23 | J88: 0 | K88: Koberec s důrazem na akustické nároky, tl. min. 8 mm, činitel akustické absorpce na oktávovém pásmu 500 Hz min. 0,5. Barva dle vzorníků a výběru investora. Klasifikace pro intenzivní provoz.
A89: 30 | C89: Minerální vata | G89: m2 | H89: 60 | J89: 0 | K89: Akustický absorbér pro akustické panely (nízkofrekvenční i širokopásmové), minerální nebo skelná vata, minimální tloušťka 80 mm, objemová hmotnost minimálně 35 kg/m2. Fixace pro zajištění vertikální pozice u akustických obkladů. U stěny s dveřmi je počítána dvojnásobná tloušťka.
A90: 31 | C90: Nosný rošt | G90: m2 | H90: 50 | J90: 0 | K90: Vertikální nosné prvky pro akustické panely, nehořlavý, rektifikace pro eliminaci nerovinnosti stěn, fixace minerálních desek.
A91: 32 | C91: Doprava | G91: kpl | H91: 1 | J91: 0
A92: 33 | C92: Instalační práce | G92: kpl | H92: 1 | J92: 0 | K92: Dodávka a montáž nových akustických prvků, VRN. Včetně ochrany podlahy a interiéru.
A93: 34 | C93: Úklid prostoru | G93: kpl | H93: 1 | J93: 0
A94: 35 | C94: Měření doby dozvuku | G94: kpl | H94: 3 | J94: 0 | K94: Měření kmitočtové závislosti doby dozvuku v řešeném prostoru - vstupní, etapové a závěrečné měření s vypracováním protokolu.
A95: 36 | C95: Dílenská dokumentace | G95: kpl | H95: 1 | J95: 0 | K95: Dokumentace pro realizaci akustických úprav, kterou musí investor před zahájením prací schválit a úpravy/dopočty navazující na vstupní a etapové měření.
A96: =CONCATENATE("Celkem Kč bez DPH za ",A76," - ",D76) -> Celkem Kč bez DPH za 2 - 017 - záložní režie | I96: =SUM(J78:J95) -> 0
A99: 3 | D99: 109 - Samoobslužné pracoviště
A100: Čís. pol. | B100: Zkratka | C100: Název položky | G100: MJ | H100: množství | I100: jednotková cena | J100: celkem [Kč] | K100: Technické specifikace, technické a uživatelské standardy stavby, podrobný popis položky
A101: =A95+1 -> 37 | C101: Akustický podhled rastrový širokopásmový | G101: m2 | H101: 3.6 | J101: =I101*H101 -> 0 | K101: Akustický podhled rastrový, rozměr desek 600 x 600 mm, střední činitel akustické absorpce aw=1. Barva dle vzorníku a výběru investora, předpoklad bílá. Včetně nosného roštu.
A102: =A101+1 -> 38 | C102: Akustický podhled rastrový s redukovanou akustickou absorpcí | G102: m2 | H102: 3.6 | J102: =I102*H102 -> 0 | K102: Akustický podhled rastrový, rozměr desek 600 x 600 mm. Doplněk k širokopásmovým podhledovým deskám, redukovaná absorpce (méně než 0,4). Barva dle vzorníku a výběru investora, předpoklad bílá. Včetně nosného roštu. Poměr obou typů desek je předmětem úprav v rámci ladění na základě etapových měření.
A103: =A102+1 -> 39 | C103: SDK podhled plný | G103: m2 | H103: 3 | J103: 0 | K103: Obvodová část podhledu (lem) plný SDK 12,5 mm, kotvení do rastru stavební akustiky, včetně nosného roštu, obvodových lišt a příprav pro vyústky VZT a zásuvky LAN a 230V.
A104: 40 | C104: Širokopásmový stěnový obklad s potiskem | G104: m2 | H104: 14.5 | J104: 0 | K104: Širokopásmový akustický panel pro instalaci na stěny. Celková tl. min 40 mm, vážený koeficient akustické absorpce aw>0,9. Dodávka vč. celoplošného potisku, lemování/bočních obložek a instalačního materiálu. Přídavná minerální vata je uvedena a specifikována v samostatné položce. Před finálním vyhotovením musí proběhnout tisková zkouška a odsouhlasení tisku investorem.
A105: 41 | C105: Nízkofrekvenční akustické prvky | G105: m2 | H105: 16 | J105: 0 | K105: Nízkofrekvenční akustický panel pro instalaci na stěnový rošt. Skladba dle projektu interiéru - základní nosná deska s perforací a vertikální latě, průzvučná tkanina. Provedení perforace včetně rozestupů musí korespondovat s pozicemi latí a bude určena v rámci dílenské dokumentace na základě vstupního měření a dopočtů doby dozvuku. Předpoklad maxima akustické absorpce v oktávovém pásmu 125 Hz. Povrchová úprava dle projektu interiéru, třída hořlavosti A. Dodávka vč. instalačního materiálu. Potřebná minerální vata je uvedena a specifikována v samostatné položce.
A106: 42 | C106: Obložky dveří | G106: kpl | H106: 1 | J106: 0 | K106: Zakončení akustických obkladů u vstupních dveří. Plný deskový materiál bez perforace, včetně příprav pro instalaci zásuvek a rozvaděče. Třída hořlavosti A.
A107: 43 | C107: Mřížka vzduchotechniky - stěny | G107: kpl | H107: 1 | J107: 0 | K107: VZT mřížka v rámci stěnových obkladů, dle projektu interiéru.
A108: 44 | C108: Koberec | G108: m2 | H108: 10 | J108: 0 | K108: Koberec s důrazem na akustické nároky, tl. min. 8 mm, činitel akustické absorpce na oktávovém pásmu 500 Hz min. 0,5. Barva dle vzorníků a výběru investora. Klasifikace pro intenzivní provoz.
A109: 45 | C109: Minerální vata | G109: m2 | H109: 35 | J109: 0 | K109: Akustický absorbér pro akustické panely (nízkofrekvenční i širokopásmové), minerální nebo skelná vata, minimální tloušťka 80 mm, objemová hmotnost minimálně 35 kg/m2. Fixace pro zajištění vertikální pozice u akustických obkladů.
A110: 46 | C110: Nosný rošt | G110: m2 | H110: 35 | J110: 0 | K110: Vertikální nosné prvky pro akustické panely, nehořlavý, rektifikace pro eliminaci nerovinnosti stěn, fixace minerálních desek.
A111: 47 | C111: Doprava | G111: kpl | H111: 1 | J111: 0
A112: 48 | C112: Instalační práce | G112: kpl | H112: 1 | J112: 0 | K112: Dodávka a montáž nových akustických prvků, VRN. Včetně ochrany podlahy a interiéru.
A113: 49 | C113: Úklid prostoru | G113: kpl | H113: 1 | J113: 0
A114: 50 | C114: Měření doby dozvuku | G114: kpl | H114: 3 | J114: 0 | K114: Měření kmitočtové závislosti doby dozvuku v řešeném prostoru - vstupní, etapové a závěrečné měření s vypracováním protokolu.
A115: 51 | C115: Dílenská dokumentace | G115: kpl | H115: 1 | J115: 0 | K115: Dokumentace pro realizaci akustických úprav, kterou musí investor před zahájením prací schválit.
A116: =CONCATENATE("Celkem Kč bez DPH za ",A99," - ",D99) -> Celkem Kč bez DPH za 3 - 109 - Samoobslužné pracoviště | I116: =SUM(J101:J115) -> 0
A119: 4 | D119: 120 - Vysílací režie
A120: Čís. pol. | B120: Zkratka | C120: Název položky | G120: MJ | H120: množství | I120: jednotková cena | J120: celkem [Kč] | K120: Technické specifikace, technické a uživatelské standardy stavby, podrobný popis položky
A121: =A115+1 -> 52 | C121: Akustický podhled rastrový širokopásmový | G121: m2 | H121: 11.5 | J121: =I121*H121 -> 0 | K121: Akustický podhled rastrový, rozměr desek 600 x 600 mm, střední činitel akustické absorpce aw=1. Barva dle vzorníku a výběru investora, předpoklad bílá. Včetně nosného roštu.
A122: =A121+1 -> 53 | C122: Akustický podhled rastrový s redukovanou akustickou absorpcí | G122: m2 | H122: 3.5 | J122: =I122*H122 -> 0 | K122: Akustický podhled rastrový, rozměr desek 600 x 600 mm. Doplněk k širokopásmovým podhledovým deskám, redukovaná absorpce (méně než 0,4). Barva dle vzorníku a výběru investora, předpoklad bílá. Včetně nosného roštu. Poměr obou typů desek je předmětem úprav v rámci ladění na základě etapových měření.
A123: =A122+1 -> 54 | C123: SDK podhled plný | G123: m2 | H123: 15 | J123: 0 | K123: Obvodová část podhledu (lem) plný SDK 12,5 mm, kotvení do rastru stavební akustiky, včetně nosného roštu, obvodových lišt a příprav pro vyústky VZT a zásuvky LAN a 230V.
A124: 55 | C124: Širokopásmový stěnový obklad s potiskem | G124: m2 | H124: 18 | J124: 0 | K124: Širokopásmový akustický panel pro instalaci na stěny. Celková tl. min 40 mm, vážený koeficient akustické absorpce aw>0,9. Dodávka vč. celoplošného potisku, lemování/bočních obložek a instalačního materiálu. Přídavná minerální vata je uvedena a specifikována v samostatné položce. Před finálním vyhotovením musí proběhnout tisková zkouška a odsouhlasení tisku investorem.
A125: 56 | C125: Nízkofrekvenční akustické prvky | G125: m2 | H125: 17.5 | J125: 0 | K125: Nízkofrekvenční akustický panel pro instalaci na stěnový rošt. Skladba dle projektu interiéru - základní nosná deska s perforací a vertikální latě, průzvučná tkanina. Provedení perforace včetně rozestupů musí korespondovat s pozicemi latí a bude určena v rámci dílenské dokumentace na základě vstupního měření a dopočtů doby dozvuku. Předpoklad maxima akustické absorpce v oktávovém pásmu 125 Hz. Povrchová úprava dle projektu interiéru, třída hořlavosti A. Dodávka vč. instalačního materiálu. Potřebná minerální vata je uvedena a specifikována v samostatné položce.
A126: 57 | C126: Okenní parapet | G126: bm | H126: 2.8 | J126: 0 | K126: Parapet s ventilační mřížkou (2 ks) nad radiátory, hloubka cca 800 mm, návaznost na kryty topení.
A127: 58 | C127: Kryt topení | G127: m2 | H127: 2 | J127: 0 | K127: Kryt radiátorů dle projektu interiéru, tvořený svislými lamelami v přímé vizuální návaznosti na akustický obklad. Třída hořlavosti A. Nosný rošt tvořící podporu parapetům.
A128: 59 | C128: Obložky dveří a oken | G128: kpl | H128: 1 | J128: 0 | K128: Zakončení akustických obkladů u studiového okna, okna do exteriéru a vstupních dveří. Plný deskový materiál bez perforace, včetně příprav pro instalaci zásuvek a rozvaděče. Třída hořlavosti A.
A129: 60 | C129: Mřížka vzduchotechniky - strop | G129: bm | H129: 13 | J129: 0 | K129: Mřížka do SDK sekcí podhledu pro přívod/odvod vzduchu, dle projektu interiéru, šířka 200 mm.
A130: 61 | C130: Mřížka vzduchotechniky - stěny | G130: m2 | H130: 2 | J130: 0 | K130: Vertikální vyústky VZT instalované v rámci stěnových obkladů, design v přímé návaznosti na nízkofrekvenční akustické prvky. Dle projektu interiéru.
A131: 62 | C131: Koberec | G131: m2 | H131: 23 | J131: 0 | K131: Koberec s důrazem na akustické nároky, tl. min. 8 mm, činitel akustické absorpce na oktávovém pásmu 500 Hz min. 0,5. Barva dle vzorníků a výběru investora. Klasifikace pro intenzivní provoz.
A132: 63 | C132: Minerální vata | G132: m2 | H132: 60 | J132: 0 | K132: Akustický absorbér pro akustické panely (nízkofrekvenční i širokopásmové), minerální nebo skelná vata, minimální tloušťka 80 mm, objemová hmotnost minimálně 35 kg/m2. Fixace pro zajištění vertikální pozice u akustických obkladů. U stěny s dveřmi je počítána dvojnásobná tloušťka.
A133: 64 | C133: Nosný rošt | G133: m2 | H133: 50 | J133: 0 | K133: Vertikální nosné prvky pro akustické panely, nehořlavý, rektifikace pro eliminaci nerovinnosti stěn, fixace minerálních desek.
A134: 65 | C134: Doprava | G134: kpl | H134: 1 | J134: 0
A135: 66 | C135: Instalační práce | G135: kpl | H135: 1 | J135: 0 | K135: Dodávka a montáž nových akustických prvků, VRN. Včetně ochrany podlahy a interiéru.
A136: 67 | C136: Úklid prostoru | G136: kpl | H136: 1 | J136: 0
A137: 68 | C137: Měření doby dozvuku | G137: kpl | H137: 3 | J137: 0 | K137: Měření kmitočtové závislosti doby dozvuku v řešeném prostoru - vstupní, etapové a závěrečné měření s vypracováním protokolu.
A138: 69 | C138: Dílenská dokumentace | G138: kpl | H138: 1 | J138: 0 | K138: Dokumentace pro realizaci akustických úprav, kterou musí investor před zahájením prací schválit a úpravy/dopočty navazující na vstupní a etapové měření.
A139: =CONCATENATE("Celkem Kč bez DPH za ",A119," - ",D119) -> Celkem Kč bez DPH za 4 - 120 - Vysílací režie | I139: =SUM(J121:J138) -> 0
A142: 5 | D142: 209 - Samoobslužné pracoviště
A143: Čís. pol. | B143: Zkratka | C143: Název položky | G143: MJ | H143: množství | I143: jednotková cena | J143: celkem [Kč] | K143: Technické specifikace, technické a uživatelské standardy stavby, podrobný popis položky
A144: =A138+1 -> 70 | C144: Akustický podhled rastrový širokopásmový | G144: m2 | H144: 3.6 | J144: =I144*H144 -> 0 | K144: Akustický podhled rastrový, rozměr desek 600 x 600 mm, střední činitel akustické absorpce aw=1. Barva dle vzorníku a výběru investora, předpoklad bílá. Včetně nosného roštu.
A145: =A144+1 -> 71 | C145: Akustický podhled rastrový s redukovanou akustickou absorpcí | G145: m2 | H145: 3.6 | J145: =I145*H145 -> 0 | K145: Akustický podhled rastrový, rozměr desek 600 x 600 mm. Doplněk k širokopásmovým podhledovým deskám, redukovaná absorpce (méně než 0,4). Barva dle vzorníku a výběru investora, předpoklad bílá. Včetně nosného roštu. Poměr obou typů desek je předmětem úprav v rámci ladění na základě etapových měření.
A146: =A145+1 -> 72 | C146: SDK podhled plný | G146: m2 | H146: 3 | J146: 0 | K146: Obvodová část podhledu (lem) plný SDK 12,5 mm, kotvení do rastru stavební akustiky, včetně nosného roštu, obvodových lišt a příprav pro vyústky VZT a zásuvky LAN a 230V.
A147: 73 | C147: Širokopásmový stěnový obklad s potiskem | G147: m2 | H147: 14.5 | J147: 0 | K147: Širokopásmový akustický panel pro instalaci na stěny. Celková tl. min 40 mm, vážený koeficient akustické absorpce aw>0,9. Dodávka vč. celoplošného potisku, lemování/bočních obložek a instalačního materiálu. Přídavná minerální vata je uvedena a specifikována v samostatné položce. Před finálním vyhotovením musí proběhnout tisková zkouška a odsouhlasení tisku investorem.
A148: 74 | C148: Nízkofrekvenční akustické prvky | G148: m2 | H148: 16 | J148: 0 | K148: Nízkofrekvenční akustický panel pro instalaci na stěnový rošt. Skladba dle projektu interiéru - základní nosná deska s perforací a vertikální latě, průzvučná tkanina. Provedení perforace včetně rozestupů musí korespondovat s pozicemi latí a bude určena v rámci dílenské dokumentace na základě vstupního měření a dopočtů doby dozvuku. Předpoklad maxima akustické absorpce v oktávovém pásmu 125 Hz. Povrchová úprava dle projektu interiéru, třída hořlavosti A. Dodávka vč. instalačního materiálu. Potřebná minerální vata je uvedena a specifikována v samostatné položce.
A149: 75 | C149: Obložky dveří | G149: kpl | H149: 1 | J149: 0 | K149: Zakončení akustických obkladů u vstupních dveří. Plný deskový materiál bez perforace, včetně příprav pro instalaci zásuvek a rozvaděče. Třída hořlavosti A.
A150: 76 | C150: Mřížka vzduchotechniky - stěny | G150: kpl | H150: 1 | J150: 0 | K150: VZT mřížka v rámci stěnových obkladů, dle projektu interiéru.
A151: 77 | C151: Koberec | G151: m2 | H151: 10 | J151: 0 | K151: Koberec s důrazem na akustické nároky, tl. min. 8 mm, činitel akustické absorpce na oktávovém pásmu 500 Hz min. 0,5. Barva dle vzorníků a výběru investora. Klasifikace pro intenzivní provoz.
A152: 78 | C152: Minerální vata | G152: m2 | H152: 35 | J152: 0 | K152: Akustický absorbér pro akustické panely (nízkofrekvenční i širokopásmové), minerální nebo skelná vata, minimální tloušťka 80 mm, objemová hmotnost minimálně 35 kg/m2. Fixace pro zajištění vertikální pozice u akustických obkladů.
A153: 79 | C153: Nosný rošt | G153: m2 | H153: 35 | J153: 0 | K153: Vertikální nosné prvky pro akustické panely, nehořlavý, rektifikace pro eliminaci nerovinnosti stěn, fixace minerálních desek.
A154: 80 | C154: Doprava | G154: kpl | H154: 1 | J154: 0
A155: 81 | C155: Instalační práce | G155: kpl | H155: 1 | J155: 0 | K155: Dodávka a montáž nových akustických prvků, VRN. Včetně ochrany podlahy a interiéru.
A156: 82 | C156: Úklid prostoru | G156: kpl | H156: 1 | J156: 0
A157: 83 | C157: Měření doby dozvuku | G157: kpl | H157: 3 | J157: 0 | K157: Měření kmitočtové závislosti doby dozvuku v řešeném prostoru - vstupní, etapové a závěrečné měření s vypracováním protokolu.
A158: 84 | C158: Dílenská dokumentace | G158: kpl | H158: 1 | J158: 0 | K158: Dokumentace pro realizaci akustických úprav, kterou musí investor před zahájením prací schválit.
A159: =CONCATENATE("Celkem Kč bez DPH za ",A142," - ",D142) -> Celkem Kč bez DPH za 5 - 209 - Samoobslužné pracoviště | I159: =SUM(J144:J158) -> 0

Sheet 11_SO 01 - RT
A1: =CONCATENATE('Rekapitulace stavby'!C62,"_",'Rekapitulace stavby'!I62) -> 11_SO 01 - Rozhlasové technologie
A3: SPECIFIKACE DODÁVEK A PRACÍ
A4: Název akce:
A5: ='Identifikační údaje'!B1 -> ČRo Olomouc – rekonstrukce objektu Pavelčákova 2/19
A7: Zadavatel: | C7: ='Identifikační údaje'!E7 -> Český rozhlas, Vinohradská 12, 120 99 Praha 2
B8: IČ: | C8: ='Identifikační údaje'!B9 -> 45245053
B9: DIČ: | C9: ='Identifikační údaje'!B10 -> CZ45245053
A11: Projektant: | C11: ='Identifikační údaje'!E12 -> ATELIER 38 s.r.o., Porážková 1424/20, 702 00 Ostrava – Moravská Ostrava
B12: IČ: | C12: ='Identifikační údaje'!B14 -> 258 58 343
B13: DIČ: | C13: ='Identifikační údaje'!B15 -> CZ25858343
A15: Uchazeč: | C15: ='Identifikační údaje'!E19 -> , ,
B16: IČ: | C16: ='Identifikační údaje'!B23 -> 0
B17: DIČ: | C17: ='Identifikační údaje'!B24 -> 0
A19: Místo stavby: | C19: ='Identifikační údaje'!B3 -> Budova Českého rozhlasu Olomouc na adrese Pavelčákova 2/19, 779 00 Olomouc
A21: Datum vyplnění: | C21: ='Identifikační údaje'!B5 -> 00:00:00
A23: =CONCATENATE("REKAPITULACE DODÁVEK A PRACÍ OBJEKTU ",'Rekapitulace stavby'!I62) -> REKAPITULACE DODÁVEK A PRACÍ OBJEKTU SO 01 - Rozhlasové technologie
A25: P.č. | B25: Číslo položky | C25: Název položky | D25: Kč bez DPH
A27: Díl: | B27: =B37 -> A | C27: =C37 -> RT - Kabeláž pro rozhlasové technologie | G27: =G37 -> 0
A28: Díl: | B28: =B86 -> B | C28: =C86 -> KK - Kabelové konstrukce - žlaby | G28: =G86 -> 0
A30: =CONCATENATE("CELKEM ZA OBJEKT ",'Rekapitulace stavby'!I62, " v Kč bez DPH") -> CELKEM ZA OBJEKT SO 01 - Rozhlasové technologie v Kč bez DPH | D30: =SUM(G27:G28) -> 0
A36: P.č. | B36: Číslo položky | C36: Název položky | D36: MJ | E36: množství | F36: cena / MJ | G36: celkem
A37: Díl: | B37: A | C37: RT - Kabeláž pro rozhlasové technologie | G37: =SUBTOTAL(9,G39:G85) -> 0
C38: Technologické stojany včetně napájení a ostatní kabelové úložné systémy jsou součástí projektu slaboproudu.
A39: =1 -> 1 | C39: Patch panel univerzální modulární 24x RJ45/cat 6A/10G, neosazený, komplet vč. montážního příslušenství | D39: ks | E39: 11 | G39: =E39*F39 -> 0
A40: =A39+1 -> 2 | C40: Keystone modul kovový, RJ45, kat. 6A 10G, STP, samořezný, stříbrný | D40: ks | E40: 276 | G40: =E40*F40 -> 0
A41: =A40+1 -> 3 | C41: Vyvazovací panel 1U/ 19", horizontální s kovovými oky | D41: ks | E41: 16 | G41: 0
A42: 4 | C42: Montážní, vyvazovací a popisovací příslušenství pro jeden rack, stojanový | D42: ks | E42: 8 | G42: 0
C43: Patch kabely
A44: =A42+1 -> 5 | C44: Patch kabel MM OM4 50/125 duplex LC/LC 5m | D44: ks | E44: 10 | G44: =E44*F44 -> 0
A45: 6 | C45: Patch kabel cat 6A stíněný S/FTP, 1m | D45: ks | E45: 50 | G45: 0
A46: 7 | C46: Patch kabel cat 6A stíněný, S/FTP,2m | D46: ks | E46: 50 | G46: 0
A47: 8 | C47: Patch kabel cat 6A stíněný, S/FTP,3m | D47: ks | E47: 20 | G47: 0
C48: Instalační kabeláž
A49: =A47+1 -> 9 | C49: Datový kabel stíněný 4 pár SFTP, min. Cat.6a 500 MHz, B2ca-s1a-d1-a1 | D49: m | E49: 4770 | G49: =E49*F49 -> 0
A50: 10 | C50: Optický kabel 8x50/125 OM4, B2ca-s1a-d1-a1, souběžně veden vždy 2x, zakončení LC duplex. | D50: m | E50: 240 | G50: 0
A51: 11 | C51: Analogový audio kabel 4 x 2 x 0,22 mm², dvojité stínění (každý pár a celkové), požární kategorie FRNC. | D51: m | E51: 340 | G51: 0
A52: 12 | C52: Analogový audio kabel 8 x 2 x 0,22 mm², dvojité stínění (každý pár a celkové), požární kategorie FRNC. | D52: m | E52: 40 | G52: 0
A53: 13 | C53: Analogový audio kabel 12 x 2 x 0,22 mm², dvojité stínění (každý pár a celkové), požární kategorie FRNC. | D53: m | E53: 310 | G53: 0
A54: 14 | C54: Reproduktorový kabel 2 x 2,5 mm2, instalační, požární kategorie FRNC. | D54: m | E54: 30 | G54: 0
A55: 15 | C55: Koaxiální kabel pro přenos video signálu v rozlišení 4K na vzdálenost minimálně 90m, FRNC, B2ca. | D55: m | E55: 230 | G55: 0
A56: 16 | C56: HDMI kabel délky 10 m. Materiál vodičů OFC (bezkyslíkatá měď), AWG 24, 2 vrstvy stínění (hliníková fólie a měděné opletení). Impedance 100 ohm, maximální šířka pásma 340 MHz, přenosová rychlost 10,2 Gb/s, rozlišení 4K. | D56: ks | E56: 4 | G56: 0
A57: 17 | C57: DMX kabel pro scénické osvětlení atria, 100% stínění, bezhalogenové provedení, flexibilní/vhodný pro mobilní aplikace, včetně konektorů. | D57: m | E57: 18 | G57: 0
C58: Datové zásuvky, design dodržet dle interiéru a dle silnoproudých instalací
A59: =A57+1 -> 18 | C59: Datová dvojzásuvka 2xRJ45 Cat.6A komplet, formát 45 x 45mm,uložení do montážního boxu, montáž na povrch | D59: ks | E59: 42 | G59: =E59*F59 -> 0
C60: Přepojovací panely RT nedatové
A61: =A59+1 -> 19 | C61: Přepojovací panel audio XLR, 12 portů, 1U | D61: ks | E61: 39 | G61: =E61*F61 -> 0
A62: 20 | C62: Přepojovací panel video, 6x BNC, kompletní, osazený | D62: kpl | E62: 4 | G62: 0
A63: 21 | C63: Přepojovací panel optický, 19" FO vana kompletní, min. osazení 16x 50/125µm OM4, pigtaily a kazeta, výška 1U, zakončení optických kabelů LC duplex. | D63: kpl | E63: 4 | G63: 0
A64: 22 | C64: XLR konektory, standard Neutrik | D64: ks | E64: 424 | G64: 0
A65: 23 | C65: Přípojné místo pro mikrofony v Atriu. Uzavíratelné (dvířka), materiál kov, barva bílá, minimálně 36 pozic (včetně osazení 20x XLR, 14x RJ45 (etherCON), vše standard Neutrik a záslepky rezervních pozic). PM bude navrženo v dílenské dokumentaci (pol. č. 39) a předem schváleno investorem. | D65: kpl | E65: 1 | G65: 0
A66: 24 | C66: Přípojné místo pro ruchové mikrofony a reprosoustavy v Atriu. Materiál kov, barva bílá, minimálně 8 pozic (včetně osazení 4x XLR, 2x RJ45 (etherCON), vše standard Neutrik a záslepky rezervních pozic). PM bude navrženo v dílenské dokumentaci (pol. č. 39) a předem schváleno investorem. | D66: kpl | E66: 3 | G66: 0
A67: 25 | C67: Přípojné místo pro mixážní pult/livepost v Atriu. Materiál kov, barva bílá, minimálně 16 pozic (včetně osazení 8xRJ45 (etherCON), DMX, vše standard Neutrik a záslepky všech rezervních pozic). PM bude navrženo v dílenské dokumentaci (pol. č. 39) a předem schváleno investorem. | D67: kpl | E67: 1 | G67: 0
A68: 26 | C68: Reproduktorové soustavy do exteriéru (instalace na fasádu objektu). Sloupová konfigurace pro širokou horizontální vyzařovací charakteristiku: 150°. Vertikální vyzařování 20°. Sestava osmi širokopásmových reproduktorů o průměru 50 mm. Kmitočtový rozsah pro pokles o 10dB: 80 Hz – 20 kHz, char citlivost. 89 dB. Příkon 100W, impedance 8 ohm. Krytí IP-55, černá barva. Včetně instalační konzole s možností náklonu. Rozměry (H x W x D) 530 x 100 x 155 mm (v x š x h). | D68: kpl | E68: 2 | G68: 0
A69: 27 | C69: Instalační materiál | D69: ks | E69: 42 | G69: 0
A70: 28 | C70: Instalace/pokládka kabelů do kabelových tras, trubek, žlabů, lišt apod. | D70: m | E70: 5982 | G70: 0
A71: 29 | C71: Zapojení vývodů zásuvek a v Racku | D71: ks | E71: 360 | G71: 0
A72: 30 | C72: Montáž zásuvek vč. přístrojových krabic vč. jejich popisu | D72: ks | E72: 42 | G72: 0
A73: 31 | C73: Montáž keystone v zásuvce vč. jejich popisu | D73: ks | E73: 42 | G73: 0
A74: 32 | C74: Montáž keystone v PatchPanelu vč. jejich popisu | D74: ks | E74: 276 | G74: 0
A75: 33 | C75: Montáž úložných boxů, montáž stůl/nábytek | D75: ks | E75: 42 | G75: 0
A76: 34 | C76: Montáž přep. panelu 24 keystone RJ 45 cat 6A, komplet do datového rozváděče, vč. Příslušenství, včetně popisů a zapojení a uvedení do provozu | D76: ks | E76: 11 | G76: 0
A77: 35 | C77: Měření kabeláže, protokol o funkčnosti | D77: ks | E77: 742 | G77: 0
A78: 36 | C78: Montáž a pájení XLR konektorů vč. jejich popisu | D78: ks | E78: 424 | G78: 0
A79: 37 | C79: Montáž a instalace přípojných míst | D79: kpl | E79: 5 | G79: 0
A80: 38 | C80: Montáž a instalace reprosoustav v exteriéru | D80: kpl | E80: 2 | G80: 0
A81: 39 | C81: Vypracování realizační dokumentace stavby | D81: kpl | E81: 1 | G81: 0
A82: 40 | C82: Vypracování skutečného provedení stavby | D82: kpl | E82: 1 | G82: 0
A83: 41 | C83: Oživení systému RT jako celku, jeho zkušební testy systému vč. kompletního zprovoznění | D83: kpl | E83: 1 | G83: 0
A84: =A83+1 -> 42 | C84: Doprava | D84: kpl | E84: 1 | G84: 0
A86: Díl: | B86: B | C86: KK - Kabelové konstrukce - žlaby | G86: =SUBTOTAL(9,G87:G102) -> 0
A87: =A84+1 -> 43 | C87: Kabelová lávka š200/v104 mm | D87: m | E87: 12 | G87: =E87*F87 -> 0
C88: Horizontální trasa ve 4.NP ze strojovny.
A89: =A87+1 -> 44 | C89: Montážní příslušenství obsahuje rychlospojku, nosný profil, šroubový závěs, matice a zemnící spojka, příslušenství vztaženo k jednomu montážnímu 1m lávky, víceúrovňový závěs | D89: ks | E89: 12 | G89: 0
A90: =A89+1 -> 45 | C90: Kabelová lávka š50/v54 mm | D90: m | E90: 7 | G90: 0
C91: Horizontální trasa ve 2.NP v rámci Machineroom 121.
A92: =A90+1 -> 46 | C92: Montážní příslušenství na lávku š50/v54 mm, obsahuje rychlospojku, nosný profil, šroubový závěs, matice a zemnící spojka, příslušenství vztaženo k jednomu montážnímu 1m lávky | D92: ks | E92: 7 | G92: 0
A93: 47 | C93: Kabelová lávka š100/v54 mm | D93: m | E93: 7 | G93: 0
C94: Horizontální trasa v 1.NP v rámci Machineroom 018.
A95: =A93+1 -> 48 | C95: Montážní příslušenství na lávku š100/v54 mm, obsahuje rychlospojku, nosný profil, šroubový závěs, matice a zemnící spojka, příslušenství vztaženo k jednomu montážnímu 1m lávky | D95: ks | E95: 7 | G95: 0
A96: 49 | C96: Kabelová lávka š200/v104 mm - svislá | D96: m | E96: 16 | G96: 0
C97: Vertikální trasa 4.NP -> 1.NP.
A98: =A96+1 -> 50 | C98: Montážní příslušenství obsahuje rychlospojku, nosný profil, šroubový závěs, matice a zemnící spojka, příslušenství vztaženo k jednomu montážnímu 1m lávky, víceúrovňový závěs | D98: ks | E98: 16 | G98: 0
A99: 51 | C99: Instalační práce | G99: 0
A100: 52 | C100: Montáž žlabu, stoupacího žebříku | D100: m | E100: 42 | G100: 0
A101: 53 | C101: Pomocné stavební práce | D101: kpl | E101: 42 | G101: 0
A102: 54 | C102: Doprava | D102: kpl | E102: 1 | G102: 0

Sheet 12_Interiér
A1: =CONCATENATE('Rekapitulace stavby'!C63,"_",'Rekapitulace stavby'!I63) -> 12_SO 01 - Interiér hlavního objektu
A3: SPECIFIKACE DODÁVEK A PRACÍ
A4: Název akce:
A5: ='Identifikační údaje'!B1 -> ČRo Olomouc – rekonstrukce objektu Pavelčákova 2/19
A7: Zadavatel: | C7: ='Identifikační údaje'!B7 -> Český rozhlas
B8: IČ: | C8: ='Identifikační údaje'!B9 -> 45245053
B9: DIČ: | C9: ='Identifikační údaje'!B10 -> CZ45245053
A11: Projektant: | C11: ='Identifikační údaje'!B12 -> ATELIER 38 s.r.o.
B12: IČ: | C12: ='Identifikační údaje'!B9 -> 45245053
B13: DIČ: | C13: ='Identifikační údaje'!B15 -> CZ25858343
A15: Uchazeč: | C15: ='Identifikační údaje'!B19 -> 0
B16: IČ: | C16: ='Identifikační údaje'!B23 -> 0
B17: DIČ: | C17: ='Identifikační údaje'!B24 -> 0
A19: Místo stavby: | C19: ='Identifikační údaje'!B3 -> Budova Českého rozhlasu Olomouc na adrese Pavelčákova 2/19, 779 00 Olomouc
A21: Datum vyplnění: | C21: ='Identifikační údaje'!B5 -> 00:00:00
A23: =CONCATENATE("REKAPITULACE DODÁVEK A PRACÍ OBJEKTU ",'Rekapitulace stavby'!I63) -> REKAPITULACE DODÁVEK A PRACÍ OBJEKTU SO 01 - Interiér hlavního objektu
A25: P.č. | B25: Číslo položky | C25: Název položky | D25: Kč bez DPH
A27: Díl: | B27: =B38 -> 766 | C27: =C38 -> Konstrukce truhlářské | G27: =G38 -> 0
A28: Díl: | B28: =B53 -> 799 | C28: =C53 -> Ostatní | G28: =G53 -> 0
A30: =CONCATENATE("CELKEM ZA OBJEKT ",'Rekapitulace stavby'!I63, " v Kč bez DPH") -> CELKEM ZA OBJEKT SO 01 - Interiér hlavního objektu v Kč bez DPH | G30: =SUM(G27:G28) -> 0
A37: P.č. | B37: Číslo položky | C37: Název položky | D37: MJ | E37: množství | F37: cena / MJ | G37: celkem
A38: Díl: | B38: 766 | C38: Konstrukce truhlářské | G38: =SUBTOTAL(9,G39:G52) -> 0
A39: 1 | B39: 766925x505 | C39: A5 - Recepce, dodávka a montáž | D39: soubor | E39: 1 | G39: =E39*F39 -> 0
C40: viz. souhrnná specifikace - oddíl A - viz. výkres B.2.1.5 : 1 | E40: 1
A41: =A39+1 -> 2 | B41: 766925x506 | C41: A6 - Vestavěná skříň, dodávka a montáž | D41: soubor | E41: 1 | G41: =E41*F41 -> 0
C42: viz. souhrnná specifikace - oddíl A - viz. výkres B.2.1.6 : 1 | E42: 1
A43: =A41+1 -> 3 | B43: 766925x510 | C43: A10 - Dřevěná dekorační stěna, dodávka a montáž | D43: soubor | E43: 1 | G43: =E43*F43 -> 0
C44: viz. souhrnná specifikace - oddíl A - viz. výkres B.2.1.8 : 1 | E44: 1
A45: =A43+1 -> 4 | B45: 766925x511 | C45: A11 - Dřevěná dekorační stěna, dodávka a montáž | D45: soubor | E45: 1 | G45: =E45*F45 -> 0
C46: viz. souhrnná specifikace - oddíl A - viz. výkres B.2.1.9 : 1 | E46: 1
A47: =A45+1 -> 5 | B47: 766925x601 | C47: R1 - Stůl studio, dodávka a montáž | D47: ks | E47: 1 | G47: =E47*F47 -> 0
C48: viz. souhrnná specifikace - oddíl R : 1 | E48: 1
A49: =A47+1 -> 6 | B49: 766925x602 | C49: R2 - Stůl režie, dodávka a montáž | D49: ks | E49: 2 | G49: =E49*F49 -> 0
C50: viz. souhrnná specifikace - oddíl R : 1+1 | E50: 2
A51: =A49+1 -> 7 | B51: 766925x603 | C51: R3 - Stůl samoobslužné studio, dodávka a montáž | D51: ks | E51: 2 | G51: =E51*F51 -> 0
C52: viz. souhrnná specifikace - oddíl R : 1+1 | E52: 2
A53: Díl: | B53: 799 | C53: Ostatní | G53: =SUBTOTAL(9,G54:G67) -> 0
A54: =A51+1 -> 8 | B54: 799925x4041 | C54: V4a - Zrcadlo do koupelny, dodávka a montáž | D54: ks | E54: 1 | G54: =E54*F54 -> 0
C55: viz. souhrnná specifikace - oddíl V : 1 | E55: 1
A56: =A54+1 -> 9 | B56: 799925x4042 | C56: V4b - Zrcadlo do koupelny, dodávka a montáž | D56: ks | E56: 5 | G56: =E56*F56 -> 0
C57: viz. souhrnná specifikace - oddíl V : 1+1+1+2 | E57: 5
A58: =A56+1 -> 10 | B58: 799925x4043 | C58: V4c - Zrcadlo do koupelny, dodávka a montáž | D58: ks | E58: 5 | G58: =E58*F58 -> 0
C59: viz. souhrnná specifikace - oddíl V : 2+1+1+1 | E59: 5
A60: =A58+1 -> 11 | B60: 799925x418 | C60: V18 - Nerezový nápis recepce, dodávka a montáž | D60: ks | E60: 1 | G60: =E60*F60 -> 0
C61: viz. souhrnná specifikace - oddíl V : 1 | E61: 1
A62: =A60+1 -> 12 | B62: 799925x419 | C62: V19 - Nerezové logo recepce, dodávka a montáž | D62: ks | E62: 1 | G62: =E62*F62 -> 0
C63: viz. souhrnná specifikace - oddíl V : 1 | E63: 1
A64: =A62+1 -> 13 | B64: 799925x420 | C64: V20 - Nerezový nápis fasáda, dodávka a montáž | D64: ks | E64: 1 | G64: =E64*F64 -> 0
C65: viz. souhrnná specifikace - oddíl V : 1 | E65: 1
A66: =A64+1 -> 14 | B66: 799925x702 | C66: L2 - Led pásek, dodávka a montáž | D66: m' | E66: 12.08 | G66: =E66*F66 -> 0
C67: viz. souhrnná specifikace - oddíl L : 3,38+3+3+2,7 | E67: 12.08

Sheet 13_IO 01 - Přípojka vody
A1: =CONCATENATE('Rekapitulace stavby'!C64,"_",'Rekapitulace stavby'!I64) -> 13_IO 01 - Přípojka vodovodu
A3: SPECIFIKACE DODÁVEK A PRACÍ
A4: Název akce:
A5: ='Identifikační údaje'!B1 -> ČRo Olomouc – rekonstrukce objektu Pavelčákova 2/19
A7: Zadavatel: | C7: ='Identifikační údaje'!B7 -> Český rozhlas
B8: IČ: | C8: ='Identifikační údaje'!B9 -> 45245053
B9: DIČ: | C9: ='Identifikační údaje'!B10 -> CZ45245053
A11: Projektant: | C11: ='Identifikační údaje'!B12 -> ATELIER 38 s.r.o.
B12: IČ: | C12: ='Identifikační údaje'!B9 -> 45245053
B13: DIČ: | C13: ='Identifikační údaje'!B15 -> CZ25858343
A15: Uchazeč: | C15: ='Identifikační údaje'!B19 -> 0
B16: IČ: | C16: ='Identifikační údaje'!B23 -> 0
B17: DIČ: | C17: ='Identifikační údaje'!B24 -> 0
A19: Místo stavby: | C19: ='Identifikační údaje'!B3 -> Budova Českého rozhlasu Olomouc na adrese Pavelčákova 2/19, 779 00 Olomouc
A21: Datum vyplnění: | C21: ='Identifikační údaje'!B5 -> 00:00:00
A23: =CONCATENATE("REKAPITULACE DODÁVEK A PRACÍ OBJEKTU ",'Rekapitulace stavby'!I64) -> REKAPITULACE DODÁVEK A PRACÍ OBJEKTU IO 01 - Přípojka vodovodu
A25: P.č. | B25: Číslo položky | C25: Název položky | D25: Kč bez DPH
A27: Díl: | B27: =B45 -> 1 | C27: =C45 -> Zemní práce | G27: =G45 -> 0
A28: Díl: | B28: =B60 -> 2 | C28: =C60 -> Základy a zvláštní zakládání | G28: =G60 -> 0
A29: Díl: | B29: =B63 -> 4 | C29: =C63 -> Vodorovné konstrukce | G29: =G63 -> 0
A30: Díl: | B30: =B65 -> 5 | C30: =C65 -> Komunikace | G30: =G65 -> 0
A31: Díl: | B31: =B68 -> 8 | C31: =C68 -> Trubní vedení | G31: =G68 -> 0
A32: Díl: | B32: =B74 -> 89 | C32: =C74 -> Ostatní konstrukce na trubním vedení | G32: =G74 -> 0
A33: Díl: | B33: =B76 -> 91 | C33: =C76 -> Doplňující práce na komunikaci | G33: =G76 -> 0
A34: Díl: | B34: =B78 -> 722 | C34: =C78 -> Vnitřní vodovod | G34: =G78 -> 0
A35: Díl: | B35: =B87 -> 733 | C35: =C87 -> Rozvod potrubí | G35: =G87 -> 0
A37: =CONCATENATE("CELKEM ZA OBJEKT ",'Rekapitulace stavby'!I64, " v Kč bez DPH") -> CELKEM ZA OBJEKT IO 01 - Přípojka vodovodu v Kč bez DPH | G37: =SUM(G27:G35) -> 0
A44: P.č. | B44: Číslo položky | C44: Název položky | D44: MJ | E44: množství | F44: cena / MJ | G44: Celkem
A45: Díl: | B45: 1 | C45: Zemní práce | G45: =SUBTOTAL(9,G46:G59) -> 0
A46: 1 | B46: 115101201R00 | C46: Čerpání vody na výšku do 10 m, přítok do 500 l | D46: h | E46: 32 | G46: =E46*F46 -> 0
A47: =A46+1 -> 2 | B47: 115101301R00 | C47: Pohotovost čerp.soupravy, výška 10 m, přítok 500 l | D47: den | E47: 2 | G47: =E47*F47 -> 0
A48: =A47+1 -> 3 | B48: 119001421R00 | C48: Dočasné zajištění kabelů - do počtu 3 kabelů | D48: m | E48: 6 | G48: 0
A49: 4 | B49: 132201211R00 | C49: Hloubení rýh šířky do 200 cm v hor.3 do 100 m3 | D49: m3 | E49: 15 | G49: 0
A50: 5 | B50: 132201219R00 | C50: Příplatek za lepivost - hloubení rýh 200cm v hor.3 | D50: m3 | E50: 15 | G50: 0
A51: 6 | B51: 151101101R00 | C51: Pažení a rozepření stěn rýh - příložné - hl.do 2 m | D51: m2 | E51: 50 | G51: 0
A52: 7 | B52: 151101111R00 | C52: Odstranění pažení stěn rýh - příložné - hl. do 2 m | D52: m2 | E52: 50 | G52: 0
A53: 8 | B53: 162701105R00 | C53: Vodorovné přemístění výkopku z hor.1-4 do 10000 m | D53: m3 | E53: 15 | G53: 0
A54: 9 | B54: 167101102R00 | C54: Nakládání výkopku z hor.1-4 v množství nad 100 m3 | D54: m3 | E54: 15 | G54: 0
A55: 10 | B55: 171201201R00 | C55: Uložení sypaniny na skl.-modelace na výšku přes 2m | D55: m3 | E55: 15 | G55: 0
A56: 11 | B56: 174101101R00 | C56: Zásyp jam, rýh, šachet se zhutněním | D56: m3 | E56: 25 | G56: 0
A57: 12 | B57: 175101109R00 | C57: Příplatek za prohození sypaniny pro obsyp potrubí | D57: m3 | E57: 2.5 | G57: 0
A58: 13 | B58: 199000002R00 | C58: Poplatek za skládku horniny 1- 4 | D58: m3 | E58: 15 | G58: 0
A59: 14 | B59: 58344197R | C59: Štěrkodrtě frakce 0-63 A | D59: T | E59: 45 | G59: 0
A60: Díl: | B60: 2 | C60: Základy a zvláštní zakládání | G60: =SUBTOTAL(9,G61:G62) -> 0
A61: =A59+1 -> 15 | B61: 212753214R00 | C61: Montáž tuhé drenáž. trubky do rýhy DN 100,bez lože | D61: m | E61: 12 | G61: =E61*F61 -> 0
A62: =A61+1 -> 16 | B62: 28611054R | C62: HEGLER EURODRAIN trubka drenážní PVC DN 100 perforovaná | D62: m | E62: 12 | G62: 0
A63: Díl: | B63: 4 | C63: Vodorovné konstrukce | G63: =SUBTOTAL(9,G64) -> 0
A64: =A62+1 -> 17 | B64: 451572111RK6 | C64: Lože pod potrubí z kameniva těženého 0 - 4 mm kraj Moravskoslezský | D64: m3 | E64: 4.5 | G64: =E64*F64 -> 0
A65: Díl: | B65: 5 | C65: Komunikace | G65: =SUBTOTAL(9,G66:G67) -> 0
A66: =A64+1 -> 18 | B66: 113106111R00 | C66: Rozebrání dlažeb z mozaiky | D66: m2 | E66: 20 | G66: =E66*F66 -> 0
A67: =A66+1 -> 19 | B67: 596215041R00 | C67: Kladení zámkové dlažby tl. 8 cm do drtě tl. 5 cm | D67: m2 | E67: 20 | G67: 0
A68: Díl: | B68: 8 | C68: Trubní vedení | G68: =SUBTOTAL(9,G69:G73) -> 0
A69: =A67+1 -> 20 | B69: 871181121R00 | C69: Montáž trubek polyetylenových ve výkopu d 50 mm | D69: m | E69: 12 | G69: =E69*F69 -> 0
A70: =A69+1 -> 21 | B70: 892241111R00 | C70: Tlaková zkouška vodovodního potrubí DN 80 | D70: m | E70: 12 | G70: 0
A71: =A70+1 -> 22 | B71: 892233111R00 | C71: Desinfekce vodovodního potrubí DN 70 | D71: m | E71: 12 | G71: 0
A72: 23 | B72: 286136747R | C72: Trubka Wavin TS voda SDR11 50x4,6 mm L=6 m PE100 RC třívrstvé potrubí, barva modrá | D72: m | E72: 12 | G72: 0
A73: 24 | B73: R6 | C73: Napojení na stávající navrtávací sestavu na vodovodu Montáž | D73: ks | E73: 1 | G73: 0
A74: Díl: | B74: 89 | C74: Ostatní konstrukce na trubním vedení | G74: =SUBTOTAL(9,G75) -> 0
A75: =A73+1 -> 25 | B75: 89-R01 | C75: Výstražná folie modrá a signaliz.vodič | D75: m | E75: 12 | G75: =E75*F75 -> 0
A76: Díl: | B76: 91 | C76: Doplňující práce na komunikaci | G76: =SUBTOTAL(9,G77) -> 0
A77: =A75+1 -> 26 | B77: R9 | C77: plastová chránička DN 100 Dodávka + montáž | D77: m | E77: 10 | G77: =E77*F77 -> 0
A78: Díl: | B78: 722 | C78: Vnitřní vodovod | G78: =SUBTOTAL(9,G79:G86) -> 0
A79: =A77+1 -> 27 | B79: 722220861R00 | C79: Demontáž armatur s dvěma závity G 3/4 | D79: kus | E79: 2 | G79: =E79*F79 -> 0
A80: =A79+1 -> 28 | B80: 722220863R00 | C80: Demontáž armatur s dvěma závity G 6/4 | D80: kus | E80: 6 | G80: 0
A81: =A80+1 -> 29 | B81: 722235115R00 | C81: Kohout vod.kul.,vnitř.-vnitř.z.IVAR PERFECTA DN 40 | D81: kus | E81: 2 | G81: 0
A82: 30 | B82: 722235525R00 | C82: Filtr,vod.vnitřní-vnitřní z.IVAR FIV.08412 DN 40 | D82: kus | E82: 1 | G82: 0
A83: 31 | B83: 722235645R00 | C83: Klapka vod.zpětná vodorovná CLAPET FIV.08406 DN 40 | D83: kus | E83: 1 | G83: 0
A84: 32 | B84: 722265165R00 | C84: Vodoměr domovní TV Sensus AN 90 DN25x260mm, Qn 6,0 | D84: kus | E84: 1 | G84: 0
A85: 33 | B85: 722260812R00 | C85: Demontáž vodoměrů závitových G 3/4 | D85: kus | E85: 1 | G85: 0
A86: 34 | B86: 722-20-Š20 | C86: Redukce DN40/25 Dodávka + montáž | D86: kus | E86: 2 | G86: 0
A87: Díl: | B87: 733 | C87: Rozvod potrubí | G87: =SUBTOTAL(9,G88) -> 0
A88: =A86+1 -> 35 | B88: 733170804R00 | C88: Demontáž potrubí z plastových trubek D 50 mm | D88: m | E88: 12 | G88: =E88*F88 -> 0

Sheet 14_IO 02 - Přípojka kanalizace
A1: =CONCATENATE('Rekapitulace stavby'!C65,"_",'Rekapitulace stavby'!I65) -> 14_IO 02 - Přípojka jednotné kanalizace
A3: SPECIFIKACE DODÁVEK A PRACÍ
A4: Název akce:
A5: ='Identifikační údaje'!B1 -> ČRo Olomouc – rekonstrukce objektu Pavelčákova 2/19
A7: Zadavatel: | C7: ='Identifikační údaje'!B7 -> Český rozhlas
B8: IČ: | C8: ='Identifikační údaje'!B9 -> 45245053
B9: DIČ: | C9: ='Identifikační údaje'!B10 -> CZ45245053
A11: Projektant: | C11: ='Identifikační údaje'!B12 -> ATELIER 38 s.r.o.
B12: IČ: | C12: ='Identifikační údaje'!B9 -> 45245053
B13: DIČ: | C13: ='Identifikační údaje'!B15 -> CZ25858343
A15: Uchazeč: | C15: ='Identifikační údaje'!B19 -> 0
B16: IČ: | C16: ='Identifikační údaje'!B23 -> 0
B17: DIČ: | C17: ='Identifikační údaje'!B24 -> 0
A19: Místo stavby: | C19: ='Identifikační údaje'!B3 -> Budova Českého rozhlasu Olomouc na adrese Pavelčákova 2/19, 779 00 Olomouc
A21: Datum vyplnění: | C21: ='Identifikační údaje'!B5 -> 00:00:00
A23: =CONCATENATE("REKAPITULACE DODÁVEK A PRACÍ OBJEKTU ",'Rekapitulace stavby'!I65) -> REKAPITULACE DODÁVEK A PRACÍ OBJEKTU IO 02 - Přípojka jednotné kanalizace
A25: P.č. | B25: Číslo položky | C25: Název položky | D25: Kč bez DPH
A27: Díl: | B27: =B38 -> 1 | C27: =C38 -> Zemní práce | G27: =G38 -> 0
A28: Díl: | B28: =B54 -> 2 | C28: =C54 -> Základy a zvláštní zakládání | G28: =G54 -> 0
A29: Díl: | B29: =B57 -> 4 | C29: =C57 -> Vodorovné konstrukce | G29: =G57 -> 0
A30: Díl: | B30: =B59 -> 5 | C30: =C59 -> Komunikace | G30: =G59 -> 0
A31: Díl: | B31: =B62 -> 8 | C31: =C62 -> Trubní vedení | G31: =G62 -> 0
A32: Díl: | B32: =B70 -> 721 | C32: =C70 -> Vnitřní kanalizace | G32: =G70 -> 0
A34: =CONCATENATE("CELKEM ZA OBJEKT ",'Rekapitulace stavby'!I65, " v Kč bez DPH") -> CELKEM ZA OBJEKT IO 02 - Přípojka jednotné kanalizace v Kč bez DPH | G34: =SUM(G27:G32) -> 0
A37: P.č. | B37: Číslo položky | C37: Název položky | D37: MJ | E37: množství | F37: cena / MJ | G37: Celkem
A38: Díl: | B38: 1 | C38: Zemní práce | G38: =SUBTOTAL(9,G39:G53) -> 0 | AB38: POL | AJ38: 21
A39: 1 | B39: 115101201R00 | C39: Čerpání vody na výšku do 10 m, přítok do 500 l | D39: h | E39: 32 | G39: =E39*F39 -> 0
A40: =A39+1 -> 2 | B40: 115101301R00 | C40: Pohotovost čerp.soupravy, výška 10 m, přítok 500 l | D40: den | E40: 2 | G40: =E40*F40 -> 0
A41: =A40+1 -> 3 | B41: 119001421R00 | C41: Dočasné zajištění kabelů - do počtu 3 kabelů | D41: m | E41: 6 | G41: 0
A42: 4 | B42: 132201211R00 | C42: Hloubení rýh šířky do 200 cm v hor.3 do 100 m3 | D42: m3 | E42: 30 | G42: 0
A43: 5 | B43: 132201219R00 | C43: Příplatek za lepivost - hloubení rýh 200cm v hor.3 | D43: m3 | E43: 30 | G43: 0
A44: 6 | B44: 151101102R00 | C44: Pažení a rozepření stěn rýh - příložné - hl.do 4 m | D44: m2 | E44: 70 | G44: 0
A45: 7 | B45: 151101112R00 | C45: Odstranění pažení stěn rýh - příložné - hl. do 4 m | D45: m2 | E45: 70 | G45: 0
A46: 8 | B46: 162701105R00 | C46: Vodorovné přemístění výkopku z hor.1-4 do 10000 m | D46: m3 | E46: 30 | G46: 0
A47: 9 | B47: 167101102R00 | C47: Nakládání výkopku z hor.1-4 v množství nad 100 m3 | D47: m3 | E47: 30 | G47: 0
A48: 10 | B48: 171201201R00 | C48: Uložení sypaniny na skl.-modelace na výšku přes 2m | D48: m3 | E48: 30 | G48: 0
A49: 11 | B49: 174101101R00 | C49: Zásyp jam, rýh, šachet se zhutněním | D49: m3 | E49: 30 | G49: 0
A50: 12 | B50: 175101101RT2 | C50: Obsyp potrubí bez prohození sypaniny s dodáním štěrkopísku frakce 0 - 22 mm | D50: m3 | E50: 4.5 | G50: 0
A51: 13 | B51: 175101109R00 | C51: Příplatek za prohození sypaniny pro obsyp potrubí | D51: m3 | E51: 4.5 | G51: 0
A52: 14 | B52: 199000002R00 | C52: Poplatek za skládku horniny 1- 4 | D52: m3 | E52: 30 | G52: 0
A53: 15 | B53: 58344197R | C53: Štěrkodrtě frakce 0-63 A | D53: T | E53: 50 | G53: 0
A54: Díl: | B54: 2 | C54: Základy a zvláštní zakládání | G54: =SUBTOTAL(9,G55:G56) -> 0
A55: =A53+1 -> 16 | B55: 212753214R00 | C55: Montáž tuhé drenáž. trubky do rýhy DN 100,bez lože | D55: m | E55: 6 | G55: =E55*F55 -> 0
A56: =A55+1 -> 17 | B56: 28611054R | C56: HEGLER EURODRAIN trubka drenážní PVC DN 100 perforovaná | D56: m | E56: 6 | G56: 0
A57: Díl: | B57: 4 | C57: Vodorovné konstrukce | G57: =SUBTOTAL(9,G58) -> 0
A58: =A56+1 -> 18 | B58: 451572111RK6 | C58: Lože pod potrubí z kameniva těženého 0 - 4 mm kraj Moravskoslezský | D58: m3 | E58: 1 | G58: =E58*F58 -> 0
A59: Díl: | B59: 5 | C59: Komunikace | G59: =SUBTOTAL(9,G60:G61) -> 0
A60: =A58+1 -> 19 | B60: 113106111R00 | C60: Rozebrání dlažeb z mozaiky | D60: m2 | E60: 15 | G60: =E60*F60 -> 0
A61: =A60+1 -> 20 | B61: 596215041R00 | C61: Kladení zámkové dlažby tl. 8 cm do drtě tl. 5 cm | D61: m2 | E61: 15 | G61: 0
A62: Díl: | B62: 8 | C62: Trubní vedení | G62: =SUBTOTAL(9,G63:G69) -> 0
A63: =A61+1 -> 21 | B63: 871111102R00 | C63: M.plast.potrubí ve výkopu na gum.těsnění DN 200 mm | D63: m | E63: 6 | G63: =E63*F63 -> 0
A64: =A63+1 -> 22 | B64: 899711122R00 | C64: Fólie výstražná z PVC, šířka 30 cm | D64: m | E64: 6 | G64: 0
A65: =A64+1 -> 23 | B65: DN200 | C65: Trubka kanalizační KG 2000 PP SN 10 200x6,2 zelená | D65: m | E65: 6 | G65: 0
C66: Plnostěnný, velmi odolný, potrubní systém KG 2000 splňuje všechny požadavky normy ČSN EN 14758 pro moderní kanalizační systémy. Pro výrobu byl použit optimalizovaný materiál - polypropylen (PP-MD). Díky tomu má potrubí vysokou kruhovou tuhost t 10 kN/m2 i optimální rázovou tuhost a tyto vlastnosti si zachovává i při nízkých teplotách. Patentované tříbřitové těsnění umožňuje jednoduché a bezpečné spojení jednotlivých trub.
A67: =A65+1 -> 24 | B67: R01 | C67: Napojení šachty na stávající potrubí Dodávka+montáž | D67: ks | E67: 1 | G67: =E67*F67 -> 0
A68: =A67+1 -> 25 | B68: R02 | C68: Betonová revizní šachta, včetně poklopu Dodávka+montáž | D68: ks | E68: 1 | G68: 0
A69: =A68+1 -> 26 | B69: R03 | C69: Rozšíření otvorů pro přípojku kanalizace DN200 Dodávka+montáž | D69: ks | E69: 6 | G69: 0
A70: Díl: | B70: 721 | C70: Vnitřní kanalizace | G70: =SUBTOTAL(9,G71) -> 0
A71: =A69+1 -> 27 | B71: 721171809R00 | C71: Demontáž potrubí z PVC do D 160 mm | D71: m | E71: 100 | G71: =E71*F71 -> 0

Sheet 15_SO O2 - Garáž
A1: =CONCATENATE('Rekapitulace stavby'!C66,"_",'Rekapitulace stavby'!I66) -> 15_SO 02 - Garáže
A3: SPECIFIKACE DODÁVEK A PRACÍ
A4: Název akce:
A5: ='Identifikační údaje'!B1 -> ČRo Olomouc – rekonstrukce objektu Pavelčákova 2/19
A7: Zadavatel: | C7: ='Identifikační údaje'!B7 -> Český rozhlas
B8: IČ: | C8: ='Identifikační údaje'!B9 -> 45245053
B9: DIČ: | C9: ='Identifikační údaje'!B10 -> CZ45245053
A11: Projektant: | C11: ='Identifikační údaje'!B12 -> ATELIER 38 s.r.o.
B12: IČ: | C12: ='Identifikační údaje'!B9 -> 45245053
B13: DIČ: | C13: ='Identifikační údaje'!B15 -> CZ25858343
A15: Uchazeč: | C15: ='Identifikační údaje'!B19 -> 0
B16: IČ: | C16: ='Identifikační údaje'!B23 -> 0
B17: DIČ: | C17: ='Identifikační údaje'!B24 -> 0
A19: Místo stavby: | C19: ='Identifikační údaje'!B3 -> Budova Českého rozhlasu Olomouc na adrese Pavelčákova 2/19, 779 00 Olomouc
A21: Datum vyplnění: | C21: ='Identifikační údaje'!B5 -> 00:00:00
A23: =CONCATENATE("REKAPITULACE DODÁVEK A PRACÍ OBJEKTU ",'Rekapitulace stavby'!I66) -> REKAPITULACE DODÁVEK A PRACÍ OBJEKTU SO 02 - Garáže
A25: P.č. | B25: Číslo položky | C25: Název položky | D25: Kč bez DPH
A27: Díl: | B27: =B45 -> 1 | C27: =C45 -> Zemní práce | G27: =G45 -> 0
A28: Díl: | B28: =B60 -> 96 | C28: =C60 -> Bourání konstrukcí | G28: =G60 -> 0
A29: Díl: | B29: =B81 -> 711 | C29: =C81 -> Izolace proti vodě | G29: =G81 -> 0
A30: Díl: | B30: =B85 -> 712 | C30: =C85 -> Povlakové krytiny | G30: =G85 -> 0
A31: Díl: | B31: =B91 -> 762 | C31: =C91 -> Konstrukce tesařské | G31: =G91 -> 0
A32: Díl: | B32: =B105 -> 764 | C32: =C105 -> Konstrukce klempířské | G32: =G105 -> 0
A33: Díl: | B33: =B118 -> 767 | C33: =C118 -> Konstrukce zámečnické | G33: =G118 -> 0
A34: Díl: | B34: =B127 -> M21 | C34: =C127 -> Elektromontáže | G34: =G127 -> 0
A35: Díl: | B35: =B129 -> D96 | C35: =C129 -> Přesuny suti a vybouraných hmot | G35: =G129 -> 0
A37: =CONCATENATE("CELKEM ZA OBJEKT ",'Rekapitulace stavby'!I66, " v Kč bez DPH") -> CELKEM ZA OBJEKT SO 02 - Garáže v Kč bez DPH | G37: =SUM(G27:G36) -> 0
A44: P.č. | B44: Číslo položky | C44: Název položky | D44: MJ | E44: množství | F44: cena / MJ | G44: Celkem
A45: Díl: | B45: 1 | C45: Zemní práce | G45: =SUBTOTAL(9,G46:G59) -> 0
A46: 1 | B46: 131201110R00 | C46: Hloubení nezapaž. jam hor.3 do 50 m3, STROJNĚ | D46: m3 | E46: 31.46 | G46: =E46*F46 -> 0
C47: výplň pod podlahou 001 - část strojně cca. 70% : 1,30*(31,000)*0,70 | E47: 28.21
C48: - sklep vedlejšího domu : - 1,30*(5,500) | E48: -7.15
C49: pod podlahou 002 : 0,20*(52,000) | E49: 10.4
A50: =A46+1 -> 2 | B50: 139601102R00 | C50: Ruční výkop jam, rýh a šachet v hornině tř. 3 | D50: m3 | E50: 4.94 | G50: =E50*F50 -> 0
C51: výplň pod podlahou 001 - část ručně cca. 30% : 1,30*(31,000)*0,30 | E51: 12.09
C52: - sklep vedlejšího domu : - 1,30*(5,500) | E52: -7.15
A53: =A50+1 -> 3 | B53: 162701105R00 | C53: Vodorovné přemístění výkopku z hor.1-4 do 10000 m | D53: m3 | E53: 36.4 | G53: =E53*F53 -> 0
C54: Odkaz na mn. položky pořadí 1 : 31,46000 | E54: 31.46
C55: Odkaz na mn. položky pořadí 2 : 4,94000 | E55: 4.94
A56: =A53+1 -> 4 | B56: 162701109R00 | C56: Příplatek k vod. přemístění hor.1-4 za další 1 km | D56: m3 | E56: 182 | G56: =E56*F56 -> 0
C57: Odkaz na mn. položky pořadí 3 : 36,40000*5 | E57: 182
A58: =A56+1 -> 5 | B58: 199000002R00 | C58: Poplatek za skládku horniny 1- 4 | D58: m3 | E58: 36.4 | G58: =E58*F58 -> 0
C59: Odkaz na mn. položky pořadí 3 : 36,40000 | E59: 36.4
A60: Díl: | B60: 96 | C60: Bourání konstrukcí | G60: =SUBTOTAL(9,G61:G80) -> 0
A61: =A58+1 -> 6 | B61: 961044111R00 | C61: Bourání základů z betonu prostého | D61: m3 | E61: 16.5 | G61: =E61*F61 -> 0
C62: základové pasy - odhad : 0,50*1,00*(7,50+7,30+1,50+3,70+7,50+2,50)*1,1 | E62: 16.5
A63: =A61+1 -> 7 | B63: 962032231R00 | C63: Bourání zdiva z cihel pálených na MVC | D63: m3 | E63: 44.4675 | G63: =E63*F63 -> 0
C64: zdivo : 0,35*4,70*(7,50+7,30+1,50+3,70+7,50+2,50)*1,1 | E64: 54.285
C65: - vrata : -(0,35*(3,00*(2,40+2,70)+2,50*3,30)) | E65: -8.2425
C66: - okna : -(2*0,35*1,50*1,50) | E66: -1.575
A67: =A63+1 -> 8 | B67: 965042141R00 | C67: Bourání mazanin betonových tl. 10 cm, nad 4 m2 | D67: m3 | E67: 8.4 | G67: =E67*F67 -> 0
C68: podlaha : 0,10*(32,0+52,0) | E68: 8.4
A69: =A67+1 -> 9 | B69: 965042241R00 | C69: Bourání mazanin betonových tl. nad 10 cm, nad 4 m2 | D69: m3 | E69: 13.8 | G69: =E69*F69 -> 0
C70: podkladní základová deska : 0,15*(92,0) | E70: 13.8
A71: =A69+1 -> 10 | B71: 965049112RT1 | C71: Příplatek, bourání mazanin se svař.síťí nad 10 cm jednostranná výztuž svařovanou sítí | D71: m3 | E71: 13.8 | G71: =E71*F71 -> 0
C72: Odkaz na mn. položky pořadí 9 : 13,80000 | E72: 13.8
A73: =A71+1 -> 11 | B73: 968061125R00 | C73: Vyvěšení dřevěných dveřních křídel pl. do 2 m2 | D73: kus | E73: 1 | G73: =E73*F73 -> 0
A74: =A73+1 -> 12 | B74: 968062356R00 | C74: Vybourání dřevěných rámů oken dvojitých pl. 4 m2 | D74: m2 | E74: 4.5 | G74: =E74*F74 -> 0
C75: 2*(1,50*1,50) | E75: 4.5
A76: =A74+1 -> 13 | B76: 968072455R00 | C76: Vybourání kovových dveřních zárubní pl. do 2 m2 | D76: m2 | E76: 1.8 | G76: =E76*F76 -> 0
A77: =A76+1 -> 14 | B77: 978012191R00 | C77: Otlučení omítek vnitřních rákosov.stropů do 100 % | D77: m2 | E77: 51 | G77: 0
C78: m.č. 002 : 51,0 | E78: 51
A79: =A77+1 -> 15 | B79: 900 R01 | C79: HZS stavební dělník v tarifní třídě 4 | D79: h | E79: 20 | G79: =E79*F79 -> 0
C80: nepředvídatelné práce - odhad : 20 | E80: 20
A81: Díl: | B81: 711 | C81: Izolace proti vodě | G81: =SUBTOTAL(9,G82:G84) -> 0
A82: =A79+1 -> 16 | B82: 711140102R00 | C82: Odstr.izolace proti vlhk.vodor. pásy přitav.,2vrst | D82: m2 | E82: 92 | G82: =E82*F82 -> 0
C83: na podkladní základové desce : (92,0) | E83: 92
A84: =A82+1 -> 17 | B84: 998711201R00 | C84: Přesun hmot pro izolace proti vodě, výšky do 6 m | D84: kpl | E84: 1 | G84: =E84*F84 -> 0
A85: Díl: | B85: 712 | C85: Povlakové krytiny | G85: =SUBTOTAL(9,G86:G90) -> 0
A86: =A84+1 -> 18 | B86: 712400832RT3 | C86: Odstranění živičné krytiny střech do 30° 2vrstvé z ploch jednotlivě nad 20 m2 | D86: m2 | E86: 110 | G86: =E86*F86 -> 0
C87: plocha pultové střechy : 110,0 | E87: 110
A88: =A86+1 -> 19 | B88: 712400834RT3 | C88: Příplat.za odstr.každé další vrstvy,střechy do 30° z ploch jednotlivě nad 20 m2 | D88: m2 | E88: 110 | G88: =E88*F88 -> 0
C89: Odkaz na mn. položky pořadí 18 : 110,00000 | E89: 110
A90: =A88+1 -> 20 | B90: 998712201R00 | C90: Přesun hmot pro povlakové krytiny, výšky do 6 m | D90: kpl | E90: 1 | G90: =E90*F90 -> 0
A91: Díl: | B91: 762 | C91: Konstrukce tesařské | G91: =SUBTOTAL(9,G92:G104) -> 0
A92: =A90+1 -> 21 | B92: 762331813R00 | C92: Demontáž konstrukcí krovů z hranolů do 288 cm2 | D92: m | E92: 185 | G92: =E92*F92 -> 0
C93: krokve 12/14 : 5*4,20 + 6*6,00 + 8*8,00 | E93: 121
C94: nosné trámky podhledu v 002 : 8*7,00 | E94: 56
C95: vaznice u stěny 002 : 8,00 | E95: 8
A96: =A92+1 -> 22 | B96: 762341811R00 | C96: Demontáž bednění střech rovných z prken hrubých | D96: m2 | E96: 110 | G96: =E96*F96 -> 0
C97: plocha pultové střechy : 110,0 | E97: 110
A98: =A96+1 -> 23 | B98: 762811811R00 | C98: Demontáž záklopů z hrubých prken tl. do 3,2 cm | D98: m2 | E98: 5.5 | G98: =E98*F98 -> 0
C99: část stropu nad sklepem vedlejšího domu : (5,500) | E99: 5.5
A100: =A98+1 -> 24 | B100: 762822820R00 | C100: Demontáž stropnic z řeziva o pl.do 288 cm2 | D100: m | E100: 9 | G100: =E100*F100 -> 0
C101: část stropu nad sklepem vedlejšího domu : 3*3,00 | E101: 9
A102: =A100+1 -> 25 | B102: 762841811R00 | C102: Demontáž podbití stropů z prken hrubých bez omítky | D102: m2 | E102: 51 | G102: =E102*F102 -> 0
C103: m.č. 002 : 51,0 | E103: 51
A104: =A102+1 -> 26 | B104: 998762202R00 | C104: Přesun hmot pro tesařské konstrukce, výšky do 12 m | D104: kpl | E104: 1 | G104: =E104*F104 -> 0
A105: Díl: | B105: 764 | C105: Konstrukce klempířské | G105: =SUBTOTAL(9,G106:G117) -> 0
A106: =A104+1 -> 27 | B106: 764323830R00 | C106: Demont. oplech. okapů, živičná krytina, rš 330 mm | D106: m | E106: 18.2 | G106: =E106*F106 -> 0
C107: Odkaz na mn. položky pořadí 29 : 18,20000 | E107: 18.2
A108: =A106+1 -> 28 | B108: 764331830R00 | C108: Demontáž lemování zdí, rš 250 a 330 mm, do 30° | D108: m | E108: 29.3 | G108: =E108*F108 -> 0
C109: 8,30+0,80+6,20+4,30+4,00+5,70 | E109: 29.3
A110: =A108+1 -> 29 | B110: 764352810R00 | C110: Demontáž žlabů půlkruh. rovných, rš 330 mm, do 30° | D110: m | E110: 18.2 | G110: =E110*F110 -> 0
C111: 12,50+5,70 | E111: 18.2
A112: =A110+1 -> 30 | B112: 764391820R00 | C112: Demontáž závětrné lišty, rš 250 a 330 mm, do 30° | D112: m | E112: 10.8 | G112: =E112*F112 -> 0
C113: 9,00+1,80 | E113: 10.8
A114: =A112+1 -> 31 | B114: 764410850R00 | C114: Demontáž oplechování parapetů,rš od 100 do 330 mm | D114: m | E114: 3 | G114: =E114*F114 -> 0
C115: 2*1,50 | E115: 3
A116: =A114+1 -> 32 | B116: 764454802R00 | C116: Demontáž odpadních trub kruhových,D 120 mm | D116: m | E116: 4 | G116: =E116*F116 -> 0
A117: =A116+1 -> 33 | B117: 998764201R00 | C117: Přesun hmot pro klempířské konstr., výšky do 6 m | D117: kpl | E117: 1 | G117: 0
A118: Díl: | B118: 767 | C118: Konstrukce zámečnické | G118: =SUBTOTAL(9,G119:G126) -> 0
A119: =A117+1 -> 34 | B119: 767996805R00 | C119: Demontáž atypických ocelových konstr. nad 500 kg | D119: kg | E119: 950 | G119: =E119*F119 -> 0
C120: zastřešení části dvorku - nosná kce : 700 | E120: 700
C121: oplocení části dvorku - čelní strana vč. brány : 250 | E121: 250
A122: =A119+1 -> 35 | B122: 787300803R00 | C122: Vysklívání střešních konstrukcí netmelených | D122: m2 | E122: 18 | G122: =E122*F122 -> 0
C123: zastřešení části dvorku - polykarbonát : 18,000 | E123: 18
A124: =A122+1 -> 36 | B124: 767920-1 | C124: Demontáž vrat - rolovací HORMANN - 3,30 x 2,50m zánovní - k dalšímu použití | D124: kus | E124: 1 | G124: =E124*F124 -> 0
A125: =A124+1 -> 37 | B125: 767920-2 | C125: Demontáž vrat - rolovací HORMANN - 2,50 x 3,00m zánovní - k dalšímu použití | D125: kus | E125: 1 | G125: 0
A126: =A125+1 -> 38 | B126: 767920-3 | C126: Demontáž vrat - rolovací HORMANN - 2,75 x 3,00m zánovní - k dalšímu použití | D126: kus | E126: 1 | G126: 0
A127: Díl: | B127: M21 | C127: Elektromontáže | G127: =SUBTOTAL(9,G128) -> 0
A128: =A126+1 -> 39 | B128: 21880-01 | C128: odpojení elektroinstalace | D128: ks | E128: 1 | G128: =E128*F128 -> 0
A129: Díl: | B129: D96 | C129: Přesuny suti a vybouraných hmot | G129: =SUBTOTAL(9,G130:G140) -> 0
A130: =A128+1 -> 40 | B130: 979990101R00 | C130: Poplatek za sklád.suti-směs bet.a cihel do 30x30cm | D130: t | E130: 165 | G130: =E130*F130 -> 0
C131: 176 | E131: 176
C132: -asfalt : -3 | E132: -3
C133: -dřevo - využito během stavby na pomocné kce : -7 | E133: -7
C134: -ocel - odvoz do sběrny : -1 | E134: -1
A135: =A130+1 -> 41 | B135: 979990121R00 | C135: Poplatek za skládku suti - asfaltové pásy | D135: t | E135: 3 | G135: =E135*F135 -> 0
A136: =A135+1 -> 42 | B136: 979990161R00 | C136: Poplatek za skládku suti - dřevo | D136: t | E136: 0 | G136: 0
C137: -dřevo - využito během stavby na pomocné kce : 0
A138: =A136+1 -> 43 | B138: 979082111R00 | C138: Vnitrostaveništní doprava suti do 10 m | D138: t | E138: 175.99102 | G138: =E138*F138 -> 0
A139: =A138+1 -> 44 | B139: 979083117R00 | C139: Vodorovné přemístění suti na skládku do 6000 m | D139: t | E139: 175.99102 | G139: 0
A140: =A139+1 -> 45 | B140: 979083191R00 | C140: Příplatek za dalších započatých 1000 m nad 6000 m | D140: t | E140: 1583.91921 | G140: 0

Sheet 16 - VRN
A2: =CONCATENATE('Rekapitulace stavby'!C67," - ",'Rekapitulace stavby'!I67) -> 16 - Vedlejší a ostatní náklady stavby
A4: SOUPIS VEDLEJŠÍCH A OSTATNÍCH NÁKLADŮ STAVBY
A5: Název akce:
A6: ='Identifikační údaje'!B1 -> ČRo Olomouc – rekonstrukce objektu Pavelčákova 2/19
A8: Zadavatel: | C8: ='Identifikační údaje'!E7 -> Český rozhlas, Vinohradská 12, 120 99 Praha 2
B9: IČ: | C9: ='Identifikační údaje'!B9 -> 45245053
B10: DIČ: | C10: ='Identifikační údaje'!B10 -> CZ45245053
A12: Projektant: | C12: ='Identifikační údaje'!E12 -> ATELIER 38 s.r.o., Porážková 1424/20, 702 00 Ostrava – Moravská Ostrava
B13: IČ: | C13: ='Identifikační údaje'!B14 -> 258 58 343
B14: DIČ: | C14: ='Identifikační údaje'!B15 -> CZ25858343
A16: Uchazeč: | C16: ='Identifikační údaje'!E19 -> , ,
B17: IČ: | C17: ='Identifikační údaje'!B23 -> 0
B18: DIČ: | C18: ='Identifikační údaje'!B24 -> 0
A20: Místo stavby: | C20: ='Identifikační údaje'!B3 -> Budova Českého rozhlasu Olomouc na adrese Pavelčákova 2/19, 779 00 Olomouc
A22: Datum: | C22: ='Identifikační údaje'!B5 -> 00:00:00
A25: =CONCATENATE("REKAPITULACE OBJEKTU ",'Rekapitulace stavby'!C67," - ",'Rekapitulace stavby'!I67) -> REKAPITULACE OBJEKTU 16 - Vedlejší a ostatní náklady stavby
A27: P.č. | B27: Ozn. | C27: Název položky | H27: Kč bez DPH
A29: Díl: | B29: =B39 -> VN | C29: =C39 -> Vedlejší náklady | F29: =G39 -> 0 | H29: =H122 -> 0
A30: Díl: | B30: =B46 -> ON | C30: =C46 -> Ostatní náklady | F30: =G46 -> 0 | H30: =H131 -> 0
A32: =CONCATENATE("CELKEM ZA OBJEKT ",A2, " v Kč bez DPH") -> CELKEM ZA OBJEKT 16 - Vedlejší a ostatní náklady stavby v Kč bez DPH | F32: =SUM(F29:G30) -> 0
A38: P.č. | B38: Číslo položky | C38: Název položky | D38: MJ | E38: množství | F38: cena / MJ | G38: celkem
A39: Díl: | B39: VN | C39: Vedlejší náklady | G39: =SUBTOTAL(9,G40:G44) -> 0
A40: 1 | B40: 005121 R | C40: Zařízení staveniště | D40: Soubor | E40: 1 | G40: =E40*F40 -> 0
C41: Veškeré náklady spojené s vybudováním, provozem a odstraněním zařízení staveniště. Poplatky za zábor chodníku a komunikace. Montáž, provozování i demontáž stavebních výtahů, plošin a jeřábů.
A42: =A40+1 -> 2 | B42: 005122 R | C42: Provozní vlivy | D42: Soubor | E42: 1 | G42: =E42*F42 -> 0
C43: Náklady na ztížené podmínky provádění tam, kde jsou stavební práce zcela nebo zčásti omezovány provozem jiných osob. Jde zejména o zvýšené náklady související s omezením provozem v areálu objednatele nebo o náklady v důsledku nezbytného respektování stávající dopravy ovlivňující stavební práce - centrum města, pěší zóny, omezení tonáže nákladních aut apod. Vyvázání větví stromů. Zakrývání již hotových částí díla proti jejich poškození (nábytku, dveří, akustických obkladů, koberců, ostatního vybavení a rozhlasové techniky proti poškození a prachu). Odsávání prachu při bourání, průběžný uklid pracoviště. Protiprašné předěly. Kontrola funkčnosti zabezpečení stavby proti zatečení vody.
A44: =A42+1 -> 3 | B44: 0052x1 R | C44: Kompletační činnost | D44: Soubor | E44: 1 | G44: =E44*F44 -> 0
C45: Náklady zhotovitele, které vzniknou v souvislosti s povinnostmi zhotovitele při předání a převzetí díla.
A46: Díl: | B46: ON | C46: Ostatní náklady | G46: =SUBTOTAL(9,G47:G83) -> 0
A47: =A44+1 -> 4 | B47: 005211030R | C47: Dočasná dopravní opatření | D47: Soubor | E47: 1 | G47: =E47*F47 -> 0
C48: Náklady na vyhotovení návrhu dočasného dopravního značení, jeho projednání s dotčenými orgány a organizacemi, dodání dopravních značek a světelné signalizace, jejich rozmístění a přemísťování a jejich údržba v průběhu výstavby včetně následného odstranění po ukončení stavebních prací.
A49: =A47+1 -> 5 | B49: 005211020R | C49: Ochrana stávaj. inženýrských sítí na staveništi | D49: Soubor | E49: 1 | G49: =E49*F49 -> 0
C50: Náklady na přezkoumání podkladů objednatele o stavu inženýrských sítí probíhajících staveništěm nebo dotčenými stavbou i mimo území staveniště, kontrola vytýčení jejich skutečné trasy a provedení ochranných opatření pro zabezpečení stávajících inženýrských sítí.
A51: =A49+1 -> 6 | B51: 00523 R | C51: Zkoušky a revize | D51: Soubor | E51: 1 | G51: =E51*F51 -> 0
C52: Náklady zhotovitele, související s prováděním zkoušek a revizí předepsaných technickými normami nebo objednatelem a které jsou pro provedení díla nezbytné.
A53: =A51+1 -> 7 | B53: 005241010R | C53: Dokumentace skutečného provedení | D53: Soubor | E53: 1 | G53: =E53*F53 -> 0
C54: Náklady na vyhotovení dokumentace skutečného provedení stavby a její předání objednateli v požadované formě a požadovaném počtu.
A55: =A53+1 -> 8 | B55: 005241020R | C55: Geodetické zaměření skutečného provedení | D55: Soubor | E55: 1 | G55: =E55*F55 -> 0
C56: Náklady na provedení skutečného zaměření stavby v rozsahu nezbytném pro zápis změny do katastru nemovitostí.
A57: =A55+1 -> 9 | B57: 004111x01 | C57: Dopracování PD - výrobní dokumentace - podrobné výkresy žb kcí | D57: soubor | E57: 1 | G57: =E57*F57 -> 0
C58: kontrola skutečných rozměrů na stavbě a následná úprava tvarů a výztuže.
C59: předložit k odsouhlasení generálnímu projektantovi, statikovi a investorovi
A60: =A57+1 -> 10 | B60: 004111x02 | C60: Dopracování PD - dílenská dokumentace - podrobné výkresy ocelových kcí | D60: soubor | E60: 1 | G60: =E60*F60 -> 0
C61: *včetně detailů
C62: kontrola skutečných rozměrů na stavbě. dílenská dokumentace ocelových konstrukcí. předložit k odsouhlasení generálnímu projektantovi, statikovi a investorovi
C63: - OK světlíku - koordinovat s dodavatelem prosklení
C64: - OK ve výtahové šachtě
C65: - OK venkovní stříšky ve dvoře
C66: - OK pro VZT na střeše
C67: - OK pro DA
C68: - žebřík na střeše
C69: - vnitřní zábradlí - repase/nové doplňované
A70: =A60+1 -> 11 | B70: 004111x03 | C70: Dopracování PD - dílenská dokumentace - ostatní kce a práce | D70: soubor | E70: 1 | G70: =E70*F70 -> 0
C71: kontrola skutečných rozměrů na stavbě. dílenská dokumentace. předložit k odsouhlasení generálnímu projektantovi, statikovi a investorovi
C72: - výtah
C73: - prostorová akustika studií - režie vysílání, záložní režie, záložní studio, dvě samoobslužné studia
C74: - střešní záchytný systém
C75: - okna
C76: - prosklenné vnitřní příčky
C77: - generální klíč
C78: - truhlářské výrobky
C79: - další části dle popisu v TZ - D.1.1.a
A80: =A70+1 -> 12 | B80: 005241x12 | C80: Fotodokumentace | D80: soubor | E80: 1 | G80: =E80*F80 -> 0
C81: fotodokumentace celkového průběhu stavby, vč. konstrukcí, které budou v průběhu výstavby odkryty nebo zakryty.
C82: fotodokumentace stávajícího stavu přístupových komunikací.
A83: =A80+1 -> 13 | B83: 110 x112 | C83: Uvedení všech pozemků, konstrukcí a povrchů dotčených stavbou do původního stavu včetně protokolárního zpětného předání jednotlivým vlastníkům | D83: soubor | E83: 1 | G83: =E83*F83 -> 0
